Workbook

Sheet Main
A1: Miller Solar
A2: 17395 Oak Rd. Atascadero, CA 93422
A3: WORKSHEET
A5: Client:
A6: Project: | B6: E-6 Tabulation
A7: Date: | D7: Revision: | E7: =K26 -> 0
M8: =SUM(Tabulation[Base Hour Total]) -> 1914.099896
A10: PVWatts: Hourly PV Performance Data
A11: Under E-6 the billing year is divided into Summer (June – September) and Winter (the rest of the year). I created a matrix depicting how the E-6 rate is applied hour-by-hour over summer and winter, holidays and weekends. | B11: 93422, USA
A12: Location: | B12: Lat, Lon: 35.49, -120.66
A13: Lat (deg N): | B13: 35.49
A14: Long (deg W): | B14: 120.66
A15: Elev (m): | B15: 283.480011
A16: DC System Size (kW): | B16: 4
A17: Module Type: | B17: Standard
A18: Array Type: | B18: Fixed (open rack)
A19: Array Tilt (deg): | B19: 20
A20: Array Azimuth (deg): | B20: 180
A21: System Losses: | B21: 14.08
A22: Invert Efficiency: | B22: 96
A23: DC to AC Size Ratio: | B23: 1.2
A24: Average Cost of Electricity Purchased from Utility ($/kWh): | B24: 0.156
A25: Capacity Factor (%) | B25: 19.2
A27: Month | B27: Day | C27: Hour | D27: AC System Output (W) | E27: AC System Output (kW) | F27: Season | G27: Date | H27: DayNo | I27: Weekend | J27: Holiday | K27: Concat | L27: Rate | M27: Base Hour Total
A28: 1 | B28: 1 | C28: 0 | D28: 0 | E28: =Tabulation[[#This Row],[AC System Output (W)]]/1000 -> 0 | F28: =VLOOKUP(Tabulation[[#This Row],[Month]],Season,2) -> Winter | G28: =(DATE(2021,Tabulation[[#This Row],[Month]],Tabulation[[#This Row],[Day]])) -> 2021-01-01 | H28: =WEEKDAY(Tabulation[[#This Row],[Date]]) -> 6 | I28: =IF(OR(Tabulation[[#This Row],[DayNo]]=1,Tabulation[[#This Row],[DayNo]]=7),1,0) -> 0 | J28: =COUNTIF(Holidays,Tabulation[[#This Row],[Date]]) -> 1 | K28: =CONCATENATE(Tabulation[[#This Row],[Holiday]],Tabulation[[#This Row],[Season]],Tabulation[[#This Row],[Weekend]],"-",IF(Tabulation[[#This Row],[Hour]]<10,0,""),C28) -> 1Winter0-00 | L28: =VLOOKUP(Tabulation[[#This Row],[Concat]],Table3[],8) -> 0.28519 | M28: =(Tabulation[[#This Row],[AC System Output (kW)]]*Tabulation[[#This Row],[Rate]]) -> 0
A29: 1 | B29: 1 | C29: 1 | D29: 0 | E29: =Tabulation[[#This Row],[AC System Output (W)]]/1000 -> 0 | F29: =VLOOKUP(Tabulation[[#This Row],[Month]],Season,2) -> Winter | G29: =(DATE(2021,Tabulation[[#This Row],[Month]],Tabulation[[#This Row],[Day]])) -> 2021-01-01 | H29: =WEEKDAY(Tabulation[[#This Row],[Date]]) -> 6 | I29: =IF(OR(Tabulation[[#This Row],[DayNo]]=1,Tabulation[[#This Row],[DayNo]]=7),1,0) -> 0 | J29: =COUNTIF(Holidays,Tabulation[[#This Row],[Date]]) -> 1 | K29: =CONCATENATE(Tabulation[[#This Row],[Holiday]],Tabulation[[#This Row],[Season]],Tabulation[[#This Row],[Weekend]],"-",IF(Tabulation[[#This Row],[Hour]]<10,0,""),C29) -> 1Winter0-01 | L29: =VLOOKUP(Tabulation[[#This Row],[Concat]],Table3[],8) -> 0.28519 | M29: =(Tabulation[[#This Row],[AC System Output (kW)]]*Tabulation[[#This Row],[Rate]]) -> 0
A30: 1 | B30: 1 | C30: 2 | D30: 0 | E30: =Tabulation[[#This Row],[AC System Output (W)]]/1000 -> 0 | F30: =VLOOKUP(Tabulation[[#This Row],[Month]],Season,2) -> Winter | G30: =(DATE(2021,Tabulation[[#This Row],[Month]],Tabulation[[#This Row],[Day]])) -> 2021-01-01 | H30: =WEEKDAY(Tabulation[[#This Row],[Date]]) -> 6 | I30: =IF(OR(Tabulation[[#This Row],[DayNo]]=1,Tabulation[[#This Row],[DayNo]]=7),1,0) -> 0 | J30: =COUNTIF(Holidays,Tabulation[[#This Row],[Date]]) -> 1 | K30: =CONCATENATE(Tabulation[[#This Row],[Holiday]],Tabulation[[#This Row],[Season]],Tabulation[[#This Row],[Weekend]],"-",IF(Tabulation[[#This Row],[Hour]]<10,0,""),C30) -> 1Winter0-02 | L30: =VLOOKUP(Tabulation[[#This Row],[Concat]],Table3[],8) -> 0.28519 | M30: =(Tabulation[[#This Row],[AC System Output (kW)]]*Tabulation[[#This Row],[Rate]]) -> 0
A31: 1 | B31: 1 | C31: 3 | D31: 0 | E31: =Tabulation[[#This Row],[AC System Output (W)]]/1000 -> 0 | F31: =VLOOKUP(Tabulation[[#This Row],[Month]],Season,2) -> Winter | G31: =(DATE(2021,Tabulation[[#This Row],[Month]],Tabulation[[#This Row],[Day]])) -> 2021-01-01 | H31: =WEEKDAY(Tabulation[[#This Row],[Date]]) -> 6 | I31: =IF(OR(Tabulation[[#This Row],[DayNo]]=1,Tabulation[[#This Row],[DayNo]]=7),1,0) -> 0 | J31: =COUNTIF(Holidays,Tabulation[[#This Row],[Date]]) -> 1 | K31: =CONCATENATE(Tabulation[[#This Row],[Holiday]],Tabulation[[#This Row],[Season]],Tabulation[[#This Row],[Weekend]],"-",IF(Tabulation[[#This Row],[Hour]]<10,0,""),C31) -> 1Winter0-03 | L31: =VLOOKUP(Tabulation[[#This Row],[Concat]],Table3[],8) -> 0.28519 | M31: =(Tabulation[[#This Row],[AC System Output (kW)]]*Tabulation[[#This Row],[Rate]]) -> 0
A32: 1 | B32: 1 | C32: 4 | D32: 0 | E32: =Tabulation[[#This Row],[AC System Output (W)]]/1000 -> 0 | F32: =VLOOKUP(Tabulation[[#This Row],[Month]],Season,2) -> Winter | G32: =(DATE(2021,Tabulation[[#This Row],[Month]],Tabulation[[#This Row],[Day]])) -> 2021-01-01 | H32: =WEEKDAY(Tabulation[[#This Row],[Date]]) -> 6 | I32: =IF(OR(Tabulation[[#This Row],[DayNo]]=1,Tabulation[[#This Row],[DayNo]]=7),1,0) -> 0 | J32: =COUNTIF(Holidays,Tabulation[[#This Row],[Date]]) -> 1 | K32: =CONCATENATE(Tabulation[[#This Row],[Holiday]],Tabulation[[#This Row],[Season]],Tabulation[[#This Row],[Weekend]],"-",IF(Tabulation[[#This Row],[Hour]]<10,0,""),C32) -> 1Winter0-04 | L32: =VLOOKUP(Tabulation[[#This Row],[Concat]],Table3[],8) -> 0.28519 | M32: =(Tabulation[[#This Row],[AC System Output (kW)]]*Tabulation[[#This Row],[Rate]]) -> 0
A33: 1 | B33: 1 | C33: 5 | D33: 0 | E33: =Tabulation[[#This Row],[AC System Output (W)]]/1000 -> 0 | F33: =VLOOKUP(Tabulation[[#This Row],[Month]],Season,2) -> Winter | G33: =(DATE(2021,Tabulation[[#This Row],[Month]],Tabulation[[#This Row],[Day]])) -> 2021-01-01 | H33: =WEEKDAY(Tabulation[[#This Row],[Date]]) -> 6 | I33: =IF(OR(Tabulation[[#This Row],[DayNo]]=1,Tabulation[[#This Row],[DayNo]]=7),1,0) -> 0 | J33: =COUNTIF(Holidays,Tabulation[[#This Row],[Date]]) -> 1 | K33: =CONCATENATE(Tabulation[[#This Row],[Holiday]],Tabulation[[#This Row],[Season]],Tabulation[[#This Row],[Weekend]],"-",IF(Tabulation[[#This Row],[Hour]]<10,0,""),C33) -> 1Winter0-05 | L33: =VLOOKUP(Tabulation[[#This Row],[Concat]],Table3[],8) -> 0.28519 | M33: =(Tabulation[[#This Row],[AC System Output (kW)]]*Tabulation[[#This Row],[Rate]]) -> 0
A34: 1 | B34: 1 | C34: 6 | D34: 0 | E34: =Tabulation[[#This Row],[AC System Output (W)]]/1000 -> 0 | F34: =VLOOKUP(Tabulation[[#This Row],[Month]],Season,2) -> Winter | G34: =(DATE(2021,Tabulation[[#This Row],[Month]],Tabulation[[#This Row],[Day]])) -> 2021-01-01 | H34: =WEEKDAY(Tabulation[[#This Row],[Date]]) -> 6 | I34: =IF(OR(Tabulation[[#This Row],[DayNo]]=1,Tabulation[[#This Row],[DayNo]]=7),1,0) -> 0 | J34: =COUNTIF(Holidays,Tabulation[[#This Row],[Date]]) -> 1 | K34: =CONCATENATE(Tabulation[[#This Row],[Holiday]],Tabulation[[#This Row],[Season]],Tabulation[[#This Row],[Weekend]],"-",IF(Tabulation[[#This Row],[Hour]]<10,0,""),C34) -> 1Winter0-06 | L34: =VLOOKUP(Tabulation[[#This Row],[Concat]],Table3[],8) -> 0.28519 | M34: =(Tabulation[[#This Row],[AC System Output (kW)]]*Tabulation[[#This Row],[Rate]]) -> 0
A35: 1 | B35: 1 | C35: 7 | D35: 297.546 | E35: =Tabulation[[#This Row],[AC System Output (W)]]/1000 -> 0.297546 | F35: =VLOOKUP(Tabulation[[#This Row],[Month]],Season,2) -> Winter | G35: =(DATE(2021,Tabulation[[#This Row],[Month]],Tabulation[[#This Row],[Day]])) -> 2021-01-01 | H35: =WEEKDAY(Tabulation[[#This Row],[Date]]) -> 6 | I35: =IF(OR(Tabulation[[#This Row],[DayNo]]=1,Tabulation[[#This Row],[DayNo]]=7),1,0) -> 0 | J35: =COUNTIF(Holidays,Tabulation[[#This Row],[Date]]) -> 1 | K35: =CONCATENATE(Tabulation[[#This Row],[Holiday]],Tabulation[[#This Row],[Season]],Tabulation[[#This Row],[Weekend]],"-",IF(Tabulation[[#This Row],[Hour]]<10,0,""),C35) -> 1Winter0-07 | L35: =VLOOKUP(Tabulation[[#This Row],[Concat]],Table3[],8) -> 0.28519 | M35: =(Tabulation[[#This Row],[AC System Output (kW)]]*Tabulation[[#This Row],[Rate]]) -> 0.08485714374
A36: 1 | B36: 1 | C36: 8 | D36: 492.436 | E36: =Tabulation[[#This Row],[AC System Output (W)]]/1000 -> 0.492436 | F36: =VLOOKUP(Tabulation[[#This Row],[Month]],Season,2) -> Winter | G36: =(DATE(2021,Tabulation[[#This Row],[Month]],Tabulation[[#This Row],[Day]])) -> 2021-01-01 | H36: =WEEKDAY(Tabulation[[#This Row],[Date]]) -> 6 | I36: =IF(OR(Tabulation[[#This Row],[DayNo]]=1,Tabulation[[#This Row],[DayNo]]=7),1,0) -> 0 | J36: =COUNTIF(Holidays,Tabulation[[#This Row],[Date]]) -> 1 | K36: =CONCATENATE(Tabulation[[#This Row],[Holiday]],Tabulation[[#This Row],[Season]],Tabulation[[#This Row],[Weekend]],"-",IF(Tabulation[[#This Row],[Hour]]<10,0,""),C36) -> 1Winter0-08 | L36: =VLOOKUP(Tabulation[[#This Row],[Concat]],Table3[],8) -> 0.28519 | M36: =(Tabulation[[#This Row],[AC System Output (kW)]]*Tabulation[[#This Row],[Rate]]) -> 0.1404378228
A37: 1 | B37: 1 | C37: 9 | D37: 1859.805 | E37: =Tabulation[[#This Row],[AC System Output (W)]]/1000 -> 1.859805 | F37: =VLOOKUP(Tabulation[[#This Row],[Month]],Season,2) -> Winter | G37: =(DATE(2021,Tabulation[[#This Row],[Month]],Tabulation[[#This Row],[Day]])) -> 2021-01-01 | H37: =WEEKDAY(Tabulation[[#This Row],[Date]]) -> 6 | I37: =IF(OR(Tabulation[[#This Row],[DayNo]]=1,Tabulation[[#This Row],[DayNo]]=7),1,0) -> 0 | J37: =COUNTIF(Holidays,Tabulation[[#This Row],[Date]]) -> 1 | K37: =CONCATENATE(Tabulation[[#This Row],[Holiday]],Tabulation[[#This Row],[Season]],Tabulation[[#This Row],[Weekend]],"-",IF(Tabulation[[#This Row],[Hour]]<10,0,""),C37) -> 1Winter0-09 | L37: =VLOOKUP(Tabulation[[#This Row],[Concat]],Table3[],8) -> 0.28519 | M37: =(Tabulation[[#This Row],[AC System Output (kW)]]*Tabulation[[#This Row],[Rate]]) -> 0.530397788
A38: 1 | B38: 1 | C38: 10 | D38: 2298.211 | E38: =Tabulation[[#This Row],[AC System Output (W)]]/1000 -> 2.298211 | F38: =VLOOKUP(Tabulation[[#This Row],[Month]],Season,2) -> Winter | G38: =(DATE(2021,Tabulation[[#This Row],[Month]],Tabulation[[#This Row],[Day]])) -> 2021-01-01 | H38: =WEEKDAY(Tabulation[[#This Row],[Date]]) -> 6 | I38: =IF(OR(Tabulation[[#This Row],[DayNo]]=1,Tabulation[[#This Row],[DayNo]]=7),1,0) -> 0 | J38: =COUNTIF(Holidays,Tabulation[[#This Row],[Date]]) -> 1 | K38: =CONCATENATE(Tabulation[[#This Row],[Holiday]],Tabulation[[#This Row],[Season]],Tabulation[[#This Row],[Weekend]],"-",IF(Tabulation[[#This Row],[Hour]]<10,0,""),C38) -> 1Winter0-10 | L38: =VLOOKUP(Tabulation[[#This Row],[Concat]],Table3[],8) -> 0.28519 | M38: =(Tabulation[[#This Row],[AC System Output (kW)]]*Tabulation[[#This Row],[Rate]]) -> 0.6554267951
A39: 1 | B39: 1 | C39: 11 | D39: 1909.836 | E39: =Tabulation[[#This Row],[AC System Output (W)]]/1000 -> 1.909836 | F39: =VLOOKUP(Tabulation[[#This Row],[Month]],Season,2) -> Winter | G39: =(DATE(2021,Tabulation[[#This Row],[Month]],Tabulation[[#This Row],[Day]])) -> 2021-01-01 | H39: =WEEKDAY(Tabulation[[#This Row],[Date]]) -> 6 | I39: =IF(OR(Tabulation[[#This Row],[DayNo]]=1,Tabulation[[#This Row],[DayNo]]=7),1,0) -> 0 | J39: =COUNTIF(Holidays,Tabulation[[#This Row],[Date]]) -> 1 | K39: =CONCATENATE(Tabulation[[#This Row],[Holiday]],Tabulation[[#This Row],[Season]],Tabulation[[#This Row],[Weekend]],"-",IF(Tabulation[[#This Row],[Hour]]<10,0,""),C39) -> 1Winter0-11 | L39: =VLOOKUP(Tabulation[[#This Row],[Concat]],Table3[],8) -> 0.28519 | M39: =(Tabulation[[#This Row],[AC System Output (kW)]]*Tabulation[[#This Row],[Rate]]) -> 0.5446661288
A40: 1 | B40: 1 | C40: 12 | D40: 1816.167 | E40: =Tabulation[[#This Row],[AC System Output (W)]]/1000 -> 1.816167 | F40: =VLOOKUP(Tabulation[[#This Row],[Month]],Season,2) -> Winter | G40: =(DATE(2021,Tabulation[[#This Row],[Month]],Tabulation[[#This Row],[Day]])) -> 2021-01-01 | H40: =WEEKDAY(Tabulation[[#This Row],[Date]]) -> 6 | I40: =IF(OR(Tabulation[[#This Row],[DayNo]]=1,Tabulation[[#This Row],[DayNo]]=7),1,0) -> 0 | J40: =COUNTIF(Holidays,Tabulation[[#This Row],[Date]]) -> 1 | K40: =CONCATENATE(Tabulation[[#This Row],[Holiday]],Tabulation[[#This Row],[Season]],Tabulation[[#This Row],[Weekend]],"-",IF(Tabulation[[#This Row],[Hour]]<10,0,""),C40) -> 1Winter0-12 | L40: =VLOOKUP(Tabulation[[#This Row],[Concat]],Table3[],8) -> 0.28519 | M40: =(Tabulation[[#This Row],[AC System Output (kW)]]*Tabulation[[#This Row],[Rate]]) -> 0.5179526667
A41: 1 | B41: 1 | C41: 13 | D41: 2276.49 | E41: =Tabulation[[#This Row],[AC System Output (W)]]/1000 -> 2.27649 | F41: =VLOOKUP(Tabulation[[#This Row],[Month]],Season,2) -> Winter | G41: =(DATE(2021,Tabulation[[#This Row],[Month]],Tabulation[[#This Row],[Day]])) -> 2021-01-01 | H41: =WEEKDAY(Tabulation[[#This Row],[Date]]) -> 6 | I41: =IF(OR(Tabulation[[#This Row],[DayNo]]=1,Tabulation[[#This Row],[DayNo]]=7),1,0) -> 0 | J41: =COUNTIF(Holidays,Tabulation[[#This Row],[Date]]) -> 1 | K41: =CONCATENATE(Tabulation[[#This Row],[Holiday]],Tabulation[[#This Row],[Season]],Tabulation[[#This Row],[Weekend]],"-",IF(Tabulation[[#This Row],[Hour]]<10,0,""),C41) -> 1Winter0-13 | L41: =VLOOKUP(Tabulation[[#This Row],[Concat]],Table3[],8) -> 0.28519 | M41: =(Tabulation[[#This Row],[AC System Output (kW)]]*Tabulation[[#This Row],[Rate]]) -> 0.6492321831
A42: 1 | B42: 1 | C42: 14 | D42: 1804.892 | E42: =Tabulation[[#This Row],[AC System Output (W)]]/1000 -> 1.804892 | F42: =VLOOKUP(Tabulation[[#This Row],[Month]],Season,2) -> Winter | G42: =(DATE(2021,Tabulation[[#This Row],[Month]],Tabulation[[#This Row],[Day]])) -> 2021-01-01 | H42: =WEEKDAY(Tabulation[[#This Row],[Date]]) -> 6 | I42: =IF(OR(Tabulation[[#This Row],[DayNo]]=1,Tabulation[[#This Row],[DayNo]]=7),1,0) -> 0 | J42: =COUNTIF(Holidays,Tabulation[[#This Row],[Date]]) -> 1 | K42: =CONCATENATE(Tabulation[[#This Row],[Holiday]],Tabulation[[#This Row],[Season]],Tabulation[[#This Row],[Weekend]],"-",IF(Tabulation[[#This Row],[Hour]]<10,0,""),C42) -> 1Winter0-14 | L42: =VLOOKUP(Tabulation[[#This Row],[Concat]],Table3[],8) -> 0.28519 | M42: =(Tabulation[[#This Row],[AC System Output (kW)]]*Tabulation[[#This Row],[Rate]]) -> 0.5147371495
A43: 1 | B43: 1 | C43: 15 | D43: 1203.5 | E43: =Tabulation[[#This Row],[AC System Output (W)]]/1000 -> 1.2035 | F43: =VLOOKUP(Tabulation[[#This Row],[Month]],Season,2) -> Winter | G43: =(DATE(2021,Tabulation[[#This Row],[Month]],Tabulation[[#This Row],[Day]])) -> 2021-01-01 | H43: =WEEKDAY(Tabulation[[#This Row],[Date]]) -> 6 | I43: =IF(OR(Tabulation[[#This Row],[DayNo]]=1,Tabulation[[#This Row],[DayNo]]=7),1,0) -> 0 | J43: =COUNTIF(Holidays,Tabulation[[#This Row],[Date]]) -> 1 | K43: =CONCATENATE(Tabulation[[#This Row],[Holiday]],Tabulation[[#This Row],[Season]],Tabulation[[#This Row],[Weekend]],"-",IF(Tabulation[[#This Row],[Hour]]<10,0,""),C43) -> 1Winter0-15 | L43: =VLOOKUP(Tabulation[[#This Row],[Concat]],Table3[],8) -> 0.28519 | M43: =(Tabulation[[#This Row],[AC System Output (kW)]]*Tabulation[[#This Row],[Rate]]) -> 0.343226165
A44: 1 | B44: 1 | C44: 16 | D44: 420.022 | E44: =Tabulation[[#This Row],[AC System Output (W)]]/1000 -> 0.420022 | F44: =VLOOKUP(Tabulation[[#This Row],[Month]],Season,2) -> Winter | G44: =(DATE(2021,Tabulation[[#This Row],[Month]],Tabulation[[#This Row],[Day]])) -> 2021-01-01 | H44: =WEEKDAY(Tabulation[[#This Row],[Date]]) -> 6 | I44: =IF(OR(Tabulation[[#This Row],[DayNo]]=1,Tabulation[[#This Row],[DayNo]]=7),1,0) -> 0 | J44: =COUNTIF(Holidays,Tabulation[[#This Row],[Date]]) -> 1 | K44: =CONCATENATE(Tabulation[[#This Row],[Holiday]],Tabulation[[#This Row],[Season]],Tabulation[[#This Row],[Weekend]],"-",IF(Tabulation[[#This Row],[Hour]]<10,0,""),C44) -> 1Winter0-16 | L44: =VLOOKUP(Tabulation[[#This Row],[Concat]],Table3[],8) -> 0.28519 | M44: =(Tabulation[[#This Row],[AC System Output (kW)]]*Tabulation[[#This Row],[Rate]]) -> 0.1197860742
A45: 1 | B45: 1 | C45: 17 | D45: 0 | E45: =Tabulation[[#This Row],[AC System Output (W)]]/1000 -> 0 | F45: =VLOOKUP(Tabulation[[#This Row],[Month]],Season,2) -> Winter | G45: =(DATE(2021,Tabulation[[#This Row],[Month]],Tabulation[[#This Row],[Day]])) -> 2021-01-01 | H45: =WEEKDAY(Tabulation[[#This Row],[Date]]) -> 6 | I45: =IF(OR(Tabulation[[#This Row],[DayNo]]=1,Tabulation[[#This Row],[DayNo]]=7),1,0) -> 0 | J45: =COUNTIF(Holidays,Tabulation[[#This Row],[Date]]) -> 1 | K45: =CONCATENATE(Tabulation[[#This Row],[Holiday]],Tabulation[[#This Row],[Season]],Tabulation[[#This Row],[Weekend]],"-",IF(Tabulation[[#This Row],[Hour]]<10,0,""),C45) -> 1Winter0-17 | L45: =VLOOKUP(Tabulation[[#This Row],[Concat]],Table3[],8) -> 0.28519 | M45: =(Tabulation[[#This Row],[AC System Output (kW)]]*Tabulation[[#This Row],[Rate]]) -> 0
A46: 1 | B46: 1 | C46: 18 | D46: 0 | E46: =Tabulation[[#This Row],[AC System Output (W)]]/1000 -> 0 | F46: =VLOOKUP(Tabulation[[#This Row],[Month]],Season,2) -> Winter | G46: =(DATE(2021,Tabulation[[#This Row],[Month]],Tabulation[[#This Row],[Day]])) -> 2021-01-01 | H46: =WEEKDAY(Tabulation[[#This Row],[Date]]) -> 6 | I46: =IF(OR(Tabulation[[#This Row],[DayNo]]=1,Tabulation[[#This Row],[DayNo]]=7),1,0) -> 0 | J46: =COUNTIF(Holidays,Tabulation[[#This Row],[Date]]) -> 1 | K46: =CONCATENATE(Tabulation[[#This Row],[Holiday]],Tabulation[[#This Row],[Season]],Tabulation[[#This Row],[Weekend]],"-",IF(Tabulation[[#This Row],[Hour]]<10,0,""),C46) -> 1Winter0-18 | L46: =VLOOKUP(Tabulation[[#This Row],[Concat]],Table3[],8) -> 0.28519 | M46: =(Tabulation[[#This Row],[AC System Output (kW)]]*Tabulation[[#This Row],[Rate]]) -> 0
A47: 1 | B47: 1 | C47: 19 | D47: 0 | E47: =Tabulation[[#This Row],[AC System Output (W)]]/1000 -> 0 | F47: =VLOOKUP(Tabulation[[#This Row],[Month]],Season,2) -> Winter | G47: =(DATE(2021,Tabulation[[#This Row],[Month]],Tabulation[[#This Row],[Day]])) -> 2021-01-01 | H47: =WEEKDAY(Tabulation[[#This Row],[Date]]) -> 6 | I47: =IF(OR(Tabulation[[#This Row],[DayNo]]=1,Tabulation[[#This Row],[DayNo]]=7),1,0) -> 0 | J47: =COUNTIF(Holidays,Tabulation[[#This Row],[Date]]) -> 1 | K47: =CONCATENATE(Tabulation[[#This Row],[Holiday]],Tabulation[[#This Row],[Season]],Tabulation[[#This Row],[Weekend]],"-",IF(Tabulation[[#This Row],[Hour]]<10,0,""),C47) -> 1Winter0-19 | L47: =VLOOKUP(Tabulation[[#This Row],[Concat]],Table3[],8) -> 0.28519 | M47: =(Tabulation[[#This Row],[AC System Output (kW)]]*Tabulation[[#This Row],[Rate]]) -> 0
A48: 1 | B48: 1 | C48: 20 | D48: 0 | E48: =Tabulation[[#This Row],[AC System Output (W)]]/1000 -> 0 | F48: =VLOOKUP(Tabulation[[#This Row],[Month]],Season,2) -> Winter | G48: =(DATE(2021,Tabulation[[#This Row],[Month]],Tabulation[[#This Row],[Day]])) -> 2021-01-01 | H48: =WEEKDAY(Tabulation[[#This Row],[Date]]) -> 6 | I48: =IF(OR(Tabulation[[#This Row],[DayNo]]=1,Tabulation[[#This Row],[DayNo]]=7),1,0) -> 0 | J48: =COUNTIF(Holidays,Tabulation[[#This Row],[Date]]) -> 1 | K48: =CONCATENATE(Tabulation[[#This Row],[Holiday]],Tabulation[[#This Row],[Season]],Tabulation[[#This Row],[Weekend]],"-",IF(Tabulation[[#This Row],[Hour]]<10,0,""),C48) -> 1Winter0-20 | L48: =VLOOKUP(Tabulation[[#This Row],[Concat]],Table3[],8) -> 0.28519 | M48: =(Tabulation[[#This Row],[AC System Output (kW)]]*Tabulation[[#This Row],[Rate]]) -> 0
A49: 1 | B49: 1 | C49: 21 | D49: 0 | E49: =Tabulation[[#This Row],[AC System Output (W)]]/1000 -> 0 | F49: =VLOOKUP(Tabulation[[#This Row],[Month]],Season,2) -> Winter | G49: =(DATE(2021,Tabulation[[#This Row],[Month]],Tabulation[[#This Row],[Day]])) -> 2021-01-01 | H49: =WEEKDAY(Tabulation[[#This Row],[Date]]) -> 6 | I49: =IF(OR(Tabulation[[#This Row],[DayNo]]=1,Tabulation[[#This Row],[DayNo]]=7),1,0) -> 0 | J49: =COUNTIF(Holidays,Tabulation[[#This Row],[Date]]) -> 1 | K49: =CONCATENATE(Tabulation[[#This Row],[Holiday]],Tabulation[[#This Row],[Season]],Tabulation[[#This Row],[Weekend]],"-",IF(Tabulation[[#This Row],[Hour]]<10,0,""),C49) -> 1Winter0-21 | L49: =VLOOKUP(Tabulation[[#This Row],[Concat]],Table3[],8) -> 0.28519 | M49: =(Tabulation[[#This Row],[AC System Output (kW)]]*Tabulation[[#This Row],[Rate]]) -> 0
A50: 1 | B50: 1 | C50: 22 | D50: 0 | E50: =Tabulation[[#This Row],[AC System Output (W)]]/1000 -> 0 | F50: =VLOOKUP(Tabulation[[#This Row],[Month]],Season,2) -> Winter | G50: =(DATE(2021,Tabulation[[#This Row],[Month]],Tabulation[[#This Row],[Day]])) -> 2021-01-01 | H50: =WEEKDAY(Tabulation[[#This Row],[Date]]) -> 6 | I50: =IF(OR(Tabulation[[#This Row],[DayNo]]=1,Tabulation[[#This Row],[DayNo]]=7),1,0) -> 0 | J50: =COUNTIF(Holidays,Tabulation[[#This Row],[Date]]) -> 1 | K50: =CONCATENATE(Tabulation[[#This Row],[Holiday]],Tabulation[[#This Row],[Season]],Tabulation[[#This Row],[Weekend]],"-",IF(Tabulation[[#This Row],[Hour]]<10,0,""),C50) -> 1Winter0-22 | L50: =VLOOKUP(Tabulation[[#This Row],[Concat]],Table3[],8) -> 0.28519 | M50: =(Tabulation[[#This Row],[AC System Output (kW)]]*Tabulation[[#This Row],[Rate]]) -> 0
A51: 1 | B51: 1 | C51: 23 | D51: 0 | E51: =Tabulation[[#This Row],[AC System Output (W)]]/1000 -> 0 | F51: =VLOOKUP(Tabulation[[#This Row],[Month]],Season,2) -> Winter | G51: =(DATE(2021,Tabulation[[#This Row],[Month]],Tabulation[[#This Row],[Day]])) -> 2021-01-01 | H51: =WEEKDAY(Tabulation[[#This Row],[Date]]) -> 6 | I51: =IF(OR(Tabulation[[#This Row],[DayNo]]=1,Tabulation[[#This Row],[DayNo]]=7),1,0) -> 0 | J51: =COUNTIF(Holidays,Tabulation[[#This Row],[Date]]) -> 1 | K51: =CONCATENATE(Tabulation[[#This Row],[Holiday]],Tabulation[[#This Row],[Season]],Tabulation[[#This Row],[Weekend]],"-",IF(Tabulation[[#This Row],[Hour]]<10,0,""),C51) -> 1Winter0-23 | L51: =VLOOKUP(Tabulation[[#This Row],[Concat]],Table3[],8) -> 0.28519 | M51: =(Tabulation[[#This Row],[AC System Output (kW)]]*Tabulation[[#This Row],[Rate]]) -> 0
A52: 1 | B52: 2 | C52: 0 | D52: 0 | E52: =Tabulation[[#This Row],[AC System Output (W)]]/1000 -> 0 | F52: =VLOOKUP(Tabulation[[#This Row],[Month]],Season,2) -> Winter | G52: =(DATE(2021,Tabulation[[#This Row],[Month]],Tabulation[[#This Row],[Day]])) -> 2021-01-02 | H52: =WEEKDAY(Tabulation[[#This Row],[Date]]) -> 7 | I52: =IF(OR(Tabulation[[#This Row],[DayNo]]=1,Tabulation[[#This Row],[DayNo]]=7),1,0) -> 1 | J52: =COUNTIF(Holidays,Tabulation[[#This Row],[Date]]) -> 0 | K52: =CONCATENATE(Tabulation[[#This Row],[Holiday]],Tabulation[[#This Row],[Season]],Tabulation[[#This Row],[Weekend]],"-",IF(Tabulation[[#This Row],[Hour]]<10,0,""),C52) -> 0Winter1-00 | L52: =VLOOKUP(Tabulation[[#This Row],[Concat]],Table3[],8) -> 0.28519 | M52: =(Tabulation[[#This Row],[AC System Output (kW)]]*Tabulation[[#This Row],[Rate]]) -> 0
A53: 1 | B53: 2 | C53: 1 | D53: 0 | E53: =Tabulation[[#This Row],[AC System Output (W)]]/1000 -> 0 | F53: =VLOOKUP(Tabulation[[#This Row],[Month]],Season,2) -> Winter | G53: =(DATE(2021,Tabulation[[#This Row],[Month]],Tabulation[[#This Row],[Day]])) -> 2021-01-02 | H53: =WEEKDAY(Tabulation[[#This Row],[Date]]) -> 7 | I53: =IF(OR(Tabulation[[#This Row],[DayNo]]=1,Tabulation[[#This Row],[DayNo]]=7),1,0) -> 1 | J53: =COUNTIF(Holidays,Tabulation[[#This Row],[Date]]) -> 0 | K53: =CONCATENATE(Tabulation[[#This Row],[Holiday]],Tabulation[[#This Row],[Season]],Tabulation[[#This Row],[Weekend]],"-",IF(Tabulation[[#This Row],[Hour]]<10,0,""),C53) -> 0Winter1-01 | L53: =VLOOKUP(Tabulation[[#This Row],[Concat]],Table3[],8) -> 0.28519 | M53: =(Tabulation[[#This Row],[AC System Output (kW)]]*Tabulation[[#This Row],[Rate]]) -> 0
A54: 1 | B54: 2 | C54: 2 | D54: 0 | E54: =Tabulation[[#This Row],[AC System Output (W)]]/1000 -> 0 | F54: =VLOOKUP(Tabulation[[#This Row],[Month]],Season,2) -> Winter | G54: =(DATE(2021,Tabulation[[#This Row],[Month]],Tabulation[[#This Row],[Day]])) -> 2021-01-02 | H54: =WEEKDAY(Tabulation[[#This Row],[Date]]) -> 7 | I54: =IF(OR(Tabulation[[#This Row],[DayNo]]=1,Tabulation[[#This Row],[DayNo]]=7),1,0) -> 1 | J54: =COUNTIF(Holidays,Tabulation[[#This Row],[Date]]) -> 0 | K54: =CONCATENATE(Tabulation[[#This Row],[Holiday]],Tabulation[[#This Row],[Season]],Tabulation[[#This Row],[Weekend]],"-",IF(Tabulation[[#This Row],[Hour]]<10,0,""),C54) -> 0Winter1-02 | L54: =VLOOKUP(Tabulation[[#This Row],[Concat]],Table3[],8) -> 0.28519 | M54: =(Tabulation[[#This Row],[AC System Output (kW)]]*Tabulation[[#This Row],[Rate]]) -> 0
A55: 1 | B55: 2 | C55: 3 | D55: 0 | E55: =Tabulation[[#This Row],[AC System Output (W)]]/1000 -> 0 | F55: =VLOOKUP(Tabulation[[#This Row],[Month]],Season,2) -> Winter | G55: =(DATE(2021,Tabulation[[#This Row],[Month]],Tabulation[[#This Row],[Day]])) -> 2021-01-02 | H55: =WEEKDAY(Tabulation[[#This Row],[Date]]) -> 7 | I55: =IF(OR(Tabulation[[#This Row],[DayNo]]=1,Tabulation[[#This Row],[DayNo]]=7),1,0) -> 1 | J55: =COUNTIF(Holidays,Tabulation[[#This Row],[Date]]) -> 0 | K55: =CONCATENATE(Tabulation[[#This Row],[Holiday]],Tabulation[[#This Row],[Season]],Tabulation[[#This Row],[Weekend]],"-",IF(Tabulation[[#This Row],[Hour]]<10,0,""),C55) -> 0Winter1-03 | L55: =VLOOKUP(Tabulation[[#This Row],[Concat]],Table3[],8) -> 0.28519 | M55: =(Tabulation[[#This Row],[AC System Output (kW)]]*Tabulation[[#This Row],[Rate]]) -> 0
A56: 1 | B56: 2 | C56: 4 | D56: 0 | E56: =Tabulation[[#This Row],[AC System Output (W)]]/1000 -> 0 | F56: =VLOOKUP(Tabulation[[#This Row],[Month]],Season,2) -> Winter | G56: =(DATE(2021,Tabulation[[#This Row],[Month]],Tabulation[[#This Row],[Day]])) -> 2021-01-02 | H56: =WEEKDAY(Tabulation[[#This Row],[Date]]) -> 7 | I56: =IF(OR(Tabulation[[#This Row],[DayNo]]=1,Tabulation[[#This Row],[DayNo]]=7),1,0) -> 1 | J56: =COUNTIF(Holidays,Tabulation[[#This Row],[Date]]) -> 0 | K56: =CONCATENATE(Tabulation[[#This Row],[Holiday]],Tabulation[[#This Row],[Season]],Tabulation[[#This Row],[Weekend]],"-",IF(Tabulation[[#This Row],[Hour]]<10,0,""),C56) -> 0Winter1-04 | L56: =VLOOKUP(Tabulation[[#This Row],[Concat]],Table3[],8) -> 0.28519 | M56: =(Tabulation[[#This Row],[AC System Output (kW)]]*Tabulation[[#This Row],[Rate]]) -> 0
A57: 1 | B57: 2 | C57: 5 | D57: 0 | E57: =Tabulation[[#This Row],[AC System Output (W)]]/1000 -> 0 | F57: =VLOOKUP(Tabulation[[#This Row],[Month]],Season,2) -> Winter | G57: =(DATE(2021,Tabulation[[#This Row],[Month]],Tabulation[[#This Row],[Day]])) -> 2021-01-02 | H57: =WEEKDAY(Tabulation[[#This Row],[Date]]) -> 7 | I57: =IF(OR(Tabulation[[#This Row],[DayNo]]=1,Tabulation[[#This Row],[DayNo]]=7),1,0) -> 1 | J57: =COUNTIF(Holidays,Tabulation[[#This Row],[Date]]) -> 0 | K57: =CONCATENATE(Tabulation[[#This Row],[Holiday]],Tabulation[[#This Row],[Season]],Tabulation[[#This Row],[Weekend]],"-",IF(Tabulation[[#This Row],[Hour]]<10,0,""),C57) -> 0Winter1-05 | L57: =VLOOKUP(Tabulation[[#This Row],[Concat]],Table3[],8) -> 0.28519 | M57: =(Tabulation[[#This Row],[AC System Output (kW)]]*Tabulation[[#This Row],[Rate]]) -> 0
A58: 1 | B58: 2 | C58: 6 | D58: 0 | E58: =Tabulation[[#This Row],[AC System Output (W)]]/1000 -> 0 | F58: =VLOOKUP(Tabulation[[#This Row],[Month]],Season,2) -> Winter | G58: =(DATE(2021,Tabulation[[#This Row],[Month]],Tabulation[[#This Row],[Day]])) -> 2021-01-02 | H58: =WEEKDAY(Tabulation[[#This Row],[Date]]) -> 7 | I58: =IF(OR(Tabulation[[#This Row],[DayNo]]=1,Tabulation[[#This Row],[DayNo]]=7),1,0) -> 1 | J58: =COUNTIF(Holidays,Tabulation[[#This Row],[Date]]) -> 0 | K58: =CONCATENATE(Tabulation[[#This Row],[Holiday]],Tabulation[[#This Row],[Season]],Tabulation[[#This Row],[Weekend]],"-",IF(Tabulation[[#This Row],[Hour]]<10,0,""),C58) -> 0Winter1-06 | L58: =VLOOKUP(Tabulation[[#This Row],[Concat]],Table3[],8) -> 0.28519 | M58: =(Tabulation[[#This Row],[AC System Output (kW)]]*Tabulation[[#This Row],[Rate]]) -> 0
A59: 1 | B59: 2 | C59: 7 | D59: 32.309 | E59: =Tabulation[[#This Row],[AC System Output (W)]]/1000 -> 0.032309 | F59: =VLOOKUP(Tabulation[[#This Row],[Month]],Season,2) -> Winter | G59: =(DATE(2021,Tabulation[[#This Row],[Month]],Tabulation[[#This Row],[Day]])) -> 2021-01-02 | H59: =WEEKDAY(Tabulation[[#This Row],[Date]]) -> 7 | I59: =IF(OR(Tabulation[[#This Row],[DayNo]]=1,Tabulation[[#This Row],[DayNo]]=7),1,0) -> 1 | J59: =COUNTIF(Holidays,Tabulation[[#This Row],[Date]]) -> 0 | K59: =CONCATENATE(Tabulation[[#This Row],[Holiday]],Tabulation[[#This Row],[Season]],Tabulation[[#This Row],[Weekend]],"-",IF(Tabulation[[#This Row],[Hour]]<10,0,""),C59) -> 0Winter1-07 | L59: =VLOOKUP(Tabulation[[#This Row],[Concat]],Table3[],8) -> 0.28519 | M59: =(Tabulation[[#This Row],[AC System Output (kW)]]*Tabulation[[#This Row],[Rate]]) -> 0.00921420371
A60: 1 | B60: 2 | C60: 8 | D60: 461.854 | E60: =Tabulation[[#This Row],[AC System Output (W)]]/1000 -> 0.461854 | F60: =VLOOKUP(Tabulation[[#This Row],[Month]],Season,2) -> Winter | G60: =(DATE(2021,Tabulation[[#This Row],[Month]],Tabulation[[#This Row],[Day]])) -> 2021-01-02 | H60: =WEEKDAY(Tabulation[[#This Row],[Date]]) -> 7 | I60: =IF(OR(Tabulation[[#This Row],[DayNo]]=1,Tabulation[[#This Row],[DayNo]]=7),1,0) -> 1 | J60: =COUNTIF(Holidays,Tabulation[[#This Row],[Date]]) -> 0 | K60: =CONCATENATE(Tabulation[[#This Row],[Holiday]],Tabulation[[#This Row],[Season]],Tabulation[[#This Row],[Weekend]],"-",IF(Tabulation[[#This Row],[Hour]]<10,0,""),C60) -> 0Winter1-08 | L60: =VLOOKUP(Tabulation[[#This Row],[Concat]],Table3[],8) -> 0.28519 | M60: =(Tabulation[[#This Row],[AC System Output (kW)]]*Tabulation[[#This Row],[Rate]]) -> 0.1317161423
A61: 1 | B61: 2 | C61: 9 | D61: 1870.465 | E61: =Tabulation[[#This Row],[AC System Output (W)]]/1000 -> 1.870465 | F61: =VLOOKUP(Tabulation[[#This Row],[Month]],Season,2) -> Winter | G61: =(DATE(2021,Tabulation[[#This Row],[Month]],Tabulation[[#This Row],[Day]])) -> 2021-01-02 | H61: =WEEKDAY(Tabulation[[#This Row],[Date]]) -> 7 | I61: =IF(OR(Tabulation[[#This Row],[DayNo]]=1,Tabulation[[#This Row],[DayNo]]=7),1,0) -> 1 | J61: =COUNTIF(Holidays,Tabulation[[#This Row],[Date]]) -> 0 | K61: =CONCATENATE(Tabulation[[#This Row],[Holiday]],Tabulation[[#This Row],[Season]],Tabulation[[#This Row],[Weekend]],"-",IF(Tabulation[[#This Row],[Hour]]<10,0,""),C61) -> 0Winter1-09 | L61: =VLOOKUP(Tabulation[[#This Row],[Concat]],Table3[],8) -> 0.28519 | M61: =(Tabulation[[#This Row],[AC System Output (kW)]]*Tabulation[[#This Row],[Rate]]) -> 0.5334379133
A62: 1 | B62: 2 | C62: 10 | D62: 2333.471 | E62: =Tabulation[[#This Row],[AC System Output (W)]]/1000 -> 2.333471 | F62: =VLOOKUP(Tabulation[[#This Row],[Month]],Season,2) -> Winter | G62: =(DATE(2021,Tabulation[[#This Row],[Month]],Tabulation[[#This Row],[Day]])) -> 2021-01-02 | H62: =WEEKDAY(Tabulation[[#This Row],[Date]]) -> 7 | I62: =IF(OR(Tabulation[[#This Row],[DayNo]]=1,Tabulation[[#This Row],[DayNo]]=7),1,0) -> 1 | J62: =COUNTIF(Holidays,Tabulation[[#This Row],[Date]]) -> 0 | K62: =CONCATENATE(Tabulation[[#This Row],[Holiday]],Tabulation[[#This Row],[Season]],Tabulation[[#This Row],[Weekend]],"-",IF(Tabulation[[#This Row],[Hour]]<10,0,""),C62) -> 0Winter1-10 | L62: =VLOOKUP(Tabulation[[#This Row],[Concat]],Table3[],8) -> 0.28519 | M62: =(Tabulation[[#This Row],[AC System Output (kW)]]*Tabulation[[#This Row],[Rate]]) -> 0.6654825945
A63: 1 | B63: 2 | C63: 11 | D63: 2516.802 | E63: =Tabulation[[#This Row],[AC System Output (W)]]/1000 -> 2.516802 | F63: =VLOOKUP(Tabulation[[#This Row],[Month]],Season,2) -> Winter | G63: =(DATE(2021,Tabulation[[#This Row],[Month]],Tabulation[[#This Row],[Day]])) -> 2021-01-02 | H63: =WEEKDAY(Tabulation[[#This Row],[Date]]) -> 7 | I63: =IF(OR(Tabulation[[#This Row],[DayNo]]=1,Tabulation[[#This Row],[DayNo]]=7),1,0) -> 1 | J63: =COUNTIF(Holidays,Tabulation[[#This Row],[Date]]) -> 0 | K63: =CONCATENATE(Tabulation[[#This Row],[Holiday]],Tabulation[[#This Row],[Season]],Tabulation[[#This Row],[Weekend]],"-",IF(Tabulation[[#This Row],[Hour]]<10,0,""),C63) -> 0Winter1-11 | L63: =VLOOKUP(Tabulation[[#This Row],[Concat]],Table3[],8) -> 0.28519 | M63: =(Tabulation[[#This Row],[AC System Output (kW)]]*Tabulation[[#This Row],[Rate]]) -> 0.7177667624
A64: 1 | B64: 2 | C64: 12 | D64: 2522.011 | E64: =Tabulation[[#This Row],[AC System Output (W)]]/1000 -> 2.522011 | F64: =VLOOKUP(Tabulation[[#This Row],[Month]],Season,2) -> Winter | G64: =(DATE(2021,Tabulation[[#This Row],[Month]],Tabulation[[#This Row],[Day]])) -> 2021-01-02 | H64: =WEEKDAY(Tabulation[[#This Row],[Date]]) -> 7 | I64: =IF(OR(Tabulation[[#This Row],[DayNo]]=1,Tabulation[[#This Row],[DayNo]]=7),1,0) -> 1 | J64: =COUNTIF(Holidays,Tabulation[[#This Row],[Date]]) -> 0 | K64: =CONCATENATE(Tabulation[[#This Row],[Holiday]],Tabulation[[#This Row],[Season]],Tabulation[[#This Row],[Weekend]],"-",IF(Tabulation[[#This Row],[Hour]]<10,0,""),C64) -> 0Winter1-12 | L64: =VLOOKUP(Tabulation[[#This Row],[Concat]],Table3[],8) -> 0.28519 | M64: =(Tabulation[[#This Row],[AC System Output (kW)]]*Tabulation[[#This Row],[Rate]]) -> 0.7192523171
A65: 1 | B65: 2 | C65: 13 | D65: 2267.97 | E65: =Tabulation[[#This Row],[AC System Output (W)]]/1000 -> 2.26797 | F65: =VLOOKUP(Tabulation[[#This Row],[Month]],Season,2) -> Winter | G65: =(DATE(2021,Tabulation[[#This Row],[Month]],Tabulation[[#This Row],[Day]])) -> 2021-01-02 | H65: =WEEKDAY(Tabulation[[#This Row],[Date]]) -> 7 | I65: =IF(OR(Tabulation[[#This Row],[DayNo]]=1,Tabulation[[#This Row],[DayNo]]=7),1,0) -> 1 | J65: =COUNTIF(Holidays,Tabulation[[#This Row],[Date]]) -> 0 | K65: =CONCATENATE(Tabulation[[#This Row],[Holiday]],Tabulation[[#This Row],[Season]],Tabulation[[#This Row],[Weekend]],"-",IF(Tabulation[[#This Row],[Hour]]<10,0,""),C65) -> 0Winter1-13 | L65: =VLOOKUP(Tabulation[[#This Row],[Concat]],Table3[],8) -> 0.28519 | M65: =(Tabulation[[#This Row],[AC System Output (kW)]]*Tabulation[[#This Row],[Rate]]) -> 0.6468023643
A66: 1 | B66: 2 | C66: 14 | D66: 1806.717 | E66: =Tabulation[[#This Row],[AC System Output (W)]]/1000 -> 1.806717 | F66: =VLOOKUP(Tabulation[[#This Row],[Month]],Season,2) -> Winter | G66: =(DATE(2021,Tabulation[[#This Row],[Month]],Tabulation[[#This Row],[Day]])) -> 2021-01-02 | H66: =WEEKDAY(Tabulation[[#This Row],[Date]]) -> 7 | I66: =IF(OR(Tabulation[[#This Row],[DayNo]]=1,Tabulation[[#This Row],[DayNo]]=7),1,0) -> 1 | J66: =COUNTIF(Holidays,Tabulation[[#This Row],[Date]]) -> 0 | K66: =CONCATENATE(Tabulation[[#This Row],[Holiday]],Tabulation[[#This Row],[Season]],Tabulation[[#This Row],[Weekend]],"-",IF(Tabulation[[#This Row],[Hour]]<10,0,""),C66) -> 0Winter1-14 | L66: =VLOOKUP(Tabulation[[#This Row],[Concat]],Table3[],8) -> 0.28519 | M66: =(Tabulation[[#This Row],[AC System Output (kW)]]*Tabulation[[#This Row],[Rate]]) -> 0.5152576212
A67: 1 | B67: 2 | C67: 15 | D67: 962.237 | E67: =Tabulation[[#This Row],[AC System Output (W)]]/1000 -> 0.962237 | F67: =VLOOKUP(Tabulation[[#This Row],[Month]],Season,2) -> Winter | G67: =(DATE(2021,Tabulation[[#This Row],[Month]],Tabulation[[#This Row],[Day]])) -> 2021-01-02 | H67: =WEEKDAY(Tabulation[[#This Row],[Date]]) -> 7 | I67: =IF(OR(Tabulation[[#This Row],[DayNo]]=1,Tabulation[[#This Row],[DayNo]]=7),1,0) -> 1 | J67: =COUNTIF(Holidays,Tabulation[[#This Row],[Date]]) -> 0 | K67: =CONCATENATE(Tabulation[[#This Row],[Holiday]],Tabulation[[#This Row],[Season]],Tabulation[[#This Row],[Weekend]],"-",IF(Tabulation[[#This Row],[Hour]]<10,0,""),C67) -> 0Winter1-15 | L67: =VLOOKUP(Tabulation[[#This Row],[Concat]],Table3[],8) -> 0.28519 | M67: =(Tabulation[[#This Row],[AC System Output (kW)]]*Tabulation[[#This Row],[Rate]]) -> 0.27442037
A68: 1 | B68: 2 | C68: 16 | D68: 315.877 | E68: =Tabulation[[#This Row],[AC System Output (W)]]/1000 -> 0.315877 | F68: =VLOOKUP(Tabulation[[#This Row],[Month]],Season,2) -> Winter | G68: =(DATE(2021,Tabulation[[#This Row],[Month]],Tabulation[[#This Row],[Day]])) -> 2021-01-02 | H68: =WEEKDAY(Tabulation[[#This Row],[Date]]) -> 7 | I68: =IF(OR(Tabulation[[#This Row],[DayNo]]=1,Tabulation[[#This Row],[DayNo]]=7),1,0) -> 1 | J68: =COUNTIF(Holidays,Tabulation[[#This Row],[Date]]) -> 0 | K68: =CONCATENATE(Tabulation[[#This Row],[Holiday]],Tabulation[[#This Row],[Season]],Tabulation[[#This Row],[Weekend]],"-",IF(Tabulation[[#This Row],[Hour]]<10,0,""),C68) -> 0Winter1-16 | L68: =VLOOKUP(Tabulation[[#This Row],[Concat]],Table3[],8) -> 0.28519 | M68: =(Tabulation[[#This Row],[AC System Output (kW)]]*Tabulation[[#This Row],[Rate]]) -> 0.09008496163
A69: 1 | B69: 2 | C69: 17 | D69: 0 | E69: =Tabulation[[#This Row],[AC System Output (W)]]/1000 -> 0 | F69: =VLOOKUP(Tabulation[[#This Row],[Month]],Season,2) -> Winter | G69: =(DATE(2021,Tabulation[[#This Row],[Month]],Tabulation[[#This Row],[Day]])) -> 2021-01-02 | H69: =WEEKDAY(Tabulation[[#This Row],[Date]]) -> 7 | I69: =IF(OR(Tabulation[[#This Row],[DayNo]]=1,Tabulation[[#This Row],[DayNo]]=7),1,0) -> 1 | J69: =COUNTIF(Holidays,Tabulation[[#This Row],[Date]]) -> 0 | K69: =CONCATENATE(Tabulation[[#This Row],[Holiday]],Tabulation[[#This Row],[Season]],Tabulation[[#This Row],[Weekend]],"-",IF(Tabulation[[#This Row],[Hour]]<10,0,""),C69) -> 0Winter1-17 | L69: =VLOOKUP(Tabulation[[#This Row],[Concat]],Table3[],8) -> 0.28519 | M69: =(Tabulation[[#This Row],[AC System Output (kW)]]*Tabulation[[#This Row],[Rate]]) -> 0
A70: 1 | B70: 2 | C70: 18 | D70: 0 | E70: =Tabulation[[#This Row],[AC System Output (W)]]/1000 -> 0 | F70: =VLOOKUP(Tabulation[[#This Row],[Month]],Season,2) -> Winter | G70: =(DATE(2021,Tabulation[[#This Row],[Month]],Tabulation[[#This Row],[Day]])) -> 2021-01-02 | H70: =WEEKDAY(Tabulation[[#This Row],[Date]]) -> 7 | I70: =IF(OR(Tabulation[[#This Row],[DayNo]]=1,Tabulation[[#This Row],[DayNo]]=7),1,0) -> 1 | J70: =COUNTIF(Holidays,Tabulation[[#This Row],[Date]]) -> 0 | K70: =CONCATENATE(Tabulation[[#This Row],[Holiday]],Tabulation[[#This Row],[Season]],Tabulation[[#This Row],[Weekend]],"-",IF(Tabulation[[#This Row],[Hour]]<10,0,""),C70) -> 0Winter1-18 | L70: =VLOOKUP(Tabulation[[#This Row],[Concat]],Table3[],8) -> 0.28519 | M70: =(Tabulation[[#This Row],[AC System Output (kW)]]*Tabulation[[#This Row],[Rate]]) -> 0
A71: 1 | B71: 2 | C71: 19 | D71: 0 | E71: =Tabulation[[#This Row],[AC System Output (W)]]/1000 -> 0 | F71: =VLOOKUP(Tabulation[[#This Row],[Month]],Season,2) -> Winter | G71: =(DATE(2021,Tabulation[[#This Row],[Month]],Tabulation[[#This Row],[Day]])) -> 2021-01-02 | H71: =WEEKDAY(Tabulation[[#This Row],[Date]]) -> 7 | I71: =IF(OR(Tabulation[[#This Row],[DayNo]]=1,Tabulation[[#This Row],[DayNo]]=7),1,0) -> 1 | J71: =COUNTIF(Holidays,Tabulation[[#This Row],[Date]]) -> 0 | K71: =CONCATENATE(Tabulation[[#This Row],[Holiday]],Tabulation[[#This Row],[Season]],Tabulation[[#This Row],[Weekend]],"-",IF(Tabulation[[#This Row],[Hour]]<10,0,""),C71) -> 0Winter1-19 | L71: =VLOOKUP(Tabulation[[#This Row],[Concat]],Table3[],8) -> 0.28519 | M71: =(Tabulation[[#This Row],[AC System Output (kW)]]*Tabulation[[#This Row],[Rate]]) -> 0
A72: 1 | B72: 2 | C72: 20 | D72: 0 | E72: =Tabulation[[#This Row],[AC System Output (W)]]/1000 -> 0 | F72: =VLOOKUP(Tabulation[[#This Row],[Month]],Season,2) -> Winter | G72: =(DATE(2021,Tabulation[[#This Row],[Month]],Tabulation[[#This Row],[Day]])) -> 2021-01-02 | H72: =WEEKDAY(Tabulation[[#This Row],[Date]]) -> 7 | I72: =IF(OR(Tabulation[[#This Row],[DayNo]]=1,Tabulation[[#This Row],[DayNo]]=7),1,0) -> 1 | J72: =COUNTIF(Holidays,Tabulation[[#This Row],[Date]]) -> 0 | K72: =CONCATENATE(Tabulation[[#This Row],[Holiday]],Tabulation[[#This Row],[Season]],Tabulation[[#This Row],[Weekend]],"-",IF(Tabulation[[#This Row],[Hour]]<10,0,""),C72) -> 0Winter1-20 | L72: =VLOOKUP(Tabulation[[#This Row],[Concat]],Table3[],8) -> 0.28519 | M72: =(Tabulation[[#This Row],[AC System Output (kW)]]*Tabulation[[#This Row],[Rate]]) -> 0
A73: 1 | B73: 2 | C73: 21 | D73: 0 | E73: =Tabulation[[#This Row],[AC System Output (W)]]/1000 -> 0 | F73: =VLOOKUP(Tabulation[[#This Row],[Month]],Season,2) -> Winter | G73: =(DATE(2021,Tabulation[[#This Row],[Month]],Tabulation[[#This Row],[Day]])) -> 2021-01-02 | H73: =WEEKDAY(Tabulation[[#This Row],[Date]]) -> 7 | I73: =IF(OR(Tabulation[[#This Row],[DayNo]]=1,Tabulation[[#This Row],[DayNo]]=7),1,0) -> 1 | J73: =COUNTIF(Holidays,Tabulation[[#This Row],[Date]]) -> 0 | K73: =CONCATENATE(Tabulation[[#This Row],[Holiday]],Tabulation[[#This Row],[Season]],Tabulation[[#This Row],[Weekend]],"-",IF(Tabulation[[#This Row],[Hour]]<10,0,""),C73) -> 0Winter1-21 | L73: =VLOOKUP(Tabulation[[#This Row],[Concat]],Table3[],8) -> 0.28519 | M73: =(Tabulation[[#This Row],[AC System Output (kW)]]*Tabulation[[#This Row],[Rate]]) -> 0
A74: 1 | B74: 2 | C74: 22 | D74: 0 | E74: =Tabulation[[#This Row],[AC System Output (W)]]/1000 -> 0 | F74: =VLOOKUP(Tabulation[[#This Row],[Month]],Season,2) -> Winter | G74: =(DATE(2021,Tabulation[[#This Row],[Month]],Tabulation[[#This Row],[Day]])) -> 2021-01-02 | H74: =WEEKDAY(Tabulation[[#This Row],[Date]]) -> 7 | I74: =IF(OR(Tabulation[[#This Row],[DayNo]]=1,Tabulation[[#This Row],[DayNo]]=7),1,0) -> 1 | J74: =COUNTIF(Holidays,Tabulation[[#This Row],[Date]]) -> 0 | K74: =CONCATENATE(Tabulation[[#This Row],[Holiday]],Tabulation[[#This Row],[Season]],Tabulation[[#This Row],[Weekend]],"-",IF(Tabulation[[#This Row],[Hour]]<10,0,""),C74) -> 0Winter1-22 | L74: =VLOOKUP(Tabulation[[#This Row],[Concat]],Table3[],8) -> 0.28519 | M74: =(Tabulation[[#This Row],[AC System Output (kW)]]*Tabulation[[#This Row],[Rate]]) -> 0
A75: 1 | B75: 2 | C75: 23 | D75: 0 | E75: =Tabulation[[#This Row],[AC System Output (W)]]/1000 -> 0 | F75: =VLOOKUP(Tabulation[[#This Row],[Month]],Season,2) -> Winter | G75: =(DATE(2021,Tabulation[[#This Row],[Month]],Tabulation[[#This Row],[Day]])) -> 2021-01-02 | H75: =WEEKDAY(Tabulation[[#This Row],[Date]]) -> 7 | I75: =IF(OR(Tabulation[[#This Row],[DayNo]]=1,Tabulation[[#This Row],[DayNo]]=7),1,0) -> 1 | J75: =COUNTIF(Holidays,Tabulation[[#This Row],[Date]]) -> 0 | K75: =CONCATENATE(Tabulation[[#This Row],[Holiday]],Tabulation[[#This Row],[Season]],Tabulation[[#This Row],[Weekend]],"-",IF(Tabulation[[#This Row],[Hour]]<10,0,""),C75) -> 0Winter1-23 | L75: =VLOOKUP(Tabulation[[#This Row],[Concat]],Table3[],8) -> 0.28519 | M75: =(Tabulation[[#This Row],[AC System Output (kW)]]*Tabulation[[#This Row],[Rate]]) -> 0
A76: 1 | B76: 3 | C76: 0 | D76: 0 | E76: =Tabulation[[#This Row],[AC System Output (W)]]/1000 -> 0 | F76: =VLOOKUP(Tabulation[[#This Row],[Month]],Season,2) -> Winter | G76: =(DATE(2021,Tabulation[[#This Row],[Month]],Tabulation[[#This Row],[Day]])) -> 2021-01-03 | H76: =WEEKDAY(Tabulation[[#This Row],[Date]]) -> 1 | I76: =IF(OR(Tabulation[[#This Row],[DayNo]]=1,Tabulation[[#This Row],[DayNo]]=7),1,0) -> 1 | J76: =COUNTIF(Holidays,Tabulation[[#This Row],[Date]]) -> 0 | K76: =CONCATENATE(Tabulation[[#This Row],[Holiday]],Tabulation[[#This Row],[Season]],Tabulation[[#This Row],[Weekend]],"-",IF(Tabulation[[#This Row],[Hour]]<10,0,""),C76) -> 0Winter1-00 | L76: =VLOOKUP(Tabulation[[#This Row],[Concat]],Table3[],8) -> 0.28519 | M76: =(Tabulation[[#This Row],[AC System Output (kW)]]*Tabulation[[#This Row],[Rate]]) -> 0
A77: 1 | B77: 3 | C77: 1 | D77: 0 | E77: =Tabulation[[#This Row],[AC System Output (W)]]/1000 -> 0 | F77: =VLOOKUP(Tabulation[[#This Row],[Month]],Season,2) -> Winter | G77: =(DATE(2021,Tabulation[[#This Row],[Month]],Tabulation[[#This Row],[Day]])) -> 2021-01-03 | H77: =WEEKDAY(Tabulation[[#This Row],[Date]]) -> 1 | I77: =IF(OR(Tabulation[[#This Row],[DayNo]]=1,Tabulation[[#This Row],[DayNo]]=7),1,0) -> 1 | J77: =COUNTIF(Holidays,Tabulation[[#This Row],[Date]]) -> 0 | K77: =CONCATENATE(Tabulation[[#This Row],[Holiday]],Tabulation[[#This Row],[Season]],Tabulation[[#This Row],[Weekend]],"-",IF(Tabulation[[#This Row],[Hour]]<10,0,""),C77) -> 0Winter1-01 | L77: =VLOOKUP(Tabulation[[#This Row],[Concat]],Table3[],8) -> 0.28519 | M77: =(Tabulation[[#This Row],[AC System Output (kW)]]*Tabulation[[#This Row],[Rate]]) -> 0
A78: 1 | B78: 3 | C78: 2 | D78: 0 | E78: =Tabulation[[#This Row],[AC System Output (W)]]/1000 -> 0 | F78: =VLOOKUP(Tabulation[[#This Row],[Month]],Season,2) -> Winter | G78: =(DATE(2021,Tabulation[[#This Row],[Month]],Tabulation[[#This Row],[Day]])) -> 2021-01-03 | H78: =WEEKDAY(Tabulation[[#This Row],[Date]]) -> 1 | I78: =IF(OR(Tabulation[[#This Row],[DayNo]]=1,Tabulation[[#This Row],[DayNo]]=7),1,0) -> 1 | J78: =COUNTIF(Holidays,Tabulation[[#This Row],[Date]]) -> 0 | K78: =CONCATENATE(Tabulation[[#This Row],[Holiday]],Tabulation[[#This Row],[Season]],Tabulation[[#This Row],[Weekend]],"-",IF(Tabulation[[#This Row],[Hour]]<10,0,""),C78) -> 0Winter1-02 | L78: =VLOOKUP(Tabulation[[#This Row],[Concat]],Table3[],8) -> 0.28519 | M78: =(Tabulation[[#This Row],[AC System Output (kW)]]*Tabulation[[#This Row],[Rate]]) -> 0
A79: 1 | B79: 3 | C79: 3 | D79: 0 | E79: =Tabulation[[#This Row],[AC System Output (W)]]/1000 -> 0 | F79: =VLOOKUP(Tabulation[[#This Row],[Month]],Season,2) -> Winter | G79: =(DATE(2021,Tabulation[[#This Row],[Month]],Tabulation[[#This Row],[Day]])) -> 2021-01-03 | H79: =WEEKDAY(Tabulation[[#This Row],[Date]]) -> 1 | I79: =IF(OR(Tabulation[[#This Row],[DayNo]]=1,Tabulation[[#This Row],[DayNo]]=7),1,0) -> 1 | J79: =COUNTIF(Holidays,Tabulation[[#This Row],[Date]]) -> 0 | K79: =CONCATENATE(Tabulation[[#This Row],[Holiday]],Tabulation[[#This Row],[Season]],Tabulation[[#This Row],[Weekend]],"-",IF(Tabulation[[#This Row],[Hour]]<10,0,""),C79) -> 0Winter1-03 | L79: =VLOOKUP(Tabulation[[#This Row],[Concat]],Table3[],8) -> 0.28519 | M79: =(Tabulation[[#This Row],[AC System Output (kW)]]*Tabulation[[#This Row],[Rate]]) -> 0
A80: 1 | B80: 3 | C80: 4 | D80: 0 | E80: =Tabulation[[#This Row],[AC System Output (W)]]/1000 -> 0 | F80: =VLOOKUP(Tabulation[[#This Row],[Month]],Season,2) -> Winter | G80: =(DATE(2021,Tabulation[[#This Row],[Month]],Tabulation[[#This Row],[Day]])) -> 2021-01-03 | H80: =WEEKDAY(Tabulation[[#This Row],[Date]]) -> 1 | I80: =IF(OR(Tabulation[[#This Row],[DayNo]]=1,Tabulation[[#This Row],[DayNo]]=7),1,0) -> 1 | J80: =COUNTIF(Holidays,Tabulation[[#This Row],[Date]]) -> 0 | K80: =CONCATENATE(Tabulation[[#This Row],[Holiday]],Tabulation[[#This Row],[Season]],Tabulation[[#This Row],[Weekend]],"-",IF(Tabulation[[#This Row],[Hour]]<10,0,""),C80) -> 0Winter1-04 | L80: =VLOOKUP(Tabulation[[#This Row],[Concat]],Table3[],8) -> 0.28519 | M80: =(Tabulation[[#This Row],[AC System Output (kW)]]*Tabulation[[#This Row],[Rate]]) -> 0
A81: 1 | B81: 3 | C81: 5 | D81: 0 | E81: =Tabulation[[#This Row],[AC System Output (W)]]/1000 -> 0 | F81: =VLOOKUP(Tabulation[[#This Row],[Month]],Season,2) -> Winter | G81: =(DATE(2021,Tabulation[[#This Row],[Month]],Tabulation[[#This Row],[Day]])) -> 2021-01-03 | H81: =WEEKDAY(Tabulation[[#This Row],[Date]]) -> 1 | I81: =IF(OR(Tabulation[[#This Row],[DayNo]]=1,Tabulation[[#This Row],[DayNo]]=7),1,0) -> 1 | J81: =COUNTIF(Holidays,Tabulation[[#This Row],[Date]]) -> 0 | K81: =CONCATENATE(Tabulation[[#This Row],[Holiday]],Tabulation[[#This Row],[Season]],Tabulation[[#This Row],[Weekend]],"-",IF(Tabulation[[#This Row],[Hour]]<10,0,""),C81) -> 0Winter1-05 | L81: =VLOOKUP(Tabulation[[#This Row],[Concat]],Table3[],8) -> 0.28519 | M81: =(Tabulation[[#This Row],[AC System Output (kW)]]*Tabulation[[#This Row],[Rate]]) -> 0
A82: 1 | B82: 3 | C82: 6 | D82: 0 | E82: =Tabulation[[#This Row],[AC System Output (W)]]/1000 -> 0 | F82: =VLOOKUP(Tabulation[[#This Row],[Month]],Season,2) -> Winter | G82: =(DATE(2021,Tabulation[[#This Row],[Month]],Tabulation[[#This Row],[Day]])) -> 2021-01-03 | H82: =WEEKDAY(Tabulation[[#This Row],[Date]]) -> 1 | I82: =IF(OR(Tabulation[[#This Row],[DayNo]]=1,Tabulation[[#This Row],[DayNo]]=7),1,0) -> 1 | J82: =COUNTIF(Holidays,Tabulation[[#This Row],[Date]]) -> 0 | K82: =CONCATENATE(Tabulation[[#This Row],[Holiday]],Tabulation[[#This Row],[Season]],Tabulation[[#This Row],[Weekend]],"-",IF(Tabulation[[#This Row],[Hour]]<10,0,""),C82) -> 0Winter1-06 | L82: =VLOOKUP(Tabulation[[#This Row],[Concat]],Table3[],8) -> 0.28519 | M82: =(Tabulation[[#This Row],[AC System Output (kW)]]*Tabulation[[#This Row],[Rate]]) -> 0
A83: 1 | B83: 3 | C83: 7 | D83: 38.606 | E83: =Tabulation[[#This Row],[AC System Output (W)]]/1000 -> 0.038606 | F83: =VLOOKUP(Tabulation[[#This Row],[Month]],Season,2) -> Winter | G83: =(DATE(2021,Tabulation[[#This Row],[Month]],Tabulation[[#This Row],[Day]])) -> 2021-01-03 | H83: =WEEKDAY(Tabulation[[#This Row],[Date]]) -> 1 | I83: =IF(OR(Tabulation[[#This Row],[DayNo]]=1,Tabulation[[#This Row],[DayNo]]=7),1,0) -> 1 | J83: =COUNTIF(Holidays,Tabulation[[#This Row],[Date]]) -> 0 | K83: =CONCATENATE(Tabulation[[#This Row],[Holiday]],Tabulation[[#This Row],[Season]],Tabulation[[#This Row],[Weekend]],"-",IF(Tabulation[[#This Row],[Hour]]<10,0,""),C83) -> 0Winter1-07 | L83: =VLOOKUP(Tabulation[[#This Row],[Concat]],Table3[],8) -> 0.28519 | M83: =(Tabulation[[#This Row],[AC System Output (kW)]]*Tabulation[[#This Row],[Rate]]) -> 0.01101004514
A84: 1 | B84: 3 | C84: 8 | D84: 548.34 | E84: =Tabulation[[#This Row],[AC System Output (W)]]/1000 -> 0.54834 | F84: =VLOOKUP(Tabulation[[#This Row],[Month]],Season,2) -> Winter | G84: =(DATE(2021,Tabulation[[#This Row],[Month]],Tabulation[[#This Row],[Day]])) -> 2021-01-03 | H84: =WEEKDAY(Tabulation[[#This Row],[Date]]) -> 1 | I84: =IF(OR(Tabulation[[#This Row],[DayNo]]=1,Tabulation[[#This Row],[DayNo]]=7),1,0) -> 1 | J84: =COUNTIF(Holidays,Tabulation[[#This Row],[Date]]) -> 0 | K84: =CONCATENATE(Tabulation[[#This Row],[Holiday]],Tabulation[[#This Row],[Season]],Tabulation[[#This Row],[Weekend]],"-",IF(Tabulation[[#This Row],[Hour]]<10,0,""),C84) -> 0Winter1-08 | L84: =VLOOKUP(Tabulation[[#This Row],[Concat]],Table3[],8) -> 0.28519 | M84: =(Tabulation[[#This Row],[AC System Output (kW)]]*Tabulation[[#This Row],[Rate]]) -> 0.1563810846
A85: 1 | B85: 3 | C85: 9 | D85: 1134.991 | E85: =Tabulation[[#This Row],[AC System Output (W)]]/1000 -> 1.134991 | F85: =VLOOKUP(Tabulation[[#This Row],[Month]],Season,2) -> Winter | G85: =(DATE(2021,Tabulation[[#This Row],[Month]],Tabulation[[#This Row],[Day]])) -> 2021-01-03 | H85: =WEEKDAY(Tabulation[[#This Row],[Date]]) -> 1 | I85: =IF(OR(Tabulation[[#This Row],[DayNo]]=1,Tabulation[[#This Row],[DayNo]]=7),1,0) -> 1 | J85: =COUNTIF(Holidays,Tabulation[[#This Row],[Date]]) -> 0 | K85: =CONCATENATE(Tabulation[[#This Row],[Holiday]],Tabulation[[#This Row],[Season]],Tabulation[[#This Row],[Weekend]],"-",IF(Tabulation[[#This Row],[Hour]]<10,0,""),C85) -> 0Winter1-09 | L85: =VLOOKUP(Tabulation[[#This Row],[Concat]],Table3[],8) -> 0.28519 | M85: =(Tabulation[[#This Row],[AC System Output (kW)]]*Tabulation[[#This Row],[Rate]]) -> 0.3236880833
A86: 1 | B86: 3 | C86: 10 | D86: 1737.273 | E86: =Tabulation[[#This Row],[AC System Output (W)]]/1000 -> 1.737273 | F86: =VLOOKUP(Tabulation[[#This Row],[Month]],Season,2) -> Winter | G86: =(DATE(2021,Tabulation[[#This Row],[Month]],Tabulation[[#This Row],[Day]])) -> 2021-01-03 | H86: =WEEKDAY(Tabulation[[#This Row],[Date]]) -> 1 | I86: =IF(OR(Tabulation[[#This Row],[DayNo]]=1,Tabulation[[#This Row],[DayNo]]=7),1,0) -> 1 | J86: =COUNTIF(Holidays,Tabulation[[#This Row],[Date]]) -> 0 | K86: =CONCATENATE(Tabulation[[#This Row],[Holiday]],Tabulation[[#This Row],[Season]],Tabulation[[#This Row],[Weekend]],"-",IF(Tabulation[[#This Row],[Hour]]<10,0,""),C86) -> 0Winter1-10 | L86: =VLOOKUP(Tabulation[[#This Row],[Concat]],Table3[],8) -> 0.28519 | M86: =(Tabulation[[#This Row],[AC System Output (kW)]]*Tabulation[[#This Row],[Rate]]) -> 0.4954528869
A87: 1 | B87: 3 | C87: 11 | D87: 2528.26 | E87: =Tabulation[[#This Row],[AC System Output (W)]]/1000 -> 2.52826 | F87: =VLOOKUP(Tabulation[[#This Row],[Month]],Season,2) -> Winter | G87: =(DATE(2021,Tabulation[[#This Row],[Month]],Tabulation[[#This Row],[Day]])) -> 2021-01-03 | H87: =WEEKDAY(Tabulation[[#This Row],[Date]]) -> 1 | I87: =IF(OR(Tabulation[[#This Row],[DayNo]]=1,Tabulation[[#This Row],[DayNo]]=7),1,0) -> 1 | J87: =COUNTIF(Holidays,Tabulation[[#This Row],[Date]]) -> 0 | K87: =CONCATENATE(Tabulation[[#This Row],[Holiday]],Tabulation[[#This Row],[Season]],Tabulation[[#This Row],[Weekend]],"-",IF(Tabulation[[#This Row],[Hour]]<10,0,""),C87) -> 0Winter1-11 | L87: =VLOOKUP(Tabulation[[#This Row],[Concat]],Table3[],8) -> 0.28519 | M87: =(Tabulation[[#This Row],[AC System Output (kW)]]*Tabulation[[#This Row],[Rate]]) -> 0.7210344694
A88: 1 | B88: 3 | C88: 12 | D88: 2521.602 | E88: =Tabulation[[#This Row],[AC System Output (W)]]/1000 -> 2.521602 | F88: =VLOOKUP(Tabulation[[#This Row],[Month]],Season,2) -> Winter | G88: =(DATE(2021,Tabulation[[#This Row],[Month]],Tabulation[[#This Row],[Day]])) -> 2021-01-03 | H88: =WEEKDAY(Tabulation[[#This Row],[Date]]) -> 1 | I88: =IF(OR(Tabulation[[#This Row],[DayNo]]=1,Tabulation[[#This Row],[DayNo]]=7),1,0) -> 1 | J88: =COUNTIF(Holidays,Tabulation[[#This Row],[Date]]) -> 0 | K88: =CONCATENATE(Tabulation[[#This Row],[Holiday]],Tabulation[[#This Row],[Season]],Tabulation[[#This Row],[Weekend]],"-",IF(Tabulation[[#This Row],[Hour]]<10,0,""),C88) -> 0Winter1-12 | L88: =VLOOKUP(Tabulation[[#This Row],[Concat]],Table3[],8) -> 0.28519 | M88: =(Tabulation[[#This Row],[AC System Output (kW)]]*Tabulation[[#This Row],[Rate]]) -> 0.7191356744
A89: 1 | B89: 3 | C89: 13 | D89: 2285.314 | E89: =Tabulation[[#This Row],[AC System Output (W)]]/1000 -> 2.285314 | F89: =VLOOKUP(Tabulation[[#This Row],[Month]],Season,2) -> Winter | G89: =(DATE(2021,Tabulation[[#This Row],[Month]],Tabulation[[#This Row],[Day]])) -> 2021-01-03 | H89: =WEEKDAY(Tabulation[[#This Row],[Date]]) -> 1 | I89: =IF(OR(Tabulation[[#This Row],[DayNo]]=1,Tabulation[[#This Row],[DayNo]]=7),1,0) -> 1 | J89: =COUNTIF(Holidays,Tabulation[[#This Row],[Date]]) -> 0 | K89: =CONCATENATE(Tabulation[[#This Row],[Holiday]],Tabulation[[#This Row],[Season]],Tabulation[[#This Row],[Weekend]],"-",IF(Tabulation[[#This Row],[Hour]]<10,0,""),C89) -> 0Winter1-13 | L89: =VLOOKUP(Tabulation[[#This Row],[Concat]],Table3[],8) -> 0.28519 | M89: =(Tabulation[[#This Row],[AC System Output (kW)]]*Tabulation[[#This Row],[Rate]]) -> 0.6517486997
A90: 1 | B90: 3 | C90: 14 | D90: 1835.973 | E90: =Tabulation[[#This Row],[AC System Output (W)]]/1000 -> 1.835973 | F90: =VLOOKUP(Tabulation[[#This Row],[Month]],Season,2) -> Winter | G90: =(DATE(2021,Tabulation[[#This Row],[Month]],Tabulation[[#This Row],[Day]])) -> 2021-01-03 | H90: =WEEKDAY(Tabulation[[#This Row],[Date]]) -> 1 | I90: =IF(OR(Tabulation[[#This Row],[DayNo]]=1,Tabulation[[#This Row],[DayNo]]=7),1,0) -> 1 | J90: =COUNTIF(Holidays,Tabulation[[#This Row],[Date]]) -> 0 | K90: =CONCATENATE(Tabulation[[#This Row],[Holiday]],Tabulation[[#This Row],[Season]],Tabulation[[#This Row],[Weekend]],"-",IF(Tabulation[[#This Row],[Hour]]<10,0,""),C90) -> 0Winter1-14 | L90: =VLOOKUP(Tabulation[[#This Row],[Concat]],Table3[],8) -> 0.28519 | M90: =(Tabulation[[#This Row],[AC System Output (kW)]]*Tabulation[[#This Row],[Rate]]) -> 0.5236011399
A91: 1 | B91: 3 | C91: 15 | D91: 1222.776 | E91: =Tabulation[[#This Row],[AC System Output (W)]]/1000 -> 1.222776 | F91: =VLOOKUP(Tabulation[[#This Row],[Month]],Season,2) -> Winter | G91: =(DATE(2021,Tabulation[[#This Row],[Month]],Tabulation[[#This Row],[Day]])) -> 2021-01-03 | H91: =WEEKDAY(Tabulation[[#This Row],[Date]]) -> 1 | I91: =IF(OR(Tabulation[[#This Row],[DayNo]]=1,Tabulation[[#This Row],[DayNo]]=7),1,0) -> 1 | J91: =COUNTIF(Holidays,Tabulation[[#This Row],[Date]]) -> 0 | K91: =CONCATENATE(Tabulation[[#This Row],[Holiday]],Tabulation[[#This Row],[Season]],Tabulation[[#This Row],[Weekend]],"-",IF(Tabulation[[#This Row],[Hour]]<10,0,""),C91) -> 0Winter1-15 | L91: =VLOOKUP(Tabulation[[#This Row],[Concat]],Table3[],8) -> 0.28519 | M91: =(Tabulation[[#This Row],[AC System Output (kW)]]*Tabulation[[#This Row],[Rate]]) -> 0.3487234874
A92: 1 | B92: 3 | C92: 16 | D92: 428.769 | E92: =Tabulation[[#This Row],[AC System Output (W)]]/1000 -> 0.428769 | F92: =VLOOKUP(Tabulation[[#This Row],[Month]],Season,2) -> Winter | G92: =(DATE(2021,Tabulation[[#This Row],[Month]],Tabulation[[#This Row],[Day]])) -> 2021-01-03 | H92: =WEEKDAY(Tabulation[[#This Row],[Date]]) -> 1 | I92: =IF(OR(Tabulation[[#This Row],[DayNo]]=1,Tabulation[[#This Row],[DayNo]]=7),1,0) -> 1 | J92: =COUNTIF(Holidays,Tabulation[[#This Row],[Date]]) -> 0 | K92: =CONCATENATE(Tabulation[[#This Row],[Holiday]],Tabulation[[#This Row],[Season]],Tabulation[[#This Row],[Weekend]],"-",IF(Tabulation[[#This Row],[Hour]]<10,0,""),C92) -> 0Winter1-16 | L92: =VLOOKUP(Tabulation[[#This Row],[Concat]],Table3[],8) -> 0.28519 | M92: =(Tabulation[[#This Row],[AC System Output (kW)]]*Tabulation[[#This Row],[Rate]]) -> 0.1222806311
A93: 1 | B93: 3 | C93: 17 | D93: 0 | E93: =Tabulation[[#This Row],[AC System Output (W)]]/1000 -> 0 | F93: =VLOOKUP(Tabulation[[#This Row],[Month]],Season,2) -> Winter | G93: =(DATE(2021,Tabulation[[#This Row],[Month]],Tabulation[[#This Row],[Day]])) -> 2021-01-03 | H93: =WEEKDAY(Tabulation[[#This Row],[Date]]) -> 1 | I93: =IF(OR(Tabulation[[#This Row],[DayNo]]=1,Tabulation[[#This Row],[DayNo]]=7),1,0) -> 1 | J93: =COUNTIF(Holidays,Tabulation[[#This Row],[Date]]) -> 0 | K93: =CONCATENATE(Tabulation[[#This Row],[Holiday]],Tabulation[[#This Row],[Season]],Tabulation[[#This Row],[Weekend]],"-",IF(Tabulation[[#This Row],[Hour]]<10,0,""),C93) -> 0Winter1-17 | L93: =VLOOKUP(Tabulation[[#This Row],[Concat]],Table3[],8) -> 0.28519 | M93: =(Tabulation[[#This Row],[AC System Output (kW)]]*Tabulation[[#This Row],[Rate]]) -> 0
A94: 1 | B94: 3 | C94: 18 | D94: 0 | E94: =Tabulation[[#This Row],[AC System Output (W)]]/1000 -> 0 | F94: =VLOOKUP(Tabulation[[#This Row],[Month]],Season,2) -> Winter | G94: =(DATE(2021,Tabulation[[#This Row],[Month]],Tabulation[[#This Row],[Day]])) -> 2021-01-03 | H94: =WEEKDAY(Tabulation[[#This Row],[Date]]) -> 1 | I94: =IF(OR(Tabulation[[#This Row],[DayNo]]=1,Tabulation[[#This Row],[DayNo]]=7),1,0) -> 1 | J94: =COUNTIF(Holidays,Tabulation[[#This Row],[Date]]) -> 0 | K94: =CONCATENATE(Tabulation[[#This Row],[Holiday]],Tabulation[[#This Row],[Season]],Tabulation[[#This Row],[Weekend]],"-",IF(Tabulation[[#This Row],[Hour]]<10,0,""),C94) -> 0Winter1-18 | L94: =VLOOKUP(Tabulation[[#This Row],[Concat]],Table3[],8) -> 0.28519 | M94: =(Tabulation[[#This Row],[AC System Output (kW)]]*Tabulation[[#This Row],[Rate]]) -> 0
A95: 1 | B95: 3 | C95: 19 | D95: 0 | E95: =Tabulation[[#This Row],[AC System Output (W)]]/1000 -> 0 | F95: =VLOOKUP(Tabulation[[#This Row],[Month]],Season,2) -> Winter | G95: =(DATE(2021,Tabulation[[#This Row],[Month]],Tabulation[[#This Row],[Day]])) -> 2021-01-03 | H95: =WEEKDAY(Tabulation[[#This Row],[Date]]) -> 1 | I95: =IF(OR(Tabulation[[#This Row],[DayNo]]=1,Tabulation[[#This Row],[DayNo]]=7),1,0) -> 1 | J95: =COUNTIF(Holidays,Tabulation[[#This Row],[Date]]) -> 0 | K95: =CONCATENATE(Tabulation[[#This Row],[Holiday]],Tabulation[[#This Row],[Season]],Tabulation[[#This Row],[Weekend]],"-",IF(Tabulation[[#This Row],[Hour]]<10,0,""),C95) -> 0Winter1-19 | L95: =VLOOKUP(Tabulation[[#This Row],[Concat]],Table3[],8) -> 0.28519 | M95: =(Tabulation[[#This Row],[AC System Output (kW)]]*Tabulation[[#This Row],[Rate]]) -> 0
A96: 1 | B96: 3 | C96: 20 | D96: 0 | E96: =Tabulation[[#This Row],[AC System Output (W)]]/1000 -> 0 | F96: =VLOOKUP(Tabulation[[#This Row],[Month]],Season,2) -> Winter | G96: =(DATE(2021,Tabulation[[#This Row],[Month]],Tabulation[[#This Row],[Day]])) -> 2021-01-03 | H96: =WEEKDAY(Tabulation[[#This Row],[Date]]) -> 1 | I96: =IF(OR(Tabulation[[#This Row],[DayNo]]=1,Tabulation[[#This Row],[DayNo]]=7),1,0) -> 1 | J96: =COUNTIF(Holidays,Tabulation[[#This Row],[Date]]) -> 0 | K96: =CONCATENATE(Tabulation[[#This Row],[Holiday]],Tabulation[[#This Row],[Season]],Tabulation[[#This Row],[Weekend]],"-",IF(Tabulation[[#This Row],[Hour]]<10,0,""),C96) -> 0Winter1-20 | L96: =VLOOKUP(Tabulation[[#This Row],[Concat]],Table3[],8) -> 0.28519 | M96: =(Tabulation[[#This Row],[AC System Output (kW)]]*Tabulation[[#This Row],[Rate]]) -> 0
A97: 1 | B97: 3 | C97: 21 | D97: 0 | E97: =Tabulation[[#This Row],[AC System Output (W)]]/1000 -> 0 | F97: =VLOOKUP(Tabulation[[#This Row],[Month]],Season,2) -> Winter | G97: =(DATE(2021,Tabulation[[#This Row],[Month]],Tabulation[[#This Row],[Day]])) -> 2021-01-03 | H97: =WEEKDAY(Tabulation[[#This Row],[Date]]) -> 1 | I97: =IF(OR(Tabulation[[#This Row],[DayNo]]=1,Tabulation[[#This Row],[DayNo]]=7),1,0) -> 1 | J97: =COUNTIF(Holidays,Tabulation[[#This Row],[Date]]) -> 0 | K97: =CONCATENATE(Tabulation[[#This Row],[Holiday]],Tabulation[[#This Row],[Season]],Tabulation[[#This Row],[Weekend]],"-",IF(Tabulation[[#This Row],[Hour]]<10,0,""),C97) -> 0Winter1-21 | L97: =VLOOKUP(Tabulation[[#This Row],[Concat]],Table3[],8) -> 0.28519 | M97: =(Tabulation[[#This Row],[AC System Output (kW)]]*Tabulation[[#This Row],[Rate]]) -> 0
A98: 1 | B98: 3 | C98: 22 | D98: 0 | E98: =Tabulation[[#This Row],[AC System Output (W)]]/1000 -> 0 | F98: =VLOOKUP(Tabulation[[#This Row],[Month]],Season,2) -> Winter | G98: =(DATE(2021,Tabulation[[#This Row],[Month]],Tabulation[[#This Row],[Day]])) -> 2021-01-03 | H98: =WEEKDAY(Tabulation[[#This Row],[Date]]) -> 1 | I98: =IF(OR(Tabulation[[#This Row],[DayNo]]=1,Tabulation[[#This Row],[DayNo]]=7),1,0) -> 1 | J98: =COUNTIF(Holidays,Tabulation[[#This Row],[Date]]) -> 0 | K98: =CONCATENATE(Tabulation[[#This Row],[Holiday]],Tabulation[[#This Row],[Season]],Tabulation[[#This Row],[Weekend]],"-",IF(Tabulation[[#This Row],[Hour]]<10,0,""),C98) -> 0Winter1-22 | L98: =VLOOKUP(Tabulation[[#This Row],[Concat]],Table3[],8) -> 0.28519 | M98: =(Tabulation[[#This Row],[AC System Output (kW)]]*Tabulation[[#This Row],[Rate]]) -> 0
A99: 1 | B99: 3 | C99: 23 | D99: 0 | E99: =Tabulation[[#This Row],[AC System Output (W)]]/1000 -> 0 | F99: =VLOOKUP(Tabulation[[#This Row],[Month]],Season,2) -> Winter | G99: =(DATE(2021,Tabulation[[#This Row],[Month]],Tabulation[[#This Row],[Day]])) -> 2021-01-03 | H99: =WEEKDAY(Tabulation[[#This Row],[Date]]) -> 1 | I99: =IF(OR(Tabulation[[#This Row],[DayNo]]=1,Tabulation[[#This Row],[DayNo]]=7),1,0) -> 1 | J99: =COUNTIF(Holidays,Tabulation[[#This Row],[Date]]) -> 0 | K99: =CONCATENATE(Tabulation[[#This Row],[Holiday]],Tabulation[[#This Row],[Season]],Tabulation[[#This Row],[Weekend]],"-",IF(Tabulation[[#This Row],[Hour]]<10,0,""),C99) -> 0Winter1-23 | L99: =VLOOKUP(Tabulation[[#This Row],[Concat]],Table3[],8) -> 0.28519 | M99: =(Tabulation[[#This Row],[AC System Output (kW)]]*Tabulation[[#This Row],[Rate]]) -> 0
A100: 1 | B100: 4 | C100: 0 | D100: 0 | E100: =Tabulation[[#This Row],[AC System Output (W)]]/1000 -> 0 | F100: =VLOOKUP(Tabulation[[#This Row],[Month]],Season,2) -> Winter | G100: =(DATE(2021,Tabulation[[#This Row],[Month]],Tabulation[[#This Row],[Day]])) -> 2021-01-04 | H100: =WEEKDAY(Tabulation[[#This Row],[Date]]) -> 2 | I100: =IF(OR(Tabulation[[#This Row],[DayNo]]=1,Tabulation[[#This Row],[DayNo]]=7),1,0) -> 0 | J100: =COUNTIF(Holidays,Tabulation[[#This Row],[Date]]) -> 0 | K100: =CONCATENATE(Tabulation[[#This Row],[Holiday]],Tabulation[[#This Row],[Season]],Tabulation[[#This Row],[Weekend]],"-",IF(Tabulation[[#This Row],[Hour]]<10,0,""),C100) -> 0Winter0-00 | L100: =VLOOKUP(Tabulation[[#This Row],[Concat]],Table3[],8) -> 0.28519 | M100: =(Tabulation[[#This Row],[AC System Output (kW)]]*Tabulation[[#This Row],[Rate]]) -> 0
A101: 1 | B101: 4 | C101: 1 | D101: 0 | E101: =Tabulation[[#This Row],[AC System Output (W)]]/1000 -> 0 | F101: =VLOOKUP(Tabulation[[#This Row],[Month]],Season,2) -> Winter | G101: =(DATE(2021,Tabulation[[#This Row],[Month]],Tabulation[[#This Row],[Day]])) -> 2021-01-04 | H101: =WEEKDAY(Tabulation[[#This Row],[Date]]) -> 2 | I101: =IF(OR(Tabulation[[#This Row],[DayNo]]=1,Tabulation[[#This Row],[DayNo]]=7),1,0) -> 0 | J101: =COUNTIF(Holidays,Tabulation[[#This Row],[Date]]) -> 0 | K101: =CONCATENATE(Tabulation[[#This Row],[Holiday]],Tabulation[[#This Row],[Season]],Tabulation[[#This Row],[Weekend]],"-",IF(Tabulation[[#This Row],[Hour]]<10,0,""),C101) -> 0Winter0-01 | L101: =VLOOKUP(Tabulation[[#This Row],[Concat]],Table3[],8) -> 0.28519 | M101: =(Tabulation[[#This Row],[AC System Output (kW)]]*Tabulation[[#This Row],[Rate]]) -> 0
A102: 1 | B102: 4 | C102: 2 | D102: 0 | E102: =Tabulation[[#This Row],[AC System Output (W)]]/1000 -> 0 | F102: =VLOOKUP(Tabulation[[#This Row],[Month]],Season,2) -> Winter | G102: =(DATE(2021,Tabulation[[#This Row],[Month]],Tabulation[[#This Row],[Day]])) -> 2021-01-04 | H102: =WEEKDAY(Tabulation[[#This Row],[Date]]) -> 2 | I102: =IF(OR(Tabulation[[#This Row],[DayNo]]=1,Tabulation[[#This Row],[DayNo]]=7),1,0) -> 0 | J102: =COUNTIF(Holidays,Tabulation[[#This Row],[Date]]) -> 0 | K102: =CONCATENATE(Tabulation[[#This Row],[Holiday]],Tabulation[[#This Row],[Season]],Tabulation[[#This Row],[Weekend]],"-",IF(Tabulation[[#This Row],[Hour]]<10,0,""),C102) -> 0Winter0-02 | L102: =VLOOKUP(Tabulation[[#This Row],[Concat]],Table3[],8) -> 0.28519 | M102: =(Tabulation[[#This Row],[AC System Output (kW)]]*Tabulation[[#This Row],[Rate]]) -> 0
A103: 1 | B103: 4 | C103: 3 | D103: 0 | E103: =Tabulation[[#This Row],[AC System Output (W)]]/1000 -> 0 | F103: =VLOOKUP(Tabulation[[#This Row],[Month]],Season,2) -> Winter | G103: =(DATE(2021,Tabulation[[#This Row],[Month]],Tabulation[[#This Row],[Day]])) -> 2021-01-04 | H103: =WEEKDAY(Tabulation[[#This Row],[Date]]) -> 2 | I103: =IF(OR(Tabulation[[#This Row],[DayNo]]=1,Tabulation[[#This Row],[DayNo]]=7),1,0) -> 0 | J103: =COUNTIF(Holidays,Tabulation[[#This Row],[Date]]) -> 0 | K103: =CONCATENATE(Tabulation[[#This Row],[Holiday]],Tabulation[[#This Row],[Season]],Tabulation[[#This Row],[Weekend]],"-",IF(Tabulation[[#This Row],[Hour]]<10,0,""),C103) -> 0Winter0-03 | L103: =VLOOKUP(Tabulation[[#This Row],[Concat]],Table3[],8) -> 0.28519 | M103: =(Tabulation[[#This Row],[AC System Output (kW)]]*Tabulation[[#This Row],[Rate]]) -> 0
A104: 1 | B104: 4 | C104: 4 | D104: 0 | E104: =Tabulation[[#This Row],[AC System Output (W)]]/1000 -> 0 | F104: =VLOOKUP(Tabulation[[#This Row],[Month]],Season,2) -> Winter | G104: =(DATE(2021,Tabulation[[#This Row],[Month]],Tabulation[[#This Row],[Day]])) -> 2021-01-04 | H104: =WEEKDAY(Tabulation[[#This Row],[Date]]) -> 2 | I104: =IF(OR(Tabulation[[#This Row],[DayNo]]=1,Tabulation[[#This Row],[DayNo]]=7),1,0) -> 0 | J104: =COUNTIF(Holidays,Tabulation[[#This Row],[Date]]) -> 0 | K104: =CONCATENATE(Tabulation[[#This Row],[Holiday]],Tabulation[[#This Row],[Season]],Tabulation[[#This Row],[Weekend]],"-",IF(Tabulation[[#This Row],[Hour]]<10,0,""),C104) -> 0Winter0-04 | L104: =VLOOKUP(Tabulation[[#This Row],[Concat]],Table3[],8) -> 0.28519 | M104: =(Tabulation[[#This Row],[AC System Output (kW)]]*Tabulation[[#This Row],[Rate]]) -> 0
A105: 1 | B105: 4 | C105: 5 | D105: 0 | E105: =Tabulation[[#This Row],[AC System Output (W)]]/1000 -> 0 | F105: =VLOOKUP(Tabulation[[#This Row],[Month]],Season,2) -> Winter | G105: =(DATE(2021,Tabulation[[#This Row],[Month]],Tabulation[[#This Row],[Day]])) -> 2021-01-04 | H105: =WEEKDAY(Tabulation[[#This Row],[Date]]) -> 2 | I105: =IF(OR(Tabulation[[#This Row],[DayNo]]=1,Tabulation[[#This Row],[DayNo]]=7),1,0) -> 0 | J105: =COUNTIF(Holidays,Tabulation[[#This Row],[Date]]) -> 0 | K105: =CONCATENATE(Tabulation[[#This Row],[Holiday]],Tabulation[[#This Row],[Season]],Tabulation[[#This Row],[Weekend]],"-",IF(Tabulation[[#This Row],[Hour]]<10,0,""),C105) -> 0Winter0-05 | L105: =VLOOKUP(Tabulation[[#This Row],[Concat]],Table3[],8) -> 0.28519 | M105: =(Tabulation[[#This Row],[AC System Output (kW)]]*Tabulation[[#This Row],[Rate]]) -> 0
A106: 1 | B106: 4 | C106: 6 | D106: 0 | E106: =Tabulation[[#This Row],[AC System Output (W)]]/1000 -> 0 | F106: =VLOOKUP(Tabulation[[#This Row],[Month]],Season,2) -> Winter | G106: =(DATE(2021,Tabulation[[#This Row],[Month]],Tabulation[[#This Row],[Day]])) -> 2021-01-04 | H106: =WEEKDAY(Tabulation[[#This Row],[Date]]) -> 2 | I106: =IF(OR(Tabulation[[#This Row],[DayNo]]=1,Tabulation[[#This Row],[DayNo]]=7),1,0) -> 0 | J106: =COUNTIF(Holidays,Tabulation[[#This Row],[Date]]) -> 0 | K106: =CONCATENATE(Tabulation[[#This Row],[Holiday]],Tabulation[[#This Row],[Season]],Tabulation[[#This Row],[Weekend]],"-",IF(Tabulation[[#This Row],[Hour]]<10,0,""),C106) -> 0Winter0-06 | L106: =VLOOKUP(Tabulation[[#This Row],[Concat]],Table3[],8) -> 0.28519 | M106: =(Tabulation[[#This Row],[AC System Output (kW)]]*Tabulation[[#This Row],[Rate]]) -> 0
A107: 1 | B107: 4 | C107: 7 | D107: 85.796 | E107: =Tabulation[[#This Row],[AC System Output (W)]]/1000 -> 0.085796 | F107: =VLOOKUP(Tabulation[[#This Row],[Month]],Season,2) -> Winter | G107: =(DATE(2021,Tabulation[[#This Row],[Month]],Tabulation[[#This Row],[Day]])) -> 2021-01-04 | H107: =WEEKDAY(Tabulation[[#This Row],[Date]]) -> 2 | I107: =IF(OR(Tabulation[[#This Row],[DayNo]]=1,Tabulation[[#This Row],[DayNo]]=7),1,0) -> 0 | J107: =COUNTIF(Holidays,Tabulation[[#This Row],[Date]]) -> 0 | K107: =CONCATENATE(Tabulation[[#This Row],[Holiday]],Tabulation[[#This Row],[Season]],Tabulation[[#This Row],[Weekend]],"-",IF(Tabulation[[#This Row],[Hour]]<10,0,""),C107) -> 0Winter0-07 | L107: =VLOOKUP(Tabulation[[#This Row],[Concat]],Table3[],8) -> 0.28519 | M107: =(Tabulation[[#This Row],[AC System Output (kW)]]*Tabulation[[#This Row],[Rate]]) -> 0.02446816124
A108: 1 | B108: 4 | C108: 8 | D108: 464.352 | E108: =Tabulation[[#This Row],[AC System Output (W)]]/1000 -> 0.464352 | F108: =VLOOKUP(Tabulation[[#This Row],[Month]],Season,2) -> Winter | G108: =(DATE(2021,Tabulation[[#This Row],[Month]],Tabulation[[#This Row],[Day]])) -> 2021-01-04 | H108: =WEEKDAY(Tabulation[[#This Row],[Date]]) -> 2 | I108: =IF(OR(Tabulation[[#This Row],[DayNo]]=1,Tabulation[[#This Row],[DayNo]]=7),1,0) -> 0 | J108: =COUNTIF(Holidays,Tabulation[[#This Row],[Date]]) -> 0 | K108: =CONCATENATE(Tabulation[[#This Row],[Holiday]],Tabulation[[#This Row],[Season]],Tabulation[[#This Row],[Weekend]],"-",IF(Tabulation[[#This Row],[Hour]]<10,0,""),C108) -> 0Winter0-08 | L108: =VLOOKUP(Tabulation[[#This Row],[Concat]],Table3[],8) -> 0.28519 | M108: =(Tabulation[[#This Row],[AC System Output (kW)]]*Tabulation[[#This Row],[Rate]]) -> 0.1324285469
A109: 1 | B109: 4 | C109: 9 | D109: 1866.384 | E109: =Tabulation[[#This Row],[AC System Output (W)]]/1000 -> 1.866384 | F109: =VLOOKUP(Tabulation[[#This Row],[Month]],Season,2) -> Winter | G109: =(DATE(2021,Tabulation[[#This Row],[Month]],Tabulation[[#This Row],[Day]])) -> 2021-01-04 | H109: =WEEKDAY(Tabulation[[#This Row],[Date]]) -> 2 | I109: =IF(OR(Tabulation[[#This Row],[DayNo]]=1,Tabulation[[#This Row],[DayNo]]=7),1,0) -> 0 | J109: =COUNTIF(Holidays,Tabulation[[#This Row],[Date]]) -> 0 | K109: =CONCATENATE(Tabulation[[#This Row],[Holiday]],Tabulation[[#This Row],[Season]],Tabulation[[#This Row],[Weekend]],"-",IF(Tabulation[[#This Row],[Hour]]<10,0,""),C109) -> 0Winter0-09 | L109: =VLOOKUP(Tabulation[[#This Row],[Concat]],Table3[],8) -> 0.28519 | M109: =(Tabulation[[#This Row],[AC System Output (kW)]]*Tabulation[[#This Row],[Rate]]) -> 0.532274053
A110: 1 | B110: 4 | C110: 10 | D110: 2324.373 | E110: =Tabulation[[#This Row],[AC System Output (W)]]/1000 -> 2.324373 | F110: =VLOOKUP(Tabulation[[#This Row],[Month]],Season,2) -> Winter | G110: =(DATE(2021,Tabulation[[#This Row],[Month]],Tabulation[[#This Row],[Day]])) -> 2021-01-04 | H110: =WEEKDAY(Tabulation[[#This Row],[Date]]) -> 2 | I110: =IF(OR(Tabulation[[#This Row],[DayNo]]=1,Tabulation[[#This Row],[DayNo]]=7),1,0) -> 0 | J110: =COUNTIF(Holidays,Tabulation[[#This Row],[Date]]) -> 0 | K110: =CONCATENATE(Tabulation[[#This Row],[Holiday]],Tabulation[[#This Row],[Season]],Tabulation[[#This Row],[Weekend]],"-",IF(Tabulation[[#This Row],[Hour]]<10,0,""),C110) -> 0Winter0-10 | L110: =VLOOKUP(Tabulation[[#This Row],[Concat]],Table3[],8) -> 0.28519 | M110: =(Tabulation[[#This Row],[AC System Output (kW)]]*Tabulation[[#This Row],[Rate]]) -> 0.6628879359
A111: 1 | B111: 4 | C111: 11 | D111: 1943.301 | E111: =Tabulation[[#This Row],[AC System Output (W)]]/1000 -> 1.943301 | F111: =VLOOKUP(Tabulation[[#This Row],[Month]],Season,2) -> Winter | G111: =(DATE(2021,Tabulation[[#This Row],[Month]],Tabulation[[#This Row],[Day]])) -> 2021-01-04 | H111: =WEEKDAY(Tabulation[[#This Row],[Date]]) -> 2 | I111: =IF(OR(Tabulation[[#This Row],[DayNo]]=1,Tabulation[[#This Row],[DayNo]]=7),1,0) -> 0 | J111: =COUNTIF(Holidays,Tabulation[[#This Row],[Date]]) -> 0 | K111: =CONCATENATE(Tabulation[[#This Row],[Holiday]],Tabulation[[#This Row],[Season]],Tabulation[[#This Row],[Weekend]],"-",IF(Tabulation[[#This Row],[Hour]]<10,0,""),C111) -> 0Winter0-11 | L111: =VLOOKUP(Tabulation[[#This Row],[Concat]],Table3[],8) -> 0.28519 | M111: =(Tabulation[[#This Row],[AC System Output (kW)]]*Tabulation[[#This Row],[Rate]]) -> 0.5542100122
A112: 1 | B112: 4 | C112: 12 | D112: 1940.794 | E112: =Tabulation[[#This Row],[AC System Output (W)]]/1000 -> 1.940794 | F112: =VLOOKUP(Tabulation[[#This Row],[Month]],Season,2) -> Winter | G112: =(DATE(2021,Tabulation[[#This Row],[Month]],Tabulation[[#This Row],[Day]])) -> 2021-01-04 | H112: =WEEKDAY(Tabulation[[#This Row],[Date]]) -> 2 | I112: =IF(OR(Tabulation[[#This Row],[DayNo]]=1,Tabulation[[#This Row],[DayNo]]=7),1,0) -> 0 | J112: =COUNTIF(Holidays,Tabulation[[#This Row],[Date]]) -> 0 | K112: =CONCATENATE(Tabulation[[#This Row],[Holiday]],Tabulation[[#This Row],[Season]],Tabulation[[#This Row],[Weekend]],"-",IF(Tabulation[[#This Row],[Hour]]<10,0,""),C112) -> 0Winter0-12 | L112: =VLOOKUP(Tabulation[[#This Row],[Concat]],Table3[],8) -> 0.28519 | M112: =(Tabulation[[#This Row],[AC System Output (kW)]]*Tabulation[[#This Row],[Rate]]) -> 0.5534950409
A113: 1 | B113: 4 | C113: 13 | D113: 2329.07 | E113: =Tabulation[[#This Row],[AC System Output (W)]]/1000 -> 2.32907 | F113: =VLOOKUP(Tabulation[[#This Row],[Month]],Season,2) -> Winter | G113: =(DATE(2021,Tabulation[[#This Row],[Month]],Tabulation[[#This Row],[Day]])) -> 2021-01-04 | H113: =WEEKDAY(Tabulation[[#This Row],[Date]]) -> 2 | I113: =IF(OR(Tabulation[[#This Row],[DayNo]]=1,Tabulation[[#This Row],[DayNo]]=7),1,0) -> 0 | J113: =COUNTIF(Holidays,Tabulation[[#This Row],[Date]]) -> 0 | K113: =CONCATENATE(Tabulation[[#This Row],[Holiday]],Tabulation[[#This Row],[Season]],Tabulation[[#This Row],[Weekend]],"-",IF(Tabulation[[#This Row],[Hour]]<10,0,""),C113) -> 0Winter0-13 | L113: =VLOOKUP(Tabulation[[#This Row],[Concat]],Table3[],8) -> 0.28519 | M113: =(Tabulation[[#This Row],[AC System Output (kW)]]*Tabulation[[#This Row],[Rate]]) -> 0.6642274733
A114: 1 | B114: 4 | C114: 14 | D114: 1861.533 | E114: =Tabulation[[#This Row],[AC System Output (W)]]/1000 -> 1.861533 | F114: =VLOOKUP(Tabulation[[#This Row],[Month]],Season,2) -> Winter | G114: =(DATE(2021,Tabulation[[#This Row],[Month]],Tabulation[[#This Row],[Day]])) -> 2021-01-04 | H114: =WEEKDAY(Tabulation[[#This Row],[Date]]) -> 2 | I114: =IF(OR(Tabulation[[#This Row],[DayNo]]=1,Tabulation[[#This Row],[DayNo]]=7),1,0) -> 0 | J114: =COUNTIF(Holidays,Tabulation[[#This Row],[Date]]) -> 0 | K114: =CONCATENATE(Tabulation[[#This Row],[Holiday]],Tabulation[[#This Row],[Season]],Tabulation[[#This Row],[Weekend]],"-",IF(Tabulation[[#This Row],[Hour]]<10,0,""),C114) -> 0Winter0-14 | L114: =VLOOKUP(Tabulation[[#This Row],[Concat]],Table3[],8) -> 0.28519 | M114: =(Tabulation[[#This Row],[AC System Output (kW)]]*Tabulation[[#This Row],[Rate]]) -> 0.5308905963
A115: 1 | B115: 4 | C115: 15 | D115: 1261.428 | E115: =Tabulation[[#This Row],[AC System Output (W)]]/1000 -> 1.261428 | F115: =VLOOKUP(Tabulation[[#This Row],[Month]],Season,2) -> Winter | G115: =(DATE(2021,Tabulation[[#This Row],[Month]],Tabulation[[#This Row],[Day]])) -> 2021-01-04 | H115: =WEEKDAY(Tabulation[[#This Row],[Date]]) -> 2 | I115: =IF(OR(Tabulation[[#This Row],[DayNo]]=1,Tabulation[[#This Row],[DayNo]]=7),1,0) -> 0 | J115: =COUNTIF(Holidays,Tabulation[[#This Row],[Date]]) -> 0 | K115: =CONCATENATE(Tabulation[[#This Row],[Holiday]],Tabulation[[#This Row],[Season]],Tabulation[[#This Row],[Weekend]],"-",IF(Tabulation[[#This Row],[Hour]]<10,0,""),C115) -> 0Winter0-15 | L115: =VLOOKUP(Tabulation[[#This Row],[Concat]],Table3[],8) -> 0.28519 | M115: =(Tabulation[[#This Row],[AC System Output (kW)]]*Tabulation[[#This Row],[Rate]]) -> 0.3597466513
A116: 1 | B116: 4 | C116: 16 | D116: 197.622 | E116: =Tabulation[[#This Row],[AC System Output (W)]]/1000 -> 0.197622 | F116: =VLOOKUP(Tabulation[[#This Row],[Month]],Season,2) -> Winter | G116: =(DATE(2021,Tabulation[[#This Row],[Month]],Tabulation[[#This Row],[Day]])) -> 2021-01-04 | H116: =WEEKDAY(Tabulation[[#This Row],[Date]]) -> 2 | I116: =IF(OR(Tabulation[[#This Row],[DayNo]]=1,Tabulation[[#This Row],[DayNo]]=7),1,0) -> 0 | J116: =COUNTIF(Holidays,Tabulation[[#This Row],[Date]]) -> 0 | K116: =CONCATENATE(Tabulation[[#This Row],[Holiday]],Tabulation[[#This Row],[Season]],Tabulation[[#This Row],[Weekend]],"-",IF(Tabulation[[#This Row],[Hour]]<10,0,""),C116) -> 0Winter0-16 | L116: =VLOOKUP(Tabulation[[#This Row],[Concat]],Table3[],8) -> 0.28519 | M116: =(Tabulation[[#This Row],[AC System Output (kW)]]*Tabulation[[#This Row],[Rate]]) -> 0.05635981818
A117: 1 | B117: 4 | C117: 17 | D117: 0 | E117: =Tabulation[[#This Row],[AC System Output (W)]]/1000 -> 0 | F117: =VLOOKUP(Tabulation[[#This Row],[Month]],Season,2) -> Winter | G117: =(DATE(2021,Tabulation[[#This Row],[Month]],Tabulation[[#This Row],[Day]])) -> 2021-01-04 | H117: =WEEKDAY(Tabulation[[#This Row],[Date]]) -> 2 | I117: =IF(OR(Tabulation[[#This Row],[DayNo]]=1,Tabulation[[#This Row],[DayNo]]=7),1,0) -> 0 | J117: =COUNTIF(Holidays,Tabulation[[#This Row],[Date]]) -> 0 | K117: =CONCATENATE(Tabulation[[#This Row],[Holiday]],Tabulation[[#This Row],[Season]],Tabulation[[#This Row],[Weekend]],"-",IF(Tabulation[[#This Row],[Hour]]<10,0,""),C117) -> 0Winter0-17 | L117: =VLOOKUP(Tabulation[[#This Row],[Concat]],Table3[],8) -> 0.30257 | M117: =(Tabulation[[#This Row],[AC System Output (kW)]]*Tabulation[[#This Row],[Rate]]) -> 0
A118: 1 | B118: 4 | C118: 18 | D118: 0 | E118: =Tabulation[[#This Row],[AC System Output (W)]]/1000 -> 0 | F118: =VLOOKUP(Tabulation[[#This Row],[Month]],Season,2) -> Winter | G118: =(DATE(2021,Tabulation[[#This Row],[Month]],Tabulation[[#This Row],[Day]])) -> 2021-01-04 | H118: =WEEKDAY(Tabulation[[#This Row],[Date]]) -> 2 | I118: =IF(OR(Tabulation[[#This Row],[DayNo]]=1,Tabulation[[#This Row],[DayNo]]=7),1,0) -> 0 | J118: =COUNTIF(Holidays,Tabulation[[#This Row],[Date]]) -> 0 | K118: =CONCATENATE(Tabulation[[#This Row],[Holiday]],Tabulation[[#This Row],[Season]],Tabulation[[#This Row],[Weekend]],"-",IF(Tabulation[[#This Row],[Hour]]<10,0,""),C118) -> 0Winter0-18 | L118: =VLOOKUP(Tabulation[[#This Row],[Concat]],Table3[],8) -> 0.30257 | M118: =(Tabulation[[#This Row],[AC System Output (kW)]]*Tabulation[[#This Row],[Rate]]) -> 0
A119: 1 | B119: 4 | C119: 19 | D119: 0 | E119: =Tabulation[[#This Row],[AC System Output (W)]]/1000 -> 0 | F119: =VLOOKUP(Tabulation[[#This Row],[Month]],Season,2) -> Winter | G119: =(DATE(2021,Tabulation[[#This Row],[Month]],Tabulation[[#This Row],[Day]])) -> 2021-01-04 | H119: =WEEKDAY(Tabulation[[#This Row],[Date]]) -> 2 | I119: =IF(OR(Tabulation[[#This Row],[DayNo]]=1,Tabulation[[#This Row],[DayNo]]=7),1,0) -> 0 | J119: =COUNTIF(Holidays,Tabulation[[#This Row],[Date]]) -> 0 | K119: =CONCATENATE(Tabulation[[#This Row],[Holiday]],Tabulation[[#This Row],[Season]],Tabulation[[#This Row],[Weekend]],"-",IF(Tabulation[[#This Row],[Hour]]<10,0,""),C119) -> 0Winter0-19 | L119: =VLOOKUP(Tabulation[[#This Row],[Concat]],Table3[],8) -> 0.30257 | M119: =(Tabulation[[#This Row],[AC System Output (kW)]]*Tabulation[[#This Row],[Rate]]) -> 0
A120: 1 | B120: 4 | C120: 20 | D120: 0 | E120: =Tabulation[[#This Row],[AC System Output (W)]]/1000 -> 0 | F120: =VLOOKUP(Tabulation[[#This Row],[Month]],Season,2) -> Winter | G120: =(DATE(2021,Tabulation[[#This Row],[Month]],Tabulation[[#This Row],[Day]])) -> 2021-01-04 | H120: =WEEKDAY(Tabulation[[#This Row],[Date]]) -> 2 | I120: =IF(OR(Tabulation[[#This Row],[DayNo]]=1,Tabulation[[#This Row],[DayNo]]=7),1,0) -> 0 | J120: =COUNTIF(Holidays,Tabulation[[#This Row],[Date]]) -> 0 | K120: =CONCATENATE(Tabulation[[#This Row],[Holiday]],Tabulation[[#This Row],[Season]],Tabulation[[#This Row],[Weekend]],"-",IF(Tabulation[[#This Row],[Hour]]<10,0,""),C120) -> 0Winter0-20 | L120: =VLOOKUP(Tabulation[[#This Row],[Concat]],Table3[],8) -> 0.28519 | M120: =(Tabulation[[#This Row],[AC System Output (kW)]]*Tabulation[[#This Row],[Rate]]) -> 0
A121: 1 | B121: 4 | C121: 21 | D121: 0 | E121: =Tabulation[[#This Row],[AC System Output (W)]]/1000 -> 0 | F121: =VLOOKUP(Tabulation[[#This Row],[Month]],Season,2) -> Winter | G121: =(DATE(2021,Tabulation[[#This Row],[Month]],Tabulation[[#This Row],[Day]])) -> 2021-01-04 | H121: =WEEKDAY(Tabulation[[#This Row],[Date]]) -> 2 | I121: =IF(OR(Tabulation[[#This Row],[DayNo]]=1,Tabulation[[#This Row],[DayNo]]=7),1,0) -> 0 | J121: =COUNTIF(Holidays,Tabulation[[#This Row],[Date]]) -> 0 | K121: =CONCATENATE(Tabulation[[#This Row],[Holiday]],Tabulation[[#This Row],[Season]],Tabulation[[#This Row],[Weekend]],"-",IF(Tabulation[[#This Row],[Hour]]<10,0,""),C121) -> 0Winter0-21 | L121: =VLOOKUP(Tabulation[[#This Row],[Concat]],Table3[],8) -> 0.28519 | M121: =(Tabulation[[#This Row],[AC System Output (kW)]]*Tabulation[[#This Row],[Rate]]) -> 0
A122: 1 | B122: 4 | C122: 22 | D122: 0 | E122: =Tabulation[[#This Row],[AC System Output (W)]]/1000 -> 0 | F122: =VLOOKUP(Tabulation[[#This Row],[Month]],Season,2) -> Winter | G122: =(DATE(2021,Tabulation[[#This Row],[Month]],Tabulation[[#This Row],[Day]])) -> 2021-01-04 | H122: =WEEKDAY(Tabulation[[#This Row],[Date]]) -> 2 | I122: =IF(OR(Tabulation[[#This Row],[DayNo]]=1,Tabulation[[#This Row],[DayNo]]=7),1,0) -> 0 | J122: =COUNTIF(Holidays,Tabulation[[#This Row],[Date]]) -> 0 | K122: =CONCATENATE(Tabulation[[#This Row],[Holiday]],Tabulation[[#This Row],[Season]],Tabulation[[#This Row],[Weekend]],"-",IF(Tabulation[[#This Row],[Hour]]<10,0,""),C122) -> 0Winter0-22 | L122: =VLOOKUP(Tabulation[[#This Row],[Concat]],Table3[],8) -> 0.28519 | M122: =(Tabulation[[#This Row],[AC System Output (kW)]]*Tabulation[[#This Row],[Rate]]) -> 0
A123: 1 | B123: 4 | C123: 23 | D123: 0 | E123: =Tabulation[[#This Row],[AC System Output (W)]]/1000 -> 0 | F123: =VLOOKUP(Tabulation[[#This Row],[Month]],Season,2) -> Winter | G123: =(DATE(2021,Tabulation[[#This Row],[Month]],Tabulation[[#This Row],[Day]])) -> 2021-01-04 | H123: =WEEKDAY(Tabulation[[#This Row],[Date]]) -> 2 | I123: =IF(OR(Tabulation[[#This Row],[DayNo]]=1,Tabulation[[#This Row],[DayNo]]=7),1,0) -> 0 | J123: =COUNTIF(Holidays,Tabulation[[#This Row],[Date]]) -> 0 | K123: =CONCATENATE(Tabulation[[#This Row],[Holiday]],Tabulation[[#This Row],[Season]],Tabulation[[#This Row],[Weekend]],"-",IF(Tabulation[[#This Row],[Hour]]<10,0,""),C123) -> 0Winter0-23 | L123: =VLOOKUP(Tabulation[[#This Row],[Concat]],Table3[],8) -> 0.28519 | M123: =(Tabulation[[#This Row],[AC System Output (kW)]]*Tabulation[[#This Row],[Rate]]) -> 0
A124: 1 | B124: 5 | C124: 0 | D124: 0 | E124: =Tabulation[[#This Row],[AC System Output (W)]]/1000 -> 0 | F124: =VLOOKUP(Tabulation[[#This Row],[Month]],Season,2) -> Winter | G124: =(DATE(2021,Tabulation[[#This Row],[Month]],Tabulation[[#This Row],[Day]])) -> 2021-01-05 | H124: =WEEKDAY(Tabulation[[#This Row],[Date]]) -> 3 | I124: =IF(OR(Tabulation[[#This Row],[DayNo]]=1,Tabulation[[#This Row],[DayNo]]=7),1,0) -> 0 | J124: =COUNTIF(Holidays,Tabulation[[#This Row],[Date]]) -> 0 | K124: =CONCATENATE(Tabulation[[#This Row],[Holiday]],Tabulation[[#This Row],[Season]],Tabulation[[#This Row],[Weekend]],"-",IF(Tabulation[[#This Row],[Hour]]<10,0,""),C124) -> 0Winter0-00 | L124: =VLOOKUP(Tabulation[[#This Row],[Concat]],Table3[],8) -> 0.28519 | M124: =(Tabulation[[#This Row],[AC System Output (kW)]]*Tabulation[[#This Row],[Rate]]) -> 0
A125: 1 | B125: 5 | C125: 1 | D125: 0 | E125: =Tabulation[[#This Row],[AC System Output (W)]]/1000 -> 0 | F125: =VLOOKUP(Tabulation[[#This Row],[Month]],Season,2) -> Winter | G125: =(DATE(2021,Tabulation[[#This Row],[Month]],Tabulation[[#This Row],[Day]])) -> 2021-01-05 | H125: =WEEKDAY(Tabulation[[#This Row],[Date]]) -> 3 | I125: =IF(OR(Tabulation[[#This Row],[DayNo]]=1,Tabulation[[#This Row],[DayNo]]=7),1,0) -> 0 | J125: =COUNTIF(Holidays,Tabulation[[#This Row],[Date]]) -> 0 | K125: =CONCATENATE(Tabulation[[#This Row],[Holiday]],Tabulation[[#This Row],[Season]],Tabulation[[#This Row],[Weekend]],"-",IF(Tabulation[[#This Row],[Hour]]<10,0,""),C125) -> 0Winter0-01 | L125: =VLOOKUP(Tabulation[[#This Row],[Concat]],Table3[],8) -> 0.28519 | M125: =(Tabulation[[#This Row],[AC System Output (kW)]]*Tabulation[[#This Row],[Rate]]) -> 0
A126: 1 | B126: 5 | C126: 2 | D126: 0 | E126: =Tabulation[[#This Row],[AC System Output (W)]]/1000 -> 0 | F126: =VLOOKUP(Tabulation[[#This Row],[Month]],Season,2) -> Winter | G126: =(DATE(2021,Tabulation[[#This Row],[Month]],Tabulation[[#This Row],[Day]])) -> 2021-01-05 | H126: =WEEKDAY(Tabulation[[#This Row],[Date]]) -> 3 | I126: =IF(OR(Tabulation[[#This Row],[DayNo]]=1,Tabulation[[#This Row],[DayNo]]=7),1,0) -> 0 | J126: =COUNTIF(Holidays,Tabulation[[#This Row],[Date]]) -> 0 | K126: =CONCATENATE(Tabulation[[#This Row],[Holiday]],Tabulation[[#This Row],[Season]],Tabulation[[#This Row],[Weekend]],"-",IF(Tabulation[[#This Row],[Hour]]<10,0,""),C126) -> 0Winter0-02 | L126: =VLOOKUP(Tabulation[[#This Row],[Concat]],Table3[],8) -> 0.28519 | M126: =(Tabulation[[#This Row],[AC System Output (kW)]]*Tabulation[[#This Row],[Rate]]) -> 0
A127: 1 | B127: 5 | C127: 3 | D127: 0 | E127: =Tabulation[[#This Row],[AC System Output (W)]]/1000 -> 0 | F127: =VLOOKUP(Tabulation[[#This Row],[Month]],Season,2) -> Winter | G127: =(DATE(2021,Tabulation[[#This Row],[Month]],Tabulation[[#This Row],[Day]])) -> 2021-01-05 | H127: =WEEKDAY(Tabulation[[#This Row],[Date]]) -> 3 | I127: =IF(OR(Tabulation[[#This Row],[DayNo]]=1,Tabulation[[#This Row],[DayNo]]=7),1,0) -> 0 | J127: =COUNTIF(Holidays,Tabulation[[#This Row],[Date]]) -> 0 | K127: =CONCATENATE(Tabulation[[#This Row],[Holiday]],Tabulation[[#This Row],[Season]],Tabulation[[#This Row],[Weekend]],"-",IF(Tabulation[[#This Row],[Hour]]<10,0,""),C127) -> 0Winter0-03 | L127: =VLOOKUP(Tabulation[[#This Row],[Concat]],Table3[],8) -> 0.28519 | M127: =(Tabulation[[#This Row],[AC System Output (kW)]]*Tabulation[[#This Row],[Rate]]) -> 0
A128: 1 | B128: 5 | C128: 4 | D128: 0 | E128: =Tabulation[[#This Row],[AC System Output (W)]]/1000 -> 0 | F128: =VLOOKUP(Tabulation[[#This Row],[Month]],Season,2) -> Winter | G128: =(DATE(2021,Tabulation[[#This Row],[Month]],Tabulation[[#This Row],[Day]])) -> 2021-01-05 | H128: =WEEKDAY(Tabulation[[#This Row],[Date]]) -> 3 | I128: =IF(OR(Tabulation[[#This Row],[DayNo]]=1,Tabulation[[#This Row],[DayNo]]=7),1,0) -> 0 | J128: =COUNTIF(Holidays,Tabulation[[#This Row],[Date]]) -> 0 | K128: =CONCATENATE(Tabulation[[#This Row],[Holiday]],Tabulation[[#This Row],[Season]],Tabulation[[#This Row],[Weekend]],"-",IF(Tabulation[[#This Row],[Hour]]<10,0,""),C128) -> 0Winter0-04 | L128: =VLOOKUP(Tabulation[[#This Row],[Concat]],Table3[],8) -> 0.28519 | M128: =(Tabulation[[#This Row],[AC System Output (kW)]]*Tabulation[[#This Row],[Rate]]) -> 0
A129: 1 | B129: 5 | C129: 5 | D129: 0 | E129: =Tabulation[[#This Row],[AC System Output (W)]]/1000 -> 0 | F129: =VLOOKUP(Tabulation[[#This Row],[Month]],Season,2) -> Winter | G129: =(DATE(2021,Tabulation[[#This Row],[Month]],Tabulation[[#This Row],[Day]])) -> 2021-01-05 | H129: =WEEKDAY(Tabulation[[#This Row],[Date]]) -> 3 | I129: =IF(OR(Tabulation[[#This Row],[DayNo]]=1,Tabulation[[#This Row],[DayNo]]=7),1,0) -> 0 | J129: =COUNTIF(Holidays,Tabulation[[#This Row],[Date]]) -> 0 | K129: =CONCATENATE(Tabulation[[#This Row],[Holiday]],Tabulation[[#This Row],[Season]],Tabulation[[#This Row],[Weekend]],"-",IF(Tabulation[[#This Row],[Hour]]<10,0,""),C129) -> 0Winter0-05 | L129: =VLOOKUP(Tabulation[[#This Row],[Concat]],Table3[],8) -> 0.28519 | M129: =(Tabulation[[#This Row],[AC System Output (kW)]]*Tabulation[[#This Row],[Rate]]) -> 0
A130: 1 | B130: 5 | C130: 6 | D130: 0 | E130: =Tabulation[[#This Row],[AC System Output (W)]]/1000 -> 0 | F130: =VLOOKUP(Tabulation[[#This Row],[Month]],Season,2) -> Winter | G130: =(DATE(2021,Tabulation[[#This Row],[Month]],Tabulation[[#This Row],[Day]])) -> 2021-01-05 | H130: =WEEKDAY(Tabulation[[#This Row],[Date]]) -> 3 | I130: =IF(OR(Tabulation[[#This Row],[DayNo]]=1,Tabulation[[#This Row],[DayNo]]=7),1,0) -> 0 | J130: =COUNTIF(Holidays,Tabulation[[#This Row],[Date]]) -> 0 | K130: =CONCATENATE(Tabulation[[#This Row],[Holiday]],Tabulation[[#This Row],[Season]],Tabulation[[#This Row],[Weekend]],"-",IF(Tabulation[[#This Row],[Hour]]<10,0,""),C130) -> 0Winter0-06 | L130: =VLOOKUP(Tabulation[[#This Row],[Concat]],Table3[],8) -> 0.28519 | M130: =(Tabulation[[#This Row],[AC System Output (kW)]]*Tabulation[[#This Row],[Rate]]) -> 0
A131: 1 | B131: 5 | C131: 7 | D131: 35.689 | E131: =Tabulation[[#This Row],[AC System Output (W)]]/1000 -> 0.035689 | F131: =VLOOKUP(Tabulation[[#This Row],[Month]],Season,2) -> Winter | G131: =(DATE(2021,Tabulation[[#This Row],[Month]],Tabulation[[#This Row],[Day]])) -> 2021-01-05 | H131: =WEEKDAY(Tabulation[[#This Row],[Date]]) -> 3 | I131: =IF(OR(Tabulation[[#This Row],[DayNo]]=1,Tabulation[[#This Row],[DayNo]]=7),1,0) -> 0 | J131: =COUNTIF(Holidays,Tabulation[[#This Row],[Date]]) -> 0 | K131: =CONCATENATE(Tabulation[[#This Row],[Holiday]],Tabulation[[#This Row],[Season]],Tabulation[[#This Row],[Weekend]],"-",IF(Tabulation[[#This Row],[Hour]]<10,0,""),C131) -> 0Winter0-07 | L131: =VLOOKUP(Tabulation[[#This Row],[Concat]],Table3[],8) -> 0.28519 | M131: =(Tabulation[[#This Row],[AC System Output (kW)]]*Tabulation[[#This Row],[Rate]]) -> 0.01017814591
A132: 1 | B132: 5 | C132: 8 | D132: 533.435 | E132: =Tabulation[[#This Row],[AC System Output (W)]]/1000 -> 0.533435 | F132: =VLOOKUP(Tabulation[[#This Row],[Month]],Season,2) -> Winter | G132: =(DATE(2021,Tabulation[[#This Row],[Month]],Tabulation[[#This Row],[Day]])) -> 2021-01-05 | H132: =WEEKDAY(Tabulation[[#This Row],[Date]]) -> 3 | I132: =IF(OR(Tabulation[[#This Row],[DayNo]]=1,Tabulation[[#This Row],[DayNo]]=7),1,0) -> 0 | J132: =COUNTIF(Holidays,Tabulation[[#This Row],[Date]]) -> 0 | K132: =CONCATENATE(Tabulation[[#This Row],[Holiday]],Tabulation[[#This Row],[Season]],Tabulation[[#This Row],[Weekend]],"-",IF(Tabulation[[#This Row],[Hour]]<10,0,""),C132) -> 0Winter0-08 | L132: =VLOOKUP(Tabulation[[#This Row],[Concat]],Table3[],8) -> 0.28519 | M132: =(Tabulation[[#This Row],[AC System Output (kW)]]*Tabulation[[#This Row],[Rate]]) -> 0.1521303277
A133: 1 | B133: 5 | C133: 9 | D133: 1233.285 | E133: =Tabulation[[#This Row],[AC System Output (W)]]/1000 -> 1.233285 | F133: =VLOOKUP(Tabulation[[#This Row],[Month]],Season,2) -> Winter | G133: =(DATE(2021,Tabulation[[#This Row],[Month]],Tabulation[[#This Row],[Day]])) -> 2021-01-05 | H133: =WEEKDAY(Tabulation[[#This Row],[Date]]) -> 3 | I133: =IF(OR(Tabulation[[#This Row],[DayNo]]=1,Tabulation[[#This Row],[DayNo]]=7),1,0) -> 0 | J133: =COUNTIF(Holidays,Tabulation[[#This Row],[Date]]) -> 0 | K133: =CONCATENATE(Tabulation[[#This Row],[Holiday]],Tabulation[[#This Row],[Season]],Tabulation[[#This Row],[Weekend]],"-",IF(Tabulation[[#This Row],[Hour]]<10,0,""),C133) -> 0Winter0-09 | L133: =VLOOKUP(Tabulation[[#This Row],[Concat]],Table3[],8) -> 0.28519 | M133: =(Tabulation[[#This Row],[AC System Output (kW)]]*Tabulation[[#This Row],[Rate]]) -> 0.3517205492
A134: 1 | B134: 5 | C134: 10 | D134: 2366.937 | E134: =Tabulation[[#This Row],[AC System Output (W)]]/1000 -> 2.366937 | F134: =VLOOKUP(Tabulation[[#This Row],[Month]],Season,2) -> Winter | G134: =(DATE(2021,Tabulation[[#This Row],[Month]],Tabulation[[#This Row],[Day]])) -> 2021-01-05 | H134: =WEEKDAY(Tabulation[[#This Row],[Date]]) -> 3 | I134: =IF(OR(Tabulation[[#This Row],[DayNo]]=1,Tabulation[[#This Row],[DayNo]]=7),1,0) -> 0 | J134: =COUNTIF(Holidays,Tabulation[[#This Row],[Date]]) -> 0 | K134: =CONCATENATE(Tabulation[[#This Row],[Holiday]],Tabulation[[#This Row],[Season]],Tabulation[[#This Row],[Weekend]],"-",IF(Tabulation[[#This Row],[Hour]]<10,0,""),C134) -> 0Winter0-10 | L134: =VLOOKUP(Tabulation[[#This Row],[Concat]],Table3[],8) -> 0.28519 | M134: =(Tabulation[[#This Row],[AC System Output (kW)]]*Tabulation[[#This Row],[Rate]]) -> 0.675026763
A135: 1 | B135: 5 | C135: 11 | D135: 2544.8 | E135: =Tabulation[[#This Row],[AC System Output (W)]]/1000 -> 2.5448 | F135: =VLOOKUP(Tabulation[[#This Row],[Month]],Season,2) -> Winter | G135: =(DATE(2021,Tabulation[[#This Row],[Month]],Tabulation[[#This Row],[Day]])) -> 2021-01-05 | H135: =WEEKDAY(Tabulation[[#This Row],[Date]]) -> 3 | I135: =IF(OR(Tabulation[[#This Row],[DayNo]]=1,Tabulation[[#This Row],[DayNo]]=7),1,0) -> 0 | J135: =COUNTIF(Holidays,Tabulation[[#This Row],[Date]]) -> 0 | K135: =CONCATENATE(Tabulation[[#This Row],[Holiday]],Tabulation[[#This Row],[Season]],Tabulation[[#This Row],[Weekend]],"-",IF(Tabulation[[#This Row],[Hour]]<10,0,""),C135) -> 0Winter0-11 | L135: =VLOOKUP(Tabulation[[#This Row],[Concat]],Table3[],8) -> 0.28519 | M135: =(Tabulation[[#This Row],[AC System Output (kW)]]*Tabulation[[#This Row],[Rate]]) -> 0.725751512
A136: 1 | B136: 5 | C136: 12 | D136: 1671.686 | E136: =Tabulation[[#This Row],[AC System Output (W)]]/1000 -> 1.671686 | F136: =VLOOKUP(Tabulation[[#This Row],[Month]],Season,2) -> Winter | G136: =(DATE(2021,Tabulation[[#This Row],[Month]],Tabulation[[#This Row],[Day]])) -> 2021-01-05 | H136: =WEEKDAY(Tabulation[[#This Row],[Date]]) -> 3 | I136: =IF(OR(Tabulation[[#This Row],[DayNo]]=1,Tabulation[[#This Row],[DayNo]]=7),1,0) -> 0 | J136: =COUNTIF(Holidays,Tabulation[[#This Row],[Date]]) -> 0 | K136: =CONCATENATE(Tabulation[[#This Row],[Holiday]],Tabulation[[#This Row],[Season]],Tabulation[[#This Row],[Weekend]],"-",IF(Tabulation[[#This Row],[Hour]]<10,0,""),C136) -> 0Winter0-12 | L136: =VLOOKUP(Tabulation[[#This Row],[Concat]],Table3[],8) -> 0.28519 | M136: =(Tabulation[[#This Row],[AC System Output (kW)]]*Tabulation[[#This Row],[Rate]]) -> 0.4767481303
A137: 1 | B137: 5 | C137: 13 | D137: 1899.923 | E137: =Tabulation[[#This Row],[AC System Output (W)]]/1000 -> 1.899923 | F137: =VLOOKUP(Tabulation[[#This Row],[Month]],Season,2) -> Winter | G137: =(DATE(2021,Tabulation[[#This Row],[Month]],Tabulation[[#This Row],[Day]])) -> 2021-01-05 | H137: =WEEKDAY(Tabulation[[#This Row],[Date]]) -> 3 | I137: =IF(OR(Tabulation[[#This Row],[DayNo]]=1,Tabulation[[#This Row],[DayNo]]=7),1,0) -> 0 | J137: =COUNTIF(Holidays,Tabulation[[#This Row],[Date]]) -> 0 | K137: =CONCATENATE(Tabulation[[#This Row],[Holiday]],Tabulation[[#This Row],[Season]],Tabulation[[#This Row],[Weekend]],"-",IF(Tabulation[[#This Row],[Hour]]<10,0,""),C137) -> 0Winter0-13 | L137: =VLOOKUP(Tabulation[[#This Row],[Concat]],Table3[],8) -> 0.28519 | M137: =(Tabulation[[#This Row],[AC System Output (kW)]]*Tabulation[[#This Row],[Rate]]) -> 0.5418390404
A138: 1 | B138: 5 | C138: 14 | D138: 1390.181 | E138: =Tabulation[[#This Row],[AC System Output (W)]]/1000 -> 1.390181 | F138: =VLOOKUP(Tabulation[[#This Row],[Month]],Season,2) -> Winter | G138: =(DATE(2021,Tabulation[[#This Row],[Month]],Tabulation[[#This Row],[Day]])) -> 2021-01-05 | H138: =WEEKDAY(Tabulation[[#This Row],[Date]]) -> 3 | I138: =IF(OR(Tabulation[[#This Row],[DayNo]]=1,Tabulation[[#This Row],[DayNo]]=7),1,0) -> 0 | J138: =COUNTIF(Holidays,Tabulation[[#This Row],[Date]]) -> 0 | K138: =CONCATENATE(Tabulation[[#This Row],[Holiday]],Tabulation[[#This Row],[Season]],Tabulation[[#This Row],[Weekend]],"-",IF(Tabulation[[#This Row],[Hour]]<10,0,""),C138) -> 0Winter0-14 | L138: =VLOOKUP(Tabulation[[#This Row],[Concat]],Table3[],8) -> 0.28519 | M138: =(Tabulation[[#This Row],[AC System Output (kW)]]*Tabulation[[#This Row],[Rate]]) -> 0.3964657194
A139: 1 | B139: 5 | C139: 15 | D139: 995.684 | E139: =Tabulation[[#This Row],[AC System Output (W)]]/1000 -> 0.995684 | F139: =VLOOKUP(Tabulation[[#This Row],[Month]],Season,2) -> Winter | G139: =(DATE(2021,Tabulation[[#This Row],[Month]],Tabulation[[#This Row],[Day]])) -> 2021-01-05 | H139: =WEEKDAY(Tabulation[[#This Row],[Date]]) -> 3 | I139: =IF(OR(Tabulation[[#This Row],[DayNo]]=1,Tabulation[[#This Row],[DayNo]]=7),1,0) -> 0 | J139: =COUNTIF(Holidays,Tabulation[[#This Row],[Date]]) -> 0 | K139: =CONCATENATE(Tabulation[[#This Row],[Holiday]],Tabulation[[#This Row],[Season]],Tabulation[[#This Row],[Weekend]],"-",IF(Tabulation[[#This Row],[Hour]]<10,0,""),C139) -> 0Winter0-15 | L139: =VLOOKUP(Tabulation[[#This Row],[Concat]],Table3[],8) -> 0.28519 | M139: =(Tabulation[[#This Row],[AC System Output (kW)]]*Tabulation[[#This Row],[Rate]]) -> 0.28395912
A140: 1 | B140: 5 | C140: 16 | D140: 254.435 | E140: =Tabulation[[#This Row],[AC System Output (W)]]/1000 -> 0.254435 | F140: =VLOOKUP(Tabulation[[#This Row],[Month]],Season,2) -> Winter | G140: =(DATE(2021,Tabulation[[#This Row],[Month]],Tabulation[[#This Row],[Day]])) -> 2021-01-05 | H140: =WEEKDAY(Tabulation[[#This Row],[Date]]) -> 3 | I140: =IF(OR(Tabulation[[#This Row],[DayNo]]=1,Tabulation[[#This Row],[DayNo]]=7),1,0) -> 0 | J140: =COUNTIF(Holidays,Tabulation[[#This Row],[Date]]) -> 0 | K140: =CONCATENATE(Tabulation[[#This Row],[Holiday]],Tabulation[[#This Row],[Season]],Tabulation[[#This Row],[Weekend]],"-",IF(Tabulation[[#This Row],[Hour]]<10,0,""),C140) -> 0Winter0-16 | L140: =VLOOKUP(Tabulation[[#This Row],[Concat]],Table3[],8) -> 0.28519 | M140: =(Tabulation[[#This Row],[AC System Output (kW)]]*Tabulation[[#This Row],[Rate]]) -> 0.07256231765
A141: 1 | B141: 5 | C141: 17 | D141: 0 | E141: =Tabulation[[#This Row],[AC System Output (W)]]/1000 -> 0 | F141: =VLOOKUP(Tabulation[[#This Row],[Month]],Season,2) -> Winter | G141: =(DATE(2021,Tabulation[[#This Row],[Month]],Tabulation[[#This Row],[Day]])) -> 2021-01-05 | H141: =WEEKDAY(Tabulation[[#This Row],[Date]]) -> 3 | I141: =IF(OR(Tabulation[[#This Row],[DayNo]]=1,Tabulation[[#This Row],[DayNo]]=7),1,0) -> 0 | J141: =COUNTIF(Holidays,Tabulation[[#This Row],[Date]]) -> 0 | K141: =CONCATENATE(Tabulation[[#This Row],[Holiday]],Tabulation[[#This Row],[Season]],Tabulation[[#This Row],[Weekend]],"-",IF(Tabulation[[#This Row],[Hour]]<10,0,""),C141) -> 0Winter0-17 | L141: =VLOOKUP(Tabulation[[#This Row],[Concat]],Table3[],8) -> 0.30257 | M141: =(Tabulation[[#This Row],[AC System Output (kW)]]*Tabulation[[#This Row],[Rate]]) -> 0
A142: 1 | B142: 5 | C142: 18 | D142: 0 | E142: =Tabulation[[#This Row],[AC System Output (W)]]/1000 -> 0 | F142: =VLOOKUP(Tabulation[[#This Row],[Month]],Season,2) -> Winter | G142: =(DATE(2021,Tabulation[[#This Row],[Month]],Tabulation[[#This Row],[Day]])) -> 2021-01-05 | H142: =WEEKDAY(Tabulation[[#This Row],[Date]]) -> 3 | I142: =IF(OR(Tabulation[[#This Row],[DayNo]]=1,Tabulation[[#This Row],[DayNo]]=7),1,0) -> 0 | J142: =COUNTIF(Holidays,Tabulation[[#This Row],[Date]]) -> 0 | K142: =CONCATENATE(Tabulation[[#This Row],[Holiday]],Tabulation[[#This Row],[Season]],Tabulation[[#This Row],[Weekend]],"-",IF(Tabulation[[#This Row],[Hour]]<10,0,""),C142) -> 0Winter0-18 | L142: =VLOOKUP(Tabulation[[#This Row],[Concat]],Table3[],8) -> 0.30257 | M142: =(Tabulation[[#This Row],[AC System Output (kW)]]*Tabulation[[#This Row],[Rate]]) -> 0
A143: 1 | B143: 5 | C143: 19 | D143: 0 | E143: =Tabulation[[#This Row],[AC System Output (W)]]/1000 -> 0 | F143: =VLOOKUP(Tabulation[[#This Row],[Month]],Season,2) -> Winter | G143: =(DATE(2021,Tabulation[[#This Row],[Month]],Tabulation[[#This Row],[Day]])) -> 2021-01-05 | H143: =WEEKDAY(Tabulation[[#This Row],[Date]]) -> 3 | I143: =IF(OR(Tabulation[[#This Row],[DayNo]]=1,Tabulation[[#This Row],[DayNo]]=7),1,0) -> 0 | J143: =COUNTIF(Holidays,Tabulation[[#This Row],[Date]]) -> 0 | K143: =CONCATENATE(Tabulation[[#This Row],[Holiday]],Tabulation[[#This Row],[Season]],Tabulation[[#This Row],[Weekend]],"-",IF(Tabulation[[#This Row],[Hour]]<10,0,""),C143) -> 0Winter0-19 | L143: =VLOOKUP(Tabulation[[#This Row],[Concat]],Table3[],8) -> 0.30257 | M143: =(Tabulation[[#This Row],[AC System Output (kW)]]*Tabulation[[#This Row],[Rate]]) -> 0
A144: 1 | B144: 5 | C144: 20 | D144: 0 | E144: =Tabulation[[#This Row],[AC System Output (W)]]/1000 -> 0 | F144: =VLOOKUP(Tabulation[[#This Row],[Month]],Season,2) -> Winter | G144: =(DATE(2021,Tabulation[[#This Row],[Month]],Tabulation[[#This Row],[Day]])) -> 2021-01-05 | H144: =WEEKDAY(Tabulation[[#This Row],[Date]]) -> 3 | I144: =IF(OR(Tabulation[[#This Row],[DayNo]]=1,Tabulation[[#This Row],[DayNo]]=7),1,0) -> 0 | J144: =COUNTIF(Holidays,Tabulation[[#This Row],[Date]]) -> 0 | K144: =CONCATENATE(Tabulation[[#This Row],[Holiday]],Tabulation[[#This Row],[Season]],Tabulation[[#This Row],[Weekend]],"-",IF(Tabulation[[#This Row],[Hour]]<10,0,""),C144) -> 0Winter0-20 | L144: =VLOOKUP(Tabulation[[#This Row],[Concat]],Table3[],8) -> 0.28519 | M144: =(Tabulation[[#This Row],[AC System Output (kW)]]*Tabulation[[#This Row],[Rate]]) -> 0
A145: 1 | B145: 5 | C145: 21 | D145: 0 | E145: =Tabulation[[#This Row],[AC System Output (W)]]/1000 -> 0 | F145: =VLOOKUP(Tabulation[[#This Row],[Month]],Season,2) -> Winter | G145: =(DATE(2021,Tabulation[[#This Row],[Month]],Tabulation[[#This Row],[Day]])) -> 2021-01-05 | H145: =WEEKDAY(Tabulation[[#This Row],[Date]]) -> 3 | I145: =IF(OR(Tabulation[[#This Row],[DayNo]]=1,Tabulation[[#This Row],[DayNo]]=7),1,0) -> 0 | J145: =COUNTIF(Holidays,Tabulation[[#This Row],[Date]]) -> 0 | K145: =CONCATENATE(Tabulation[[#This Row],[Holiday]],Tabulation[[#This Row],[Season]],Tabulation[[#This Row],[Weekend]],"-",IF(Tabulation[[#This Row],[Hour]]<10,0,""),C145) -> 0Winter0-21 | L145: =VLOOKUP(Tabulation[[#This Row],[Concat]],Table3[],8) -> 0.28519 | M145: =(Tabulation[[#This Row],[AC System Output (kW)]]*Tabulation[[#This Row],[Rate]]) -> 0
A146: 1 | B146: 5 | C146: 22 | D146: 0 | E146: =Tabulation[[#This Row],[AC System Output (W)]]/1000 -> 0 | F146: =VLOOKUP(Tabulation[[#This Row],[Month]],Season,2) -> Winter | G146: =(DATE(2021,Tabulation[[#This Row],[Month]],Tabulation[[#This Row],[Day]])) -> 2021-01-05 | H146: =WEEKDAY(Tabulation[[#This Row],[Date]]) -> 3 | I146: =IF(OR(Tabulation[[#This Row],[DayNo]]=1,Tabulation[[#This Row],[DayNo]]=7),1,0) -> 0 | J146: =COUNTIF(Holidays,Tabulation[[#This Row],[Date]]) -> 0 | K146: =CONCATENATE(Tabulation[[#This Row],[Holiday]],Tabulation[[#This Row],[Season]],Tabulation[[#This Row],[Weekend]],"-",IF(Tabulation[[#This Row],[Hour]]<10,0,""),C146) -> 0Winter0-22 | L146: =VLOOKUP(Tabulation[[#This Row],[Concat]],Table3[],8) -> 0.28519 | M146: =(Tabulation[[#This Row],[AC System Output (kW)]]*Tabulation[[#This Row],[Rate]]) -> 0
A147: 1 | B147: 5 | C147: 23 | D147: 0 | E147: =Tabulation[[#This Row],[AC System Output (W)]]/1000 -> 0 | F147: =VLOOKUP(Tabulation[[#This Row],[Month]],Season,2) -> Winter | G147: =(DATE(2021,Tabulation[[#This Row],[Month]],Tabulation[[#This Row],[Day]])) -> 2021-01-05 | H147: =WEEKDAY(Tabulation[[#This Row],[Date]]) -> 3 | I147: =IF(OR(Tabulation[[#This Row],[DayNo]]=1,Tabulation[[#This Row],[DayNo]]=7),1,0) -> 0 | J147: =COUNTIF(Holidays,Tabulation[[#This Row],[Date]]) -> 0 | K147: =CONCATENATE(Tabulation[[#This Row],[Holiday]],Tabulation[[#This Row],[Season]],Tabulation[[#This Row],[Weekend]],"-",IF(Tabulation[[#This Row],[Hour]]<10,0,""),C147) -> 0Winter0-23 | L147: =VLOOKUP(Tabulation[[#This Row],[Concat]],Table3[],8) -> 0.28519 | M147: =(Tabulation[[#This Row],[AC System Output (kW)]]*Tabulation[[#This Row],[Rate]]) -> 0
A148: 1 | B148: 6 | C148: 0 | D148: 0 | E148: =Tabulation[[#This Row],[AC System Output (W)]]/1000 -> 0 | F148: =VLOOKUP(Tabulation[[#This Row],[Month]],Season,2) -> Winter | G148: =(DATE(2021,Tabulation[[#This Row],[Month]],Tabulation[[#This Row],[Day]])) -> 2021-01-06 | H148: =WEEKDAY(Tabulation[[#This Row],[Date]]) -> 4 | I148: =IF(OR(Tabulation[[#This Row],[DayNo]]=1,Tabulation[[#This Row],[DayNo]]=7),1,0) -> 0 | J148: =COUNTIF(Holidays,Tabulation[[#This Row],[Date]]) -> 0 | K148: =CONCATENATE(Tabulation[[#This Row],[Holiday]],Tabulation[[#This Row],[Season]],Tabulation[[#This Row],[Weekend]],"-",IF(Tabulation[[#This Row],[Hour]]<10,0,""),C148) -> 0Winter0-00 | L148: =VLOOKUP(Tabulation[[#This Row],[Concat]],Table3[],8) -> 0.28519 | M148: =(Tabulation[[#This Row],[AC System Output (kW)]]*Tabulation[[#This Row],[Rate]]) -> 0
A149: 1 | B149: 6 | C149: 1 | D149: 0 | E149: =Tabulation[[#This Row],[AC System Output (W)]]/1000 -> 0 | F149: =VLOOKUP(Tabulation[[#This Row],[Month]],Season,2) -> Winter | G149: =(DATE(2021,Tabulation[[#This Row],[Month]],Tabulation[[#This Row],[Day]])) -> 2021-01-06 | H149: =WEEKDAY(Tabulation[[#This Row],[Date]]) -> 4 | I149: =IF(OR(Tabulation[[#This Row],[DayNo]]=1,Tabulation[[#This Row],[DayNo]]=7),1,0) -> 0 | J149: =COUNTIF(Holidays,Tabulation[[#This Row],[Date]]) -> 0 | K149: =CONCATENATE(Tabulation[[#This Row],[Holiday]],Tabulation[[#This Row],[Season]],Tabulation[[#This Row],[Weekend]],"-",IF(Tabulation[[#This Row],[Hour]]<10,0,""),C149) -> 0Winter0-01 | L149: =VLOOKUP(Tabulation[[#This Row],[Concat]],Table3[],8) -> 0.28519 | M149: =(Tabulation[[#This Row],[AC System Output (kW)]]*Tabulation[[#This Row],[Rate]]) -> 0
A150: 1 | B150: 6 | C150: 2 | D150: 0 | E150: =Tabulation[[#This Row],[AC System Output (W)]]/1000 -> 0 | F150: =VLOOKUP(Tabulation[[#This Row],[Month]],Season,2) -> Winter | G150: =(DATE(2021,Tabulation[[#This Row],[Month]],Tabulation[[#This Row],[Day]])) -> 2021-01-06 | H150: =WEEKDAY(Tabulation[[#This Row],[Date]]) -> 4 | I150: =IF(OR(Tabulation[[#This Row],[DayNo]]=1,Tabulation[[#This Row],[DayNo]]=7),1,0) -> 0 | J150: =COUNTIF(Holidays,Tabulation[[#This Row],[Date]]) -> 0 | K150: =CONCATENATE(Tabulation[[#This Row],[Holiday]],Tabulation[[#This Row],[Season]],Tabulation[[#This Row],[Weekend]],"-",IF(Tabulation[[#This Row],[Hour]]<10,0,""),C150) -> 0Winter0-02 | L150: =VLOOKUP(Tabulation[[#This Row],[Concat]],Table3[],8) -> 0.28519 | M150: =(Tabulation[[#This Row],[AC System Output (kW)]]*Tabulation[[#This Row],[Rate]]) -> 0
A151: 1 | B151: 6 | C151: 3 | D151: 0 | E151: =Tabulation[[#This Row],[AC System Output (W)]]/1000 -> 0 | F151: =VLOOKUP(Tabulation[[#This Row],[Month]],Season,2) -> Winter | G151: =(DATE(2021,Tabulation[[#This Row],[Month]],Tabulation[[#This Row],[Day]])) -> 2021-01-06 | H151: =WEEKDAY(Tabulation[[#This Row],[Date]]) -> 4 | I151: =IF(OR(Tabulation[[#This Row],[DayNo]]=1,Tabulation[[#This Row],[DayNo]]=7),1,0) -> 0 | J151: =COUNTIF(Holidays,Tabulation[[#This Row],[Date]]) -> 0 | K151: =CONCATENATE(Tabulation[[#This Row],[Holiday]],Tabulation[[#This Row],[Season]],Tabulation[[#This Row],[Weekend]],"-",IF(Tabulation[[#This Row],[Hour]]<10,0,""),C151) -> 0Winter0-03 | L151: =VLOOKUP(Tabulation[[#This Row],[Concat]],Table3[],8) -> 0.28519 | M151: =(Tabulation[[#This Row],[AC System Output (kW)]]*Tabulation[[#This Row],[Rate]]) -> 0
A152: 1 | B152: 6 | C152: 4 | D152: 0 | E152: =Tabulation[[#This Row],[AC System Output (W)]]/1000 -> 0 | F152: =VLOOKUP(Tabulation[[#This Row],[Month]],Season,2) -> Winter | G152: =(DATE(2021,Tabulation[[#This Row],[Month]],Tabulation[[#This Row],[Day]])) -> 2021-01-06 | H152: =WEEKDAY(Tabulation[[#This Row],[Date]]) -> 4 | I152: =IF(OR(Tabulation[[#This Row],[DayNo]]=1,Tabulation[[#This Row],[DayNo]]=7),1,0) -> 0 | J152: =COUNTIF(Holidays,Tabulation[[#This Row],[Date]]) -> 0 | K152: =CONCATENATE(Tabulation[[#This Row],[Holiday]],Tabulation[[#This Row],[Season]],Tabulation[[#This Row],[Weekend]],"-",IF(Tabulation[[#This Row],[Hour]]<10,0,""),C152) -> 0Winter0-04 | L152: =VLOOKUP(Tabulation[[#This Row],[Concat]],Table3[],8) -> 0.28519 | M152: =(Tabulation[[#This Row],[AC System Output (kW)]]*Tabulation[[#This Row],[Rate]]) -> 0
A153: 1 | B153: 6 | C153: 5 | D153: 0 | E153: =Tabulation[[#This Row],[AC System Output (W)]]/1000 -> 0 | F153: =VLOOKUP(Tabulation[[#This Row],[Month]],Season,2) -> Winter | G153: =(DATE(2021,Tabulation[[#This Row],[Month]],Tabulation[[#This Row],[Day]])) -> 2021-01-06 | H153: =WEEKDAY(Tabulation[[#This Row],[Date]]) -> 4 | I153: =IF(OR(Tabulation[[#This Row],[DayNo]]=1,Tabulation[[#This Row],[DayNo]]=7),1,0) -> 0 | J153: =COUNTIF(Holidays,Tabulation[[#This Row],[Date]]) -> 0 | K153: =CONCATENATE(Tabulation[[#This Row],[Holiday]],Tabulation[[#This Row],[Season]],Tabulation[[#This Row],[Weekend]],"-",IF(Tabulation[[#This Row],[Hour]]<10,0,""),C153) -> 0Winter0-05 | L153: =VLOOKUP(Tabulation[[#This Row],[Concat]],Table3[],8) -> 0.28519 | M153: =(Tabulation[[#This Row],[AC System Output (kW)]]*Tabulation[[#This Row],[Rate]]) -> 0
A154: 1 | B154: 6 | C154: 6 | D154: 0 | E154: =Tabulation[[#This Row],[AC System Output (W)]]/1000 -> 0 | F154: =VLOOKUP(Tabulation[[#This Row],[Month]],Season,2) -> Winter | G154: =(DATE(2021,Tabulation[[#This Row],[Month]],Tabulation[[#This Row],[Day]])) -> 2021-01-06 | H154: =WEEKDAY(Tabulation[[#This Row],[Date]]) -> 4 | I154: =IF(OR(Tabulation[[#This Row],[DayNo]]=1,Tabulation[[#This Row],[DayNo]]=7),1,0) -> 0 | J154: =COUNTIF(Holidays,Tabulation[[#This Row],[Date]]) -> 0 | K154: =CONCATENATE(Tabulation[[#This Row],[Holiday]],Tabulation[[#This Row],[Season]],Tabulation[[#This Row],[Weekend]],"-",IF(Tabulation[[#This Row],[Hour]]<10,0,""),C154) -> 0Winter0-06 | L154: =VLOOKUP(Tabulation[[#This Row],[Concat]],Table3[],8) -> 0.28519 | M154: =(Tabulation[[#This Row],[AC System Output (kW)]]*Tabulation[[#This Row],[Rate]]) -> 0
A155: 1 | B155: 6 | C155: 7 | D155: 85.83 | E155: =Tabulation[[#This Row],[AC System Output (W)]]/1000 -> 0.08583 | F155: =VLOOKUP(Tabulation[[#This Row],[Month]],Season,2) -> Winter | G155: =(DATE(2021,Tabulation[[#This Row],[Month]],Tabulation[[#This Row],[Day]])) -> 2021-01-06 | H155: =WEEKDAY(Tabulation[[#This Row],[Date]]) -> 4 | I155: =IF(OR(Tabulation[[#This Row],[DayNo]]=1,Tabulation[[#This Row],[DayNo]]=7),1,0) -> 0 | J155: =COUNTIF(Holidays,Tabulation[[#This Row],[Date]]) -> 0 | K155: =CONCATENATE(Tabulation[[#This Row],[Holiday]],Tabulation[[#This Row],[Season]],Tabulation[[#This Row],[Weekend]],"-",IF(Tabulation[[#This Row],[Hour]]<10,0,""),C155) -> 0Winter0-07 | L155: =VLOOKUP(Tabulation[[#This Row],[Concat]],Table3[],8) -> 0.28519 | M155: =(Tabulation[[#This Row],[AC System Output (kW)]]*Tabulation[[#This Row],[Rate]]) -> 0.0244778577
A156: 1 | B156: 6 | C156: 8 | D156: 450.307 | E156: =Tabulation[[#This Row],[AC System Output (W)]]/1000 -> 0.450307 | F156: =VLOOKUP(Tabulation[[#This Row],[Month]],Season,2) -> Winter | G156: =(DATE(2021,Tabulation[[#This Row],[Month]],Tabulation[[#This Row],[Day]])) -> 2021-01-06 | H156: =WEEKDAY(Tabulation[[#This Row],[Date]]) -> 4 | I156: =IF(OR(Tabulation[[#This Row],[DayNo]]=1,Tabulation[[#This Row],[DayNo]]=7),1,0) -> 0 | J156: =COUNTIF(Holidays,Tabulation[[#This Row],[Date]]) -> 0 | K156: =CONCATENATE(Tabulation[[#This Row],[Holiday]],Tabulation[[#This Row],[Season]],Tabulation[[#This Row],[Weekend]],"-",IF(Tabulation[[#This Row],[Hour]]<10,0,""),C156) -> 0Winter0-08 | L156: =VLOOKUP(Tabulation[[#This Row],[Concat]],Table3[],8) -> 0.28519 | M156: =(Tabulation[[#This Row],[AC System Output (kW)]]*Tabulation[[#This Row],[Rate]]) -> 0.1284230533
A157: 1 | B157: 6 | C157: 9 | D157: 1817.954 | E157: =Tabulation[[#This Row],[AC System Output (W)]]/1000 -> 1.817954 | F157: =VLOOKUP(Tabulation[[#This Row],[Month]],Season,2) -> Winter | G157: =(DATE(2021,Tabulation[[#This Row],[Month]],Tabulation[[#This Row],[Day]])) -> 2021-01-06 | H157: =WEEKDAY(Tabulation[[#This Row],[Date]]) -> 4 | I157: =IF(OR(Tabulation[[#This Row],[DayNo]]=1,Tabulation[[#This Row],[DayNo]]=7),1,0) -> 0 | J157: =COUNTIF(Holidays,Tabulation[[#This Row],[Date]]) -> 0 | K157: =CONCATENATE(Tabulation[[#This Row],[Holiday]],Tabulation[[#This Row],[Season]],Tabulation[[#This Row],[Weekend]],"-",IF(Tabulation[[#This Row],[Hour]]<10,0,""),C157) -> 0Winter0-09 | L157: =VLOOKUP(Tabulation[[#This Row],[Concat]],Table3[],8) -> 0.28519 | M157: =(Tabulation[[#This Row],[AC System Output (kW)]]*Tabulation[[#This Row],[Rate]]) -> 0.5184623013
A158: 1 | B158: 6 | C158: 10 | D158: 2262.136 | E158: =Tabulation[[#This Row],[AC System Output (W)]]/1000 -> 2.262136 | F158: =VLOOKUP(Tabulation[[#This Row],[Month]],Season,2) -> Winter | G158: =(DATE(2021,Tabulation[[#This Row],[Month]],Tabulation[[#This Row],[Day]])) -> 2021-01-06 | H158: =WEEKDAY(Tabulation[[#This Row],[Date]]) -> 4 | I158: =IF(OR(Tabulation[[#This Row],[DayNo]]=1,Tabulation[[#This Row],[DayNo]]=7),1,0) -> 0 | J158: =COUNTIF(Holidays,Tabulation[[#This Row],[Date]]) -> 0 | K158: =CONCATENATE(Tabulation[[#This Row],[Holiday]],Tabulation[[#This Row],[Season]],Tabulation[[#This Row],[Weekend]],"-",IF(Tabulation[[#This Row],[Hour]]<10,0,""),C158) -> 0Winter0-10 | L158: =VLOOKUP(Tabulation[[#This Row],[Concat]],Table3[],8) -> 0.28519 | M158: =(Tabulation[[#This Row],[AC System Output (kW)]]*Tabulation[[#This Row],[Rate]]) -> 0.6451385658
A159: 1 | B159: 6 | C159: 11 | D159: 2407.295 | E159: =Tabulation[[#This Row],[AC System Output (W)]]/1000 -> 2.407295 | F159: =VLOOKUP(Tabulation[[#This Row],[Month]],Season,2) -> Winter | G159: =(DATE(2021,Tabulation[[#This Row],[Month]],Tabulation[[#This Row],[Day]])) -> 2021-01-06 | H159: =WEEKDAY(Tabulation[[#This Row],[Date]]) -> 4 | I159: =IF(OR(Tabulation[[#This Row],[DayNo]]=1,Tabulation[[#This Row],[DayNo]]=7),1,0) -> 0 | J159: =COUNTIF(Holidays,Tabulation[[#This Row],[Date]]) -> 0 | K159: =CONCATENATE(Tabulation[[#This Row],[Holiday]],Tabulation[[#This Row],[Season]],Tabulation[[#This Row],[Weekend]],"-",IF(Tabulation[[#This Row],[Hour]]<10,0,""),C159) -> 0Winter0-11 | L159: =VLOOKUP(Tabulation[[#This Row],[Concat]],Table3[],8) -> 0.28519 | M159: =(Tabulation[[#This Row],[AC System Output (kW)]]*Tabulation[[#This Row],[Rate]]) -> 0.686536461
A160: 1 | B160: 6 | C160: 12 | D160: 2417.606 | E160: =Tabulation[[#This Row],[AC System Output (W)]]/1000 -> 2.417606 | F160: =VLOOKUP(Tabulation[[#This Row],[Month]],Season,2) -> Winter | G160: =(DATE(2021,Tabulation[[#This Row],[Month]],Tabulation[[#This Row],[Day]])) -> 2021-01-06 | H160: =WEEKDAY(Tabulation[[#This Row],[Date]]) -> 4 | I160: =IF(OR(Tabulation[[#This Row],[DayNo]]=1,Tabulation[[#This Row],[DayNo]]=7),1,0) -> 0 | J160: =COUNTIF(Holidays,Tabulation[[#This Row],[Date]]) -> 0 | K160: =CONCATENATE(Tabulation[[#This Row],[Holiday]],Tabulation[[#This Row],[Season]],Tabulation[[#This Row],[Weekend]],"-",IF(Tabulation[[#This Row],[Hour]]<10,0,""),C160) -> 0Winter0-12 | L160: =VLOOKUP(Tabulation[[#This Row],[Concat]],Table3[],8) -> 0.28519 | M160: =(Tabulation[[#This Row],[AC System Output (kW)]]*Tabulation[[#This Row],[Rate]]) -> 0.6894770551
A161: 1 | B161: 6 | C161: 13 | D161: 2310.212 | E161: =Tabulation[[#This Row],[AC System Output (W)]]/1000 -> 2.310212 | F161: =VLOOKUP(Tabulation[[#This Row],[Month]],Season,2) -> Winter | G161: =(DATE(2021,Tabulation[[#This Row],[Month]],Tabulation[[#This Row],[Day]])) -> 2021-01-06 | H161: =WEEKDAY(Tabulation[[#This Row],[Date]]) -> 4 | I161: =IF(OR(Tabulation[[#This Row],[DayNo]]=1,Tabulation[[#This Row],[DayNo]]=7),1,0) -> 0 | J161: =COUNTIF(Holidays,Tabulation[[#This Row],[Date]]) -> 0 | K161: =CONCATENATE(Tabulation[[#This Row],[Holiday]],Tabulation[[#This Row],[Season]],Tabulation[[#This Row],[Weekend]],"-",IF(Tabulation[[#This Row],[Hour]]<10,0,""),C161) -> 0Winter0-13 | L161: =VLOOKUP(Tabulation[[#This Row],[Concat]],Table3[],8) -> 0.28519 | M161: =(Tabulation[[#This Row],[AC System Output (kW)]]*Tabulation[[#This Row],[Rate]]) -> 0.6588493603
A162: 1 | B162: 6 | C162: 14 | D162: 1910.505 | E162: =Tabulation[[#This Row],[AC System Output (W)]]/1000 -> 1.910505 | F162: =VLOOKUP(Tabulation[[#This Row],[Month]],Season,2) -> Winter | G162: =(DATE(2021,Tabulation[[#This Row],[Month]],Tabulation[[#This Row],[Day]])) -> 2021-01-06 | H162: =WEEKDAY(Tabulation[[#This Row],[Date]]) -> 4 | I162: =IF(OR(Tabulation[[#This Row],[DayNo]]=1,Tabulation[[#This Row],[DayNo]]=7),1,0) -> 0 | J162: =COUNTIF(Holidays,Tabulation[[#This Row],[Date]]) -> 0 | K162: =CONCATENATE(Tabulation[[#This Row],[Holiday]],Tabulation[[#This Row],[Season]],Tabulation[[#This Row],[Weekend]],"-",IF(Tabulation[[#This Row],[Hour]]<10,0,""),C162) -> 0Winter0-14 | L162: =VLOOKUP(Tabulation[[#This Row],[Concat]],Table3[],8) -> 0.28519 | M162: =(Tabulation[[#This Row],[AC System Output (kW)]]*Tabulation[[#This Row],[Rate]]) -> 0.544856921
A163: 1 | B163: 6 | C163: 15 | D163: 1266.475 | E163: =Tabulation[[#This Row],[AC System Output (W)]]/1000 -> 1.266475 | F163: =VLOOKUP(Tabulation[[#This Row],[Month]],Season,2) -> Winter | G163: =(DATE(2021,Tabulation[[#This Row],[Month]],Tabulation[[#This Row],[Day]])) -> 2021-01-06 | H163: =WEEKDAY(Tabulation[[#This Row],[Date]]) -> 4 | I163: =IF(OR(Tabulation[[#This Row],[DayNo]]=1,Tabulation[[#This Row],[DayNo]]=7),1,0) -> 0 | J163: =COUNTIF(Holidays,Tabulation[[#This Row],[Date]]) -> 0 | K163: =CONCATENATE(Tabulation[[#This Row],[Holiday]],Tabulation[[#This Row],[Season]],Tabulation[[#This Row],[Weekend]],"-",IF(Tabulation[[#This Row],[Hour]]<10,0,""),C163) -> 0Winter0-15 | L163: =VLOOKUP(Tabulation[[#This Row],[Concat]],Table3[],8) -> 0.28519 | M163: =(Tabulation[[#This Row],[AC System Output (kW)]]*Tabulation[[#This Row],[Rate]]) -> 0.3611860052
A164: 1 | B164: 6 | C164: 16 | D164: 209.944 | E164: =Tabulation[[#This Row],[AC System Output (W)]]/1000 -> 0.209944 | F164: =VLOOKUP(Tabulation[[#This Row],[Month]],Season,2) -> Winter | G164: =(DATE(2021,Tabulation[[#This Row],[Month]],Tabulation[[#This Row],[Day]])) -> 2021-01-06 | H164: =WEEKDAY(Tabulation[[#This Row],[Date]]) -> 4 | I164: =IF(OR(Tabulation[[#This Row],[DayNo]]=1,Tabulation[[#This Row],[DayNo]]=7),1,0) -> 0 | J164: =COUNTIF(Holidays,Tabulation[[#This Row],[Date]]) -> 0 | K164: =CONCATENATE(Tabulation[[#This Row],[Holiday]],Tabulation[[#This Row],[Season]],Tabulation[[#This Row],[Weekend]],"-",IF(Tabulation[[#This Row],[Hour]]<10,0,""),C164) -> 0Winter0-16 | L164: =VLOOKUP(Tabulation[[#This Row],[Concat]],Table3[],8) -> 0.28519 | M164: =(Tabulation[[#This Row],[AC System Output (kW)]]*Tabulation[[#This Row],[Rate]]) -> 0.05987392936
A165: 1 | B165: 6 | C165: 17 | D165: 0 | E165: =Tabulation[[#This Row],[AC System Output (W)]]/1000 -> 0 | F165: =VLOOKUP(Tabulation[[#This Row],[Month]],Season,2) -> Winter | G165: =(DATE(2021,Tabulation[[#This Row],[Month]],Tabulation[[#This Row],[Day]])) -> 2021-01-06 | H165: =WEEKDAY(Tabulation[[#This Row],[Date]]) -> 4 | I165: =IF(OR(Tabulation[[#This Row],[DayNo]]=1,Tabulation[[#This Row],[DayNo]]=7),1,0) -> 0 | J165: =COUNTIF(Holidays,Tabulation[[#This Row],[Date]]) -> 0 | K165: =CONCATENATE(Tabulation[[#This Row],[Holiday]],Tabulation[[#This Row],[Season]],Tabulation[[#This Row],[Weekend]],"-",IF(Tabulation[[#This Row],[Hour]]<10,0,""),C165) -> 0Winter0-17 | L165: =VLOOKUP(Tabulation[[#This Row],[Concat]],Table3[],8) -> 0.30257 | M165: =(Tabulation[[#This Row],[AC System Output (kW)]]*Tabulation[[#This Row],[Rate]]) -> 0
A166: 1 | B166: 6 | C166: 18 | D166: 0 | E166: =Tabulation[[#This Row],[AC System Output (W)]]/1000 -> 0 | F166: =VLOOKUP(Tabulation[[#This Row],[Month]],Season,2) -> Winter | G166: =(DATE(2021,Tabulation[[#This Row],[Month]],Tabulation[[#This Row],[Day]])) -> 2021-01-06 | H166: =WEEKDAY(Tabulation[[#This Row],[Date]]) -> 4 | I166: =IF(OR(Tabulation[[#This Row],[DayNo]]=1,Tabulation[[#This Row],[DayNo]]=7),1,0) -> 0 | J166: =COUNTIF(Holidays,Tabulation[[#This Row],[Date]]) -> 0 | K166: =CONCATENATE(Tabulation[[#This Row],[Holiday]],Tabulation[[#This Row],[Season]],Tabulation[[#This Row],[Weekend]],"-",IF(Tabulation[[#This Row],[Hour]]<10,0,""),C166) -> 0Winter0-18 | L166: =VLOOKUP(Tabulation[[#This Row],[Concat]],Table3[],8) -> 0.30257 | M166: =(Tabulation[[#This Row],[AC System Output (kW)]]*Tabulation[[#This Row],[Rate]]) -> 0
A167: 1 | B167: 6 | C167: 19 | D167: 0 | E167: =Tabulation[[#This Row],[AC System Output (W)]]/1000 -> 0 | F167: =VLOOKUP(Tabulation[[#This Row],[Month]],Season,2) -> Winter | G167: =(DATE(2021,Tabulation[[#This Row],[Month]],Tabulation[[#This Row],[Day]])) -> 2021-01-06 | H167: =WEEKDAY(Tabulation[[#This Row],[Date]]) -> 4 | I167: =IF(OR(Tabulation[[#This Row],[DayNo]]=1,Tabulation[[#This Row],[DayNo]]=7),1,0) -> 0 | J167: =COUNTIF(Holidays,Tabulation[[#This Row],[Date]]) -> 0 | K167: =CONCATENATE(Tabulation[[#This Row],[Holiday]],Tabulation[[#This Row],[Season]],Tabulation[[#This Row],[Weekend]],"-",IF(Tabulation[[#This Row],[Hour]]<10,0,""),C167) -> 0Winter0-19 | L167: =VLOOKUP(Tabulation[[#This Row],[Concat]],Table3[],8) -> 0.30257 | M167: =(Tabulation[[#This Row],[AC System Output (kW)]]*Tabulation[[#This Row],[Rate]]) -> 0
A168: 1 | B168: 6 | C168: 20 | D168: 0 | E168: =Tabulation[[#This Row],[AC System Output (W)]]/1000 -> 0 | F168: =VLOOKUP(Tabulation[[#This Row],[Month]],Season,2) -> Winter | G168: =(DATE(2021,Tabulation[[#This Row],[Month]],Tabulation[[#This Row],[Day]])) -> 2021-01-06 | H168: =WEEKDAY(Tabulation[[#This Row],[Date]]) -> 4 | I168: =IF(OR(Tabulation[[#This Row],[DayNo]]=1,Tabulation[[#This Row],[DayNo]]=7),1,0) -> 0 | J168: =COUNTIF(Holidays,Tabulation[[#This Row],[Date]]) -> 0 | K168: =CONCATENATE(Tabulation[[#This Row],[Holiday]],Tabulation[[#This Row],[Season]],Tabulation[[#This Row],[Weekend]],"-",IF(Tabulation[[#This Row],[Hour]]<10,0,""),C168) -> 0Winter0-20 | L168: =VLOOKUP(Tabulation[[#This Row],[Concat]],Table3[],8) -> 0.28519 | M168: =(Tabulation[[#This Row],[AC System Output (kW)]]*Tabulation[[#This Row],[Rate]]) -> 0
A169: 1 | B169: 6 | C169: 21 | D169: 0 | E169: =Tabulation[[#This Row],[AC System Output (W)]]/1000 -> 0 | F169: =VLOOKUP(Tabulation[[#This Row],[Month]],Season,2) -> Winter | G169: =(DATE(2021,Tabulation[[#This Row],[Month]],Tabulation[[#This Row],[Day]])) -> 2021-01-06 | H169: =WEEKDAY(Tabulation[[#This Row],[Date]]) -> 4 | I169: =IF(OR(Tabulation[[#This Row],[DayNo]]=1,Tabulation[[#This Row],[DayNo]]=7),1,0) -> 0 | J169: =COUNTIF(Holidays,Tabulation[[#This Row],[Date]]) -> 0 | K169: =CONCATENATE(Tabulation[[#This Row],[Holiday]],Tabulation[[#This Row],[Season]],Tabulation[[#This Row],[Weekend]],"-",IF(Tabulation[[#This Row],[Hour]]<10,0,""),C169) -> 0Winter0-21 | L169: =VLOOKUP(Tabulation[[#This Row],[Concat]],Table3[],8) -> 0.28519 | M169: =(Tabulation[[#This Row],[AC System Output (kW)]]*Tabulation[[#This Row],[Rate]]) -> 0
A170: 1 | B170: 6 | C170: 22 | D170: 0 | E170: =Tabulation[[#This Row],[AC System Output (W)]]/1000 -> 0 | F170: =VLOOKUP(Tabulation[[#This Row],[Month]],Season,2) -> Winter | G170: =(DATE(2021,Tabulation[[#This Row],[Month]],Tabulation[[#This Row],[Day]])) -> 2021-01-06 | H170: =WEEKDAY(Tabulation[[#This Row],[Date]]) -> 4 | I170: =IF(OR(Tabulation[[#This Row],[DayNo]]=1,Tabulation[[#This Row],[DayNo]]=7),1,0) -> 0 | J170: =COUNTIF(Holidays,Tabulation[[#This Row],[Date]]) -> 0 | K170: =CONCATENATE(Tabulation[[#This Row],[Holiday]],Tabulation[[#This Row],[Season]],Tabulation[[#This Row],[Weekend]],"-",IF(Tabulation[[#This Row],[Hour]]<10,0,""),C170) -> 0Winter0-22 | L170: =VLOOKUP(Tabulation[[#This Row],[Concat]],Table3[],8) -> 0.28519 | M170: =(Tabulation[[#This Row],[AC System Output (kW)]]*Tabulation[[#This Row],[Rate]]) -> 0
A171: 1 | B171: 6 | C171: 23 | D171: 0 | E171: =Tabulation[[#This Row],[AC System Output (W)]]/1000 -> 0 | F171: =VLOOKUP(Tabulation[[#This Row],[Month]],Season,2) -> Winter | G171: =(DATE(2021,Tabulation[[#This Row],[Month]],Tabulation[[#This Row],[Day]])) -> 2021-01-06 | H171: =WEEKDAY(Tabulation[[#This Row],[Date]]) -> 4 | I171: =IF(OR(Tabulation[[#This Row],[DayNo]]=1,Tabulation[[#This Row],[DayNo]]=7),1,0) -> 0 | J171: =COUNTIF(Holidays,Tabulation[[#This Row],[Date]]) -> 0 | K171: =CONCATENATE(Tabulation[[#This Row],[Holiday]],Tabulation[[#This Row],[Season]],Tabulation[[#This Row],[Weekend]],"-",IF(Tabulation[[#This Row],[Hour]]<10,0,""),C171) -> 0Winter0-23 | L171: =VLOOKUP(Tabulation[[#This Row],[Concat]],Table3[],8) -> 0.28519 | M171: =(Tabulation[[#This Row],[AC System Output (kW)]]*Tabulation[[#This Row],[Rate]]) -> 0
A172: 1 | B172: 7 | C172: 0 | D172: 0 | E172: =Tabulation[[#This Row],[AC System Output (W)]]/1000 -> 0 | F172: =VLOOKUP(Tabulation[[#This Row],[Month]],Season,2) -> Winter | G172: =(DATE(2021,Tabulation[[#This Row],[Month]],Tabulation[[#This Row],[Day]])) -> 2021-01-07 | H172: =WEEKDAY(Tabulation[[#This Row],[Date]]) -> 5 | I172: =IF(OR(Tabulation[[#This Row],[DayNo]]=1,Tabulation[[#This Row],[DayNo]]=7),1,0) -> 0 | J172: =COUNTIF(Holidays,Tabulation[[#This Row],[Date]]) -> 0 | K172: =CONCATENATE(Tabulation[[#This Row],[Holiday]],Tabulation[[#This Row],[Season]],Tabulation[[#This Row],[Weekend]],"-",IF(Tabulation[[#This Row],[Hour]]<10,0,""),C172) -> 0Winter0-00 | L172: =VLOOKUP(Tabulation[[#This Row],[Concat]],Table3[],8) -> 0.28519 | M172: =(Tabulation[[#This Row],[AC System Output (kW)]]*Tabulation[[#This Row],[Rate]]) -> 0
A173: 1 | B173: 7 | C173: 1 | D173: 0 | E173: =Tabulation[[#This Row],[AC System Output (W)]]/1000 -> 0 | F173: =VLOOKUP(Tabulation[[#This Row],[Month]],Season,2) -> Winter | G173: =(DATE(2021,Tabulation[[#This Row],[Month]],Tabulation[[#This Row],[Day]])) -> 2021-01-07 | H173: =WEEKDAY(Tabulation[[#This Row],[Date]]) -> 5 | I173: =IF(OR(Tabulation[[#This Row],[DayNo]]=1,Tabulation[[#This Row],[DayNo]]=7),1,0) -> 0 | J173: =COUNTIF(Holidays,Tabulation[[#This Row],[Date]]) -> 0 | K173: =CONCATENATE(Tabulation[[#This Row],[Holiday]],Tabulation[[#This Row],[Season]],Tabulation[[#This Row],[Weekend]],"-",IF(Tabulation[[#This Row],[Hour]]<10,0,""),C173) -> 0Winter0-01 | L173: =VLOOKUP(Tabulation[[#This Row],[Concat]],Table3[],8) -> 0.28519 | M173: =(Tabulation[[#This Row],[AC System Output (kW)]]*Tabulation[[#This Row],[Rate]]) -> 0
A174: 1 | B174: 7 | C174: 2 | D174: 0 | E174: =Tabulation[[#This Row],[AC System Output (W)]]/1000 -> 0 | F174: =VLOOKUP(Tabulation[[#This Row],[Month]],Season,2) -> Winter | G174: =(DATE(2021,Tabulation[[#This Row],[Month]],Tabulation[[#This Row],[Day]])) -> 2021-01-07 | H174: =WEEKDAY(Tabulation[[#This Row],[Date]]) -> 5 | I174: =IF(OR(Tabulation[[#This Row],[DayNo]]=1,Tabulation[[#This Row],[DayNo]]=7),1,0) -> 0 | J174: =COUNTIF(Holidays,Tabulation[[#This Row],[Date]]) -> 0 | K174: =CONCATENATE(Tabulation[[#This Row],[Holiday]],Tabulation[[#This Row],[Season]],Tabulation[[#This Row],[Weekend]],"-",IF(Tabulation[[#This Row],[Hour]]<10,0,""),C174) -> 0Winter0-02 | L174: =VLOOKUP(Tabulation[[#This Row],[Concat]],Table3[],8) -> 0.28519 | M174: =(Tabulation[[#This Row],[AC System Output (kW)]]*Tabulation[[#This Row],[Rate]]) -> 0
A175: 1 | B175: 7 | C175: 3 | D175: 0 | E175: =Tabulation[[#This Row],[AC System Output (W)]]/1000 -> 0 | F175: =VLOOKUP(Tabulation[[#This Row],[Month]],Season,2) -> Winter | G175: =(DATE(2021,Tabulation[[#This Row],[Month]],Tabulation[[#This Row],[Day]])) -> 2021-01-07 | H175: =WEEKDAY(Tabulation[[#This Row],[Date]]) -> 5 | I175: =IF(OR(Tabulation[[#This Row],[DayNo]]=1,Tabulation[[#This Row],[DayNo]]=7),1,0) -> 0 | J175: =COUNTIF(Holidays,Tabulation[[#This Row],[Date]]) -> 0 | K175: =CONCATENATE(Tabulation[[#This Row],[Holiday]],Tabulation[[#This Row],[Season]],Tabulation[[#This Row],[Weekend]],"-",IF(Tabulation[[#This Row],[Hour]]<10,0,""),C175) -> 0Winter0-03 | L175: =VLOOKUP(Tabulation[[#This Row],[Concat]],Table3[],8) -> 0.28519 | M175: =(Tabulation[[#This Row],[AC System Output (kW)]]*Tabulation[[#This Row],[Rate]]) -> 0
A176: 1 | B176: 7 | C176: 4 | D176: 0 | E176: =Tabulation[[#This Row],[AC System Output (W)]]/1000 -> 0 | F176: =VLOOKUP(Tabulation[[#This Row],[Month]],Season,2) -> Winter | G176: =(DATE(2021,Tabulation[[#This Row],[Month]],Tabulation[[#This Row],[Day]])) -> 2021-01-07 | H176: =WEEKDAY(Tabulation[[#This Row],[Date]]) -> 5 | I176: =IF(OR(Tabulation[[#This Row],[DayNo]]=1,Tabulation[[#This Row],[DayNo]]=7),1,0) -> 0 | J176: =COUNTIF(Holidays,Tabulation[[#This Row],[Date]]) -> 0 | K176: =CONCATENATE(Tabulation[[#This Row],[Holiday]],Tabulation[[#This Row],[Season]],Tabulation[[#This Row],[Weekend]],"-",IF(Tabulation[[#This Row],[Hour]]<10,0,""),C176) -> 0Winter0-04 | L176: =VLOOKUP(Tabulation[[#This Row],[Concat]],Table3[],8) -> 0.28519 | M176: =(Tabulation[[#This Row],[AC System Output (kW)]]*Tabulation[[#This Row],[Rate]]) -> 0
A177: 1 | B177: 7 | C177: 5 | D177: 0 | E177: =Tabulation[[#This Row],[AC System Output (W)]]/1000 -> 0 | F177: =VLOOKUP(Tabulation[[#This Row],[Month]],Season,2) -> Winter | G177: =(DATE(2021,Tabulation[[#This Row],[Month]],Tabulation[[#This Row],[Day]])) -> 2021-01-07 | H177: =WEEKDAY(Tabulation[[#This Row],[Date]]) -> 5 | I177: =IF(OR(Tabulation[[#This Row],[DayNo]]=1,Tabulation[[#This Row],[DayNo]]=7),1,0) -> 0 | J177: =COUNTIF(Holidays,Tabulation[[#This Row],[Date]]) -> 0 | K177: =CONCATENATE(Tabulation[[#This Row],[Holiday]],Tabulation[[#This Row],[Season]],Tabulation[[#This Row],[Weekend]],"-",IF(Tabulation[[#This Row],[Hour]]<10,0,""),C177) -> 0Winter0-05 | L177: =VLOOKUP(Tabulation[[#This Row],[Concat]],Table3[],8) -> 0.28519 | M177: =(Tabulation[[#This Row],[AC System Output (kW)]]*Tabulation[[#This Row],[Rate]]) -> 0
A178: 1 | B178: 7 | C178: 6 | D178: 0 | E178: =Tabulation[[#This Row],[AC System Output (W)]]/1000 -> 0 | F178: =VLOOKUP(Tabulation[[#This Row],[Month]],Season,2) -> Winter | G178: =(DATE(2021,Tabulation[[#This Row],[Month]],Tabulation[[#This Row],[Day]])) -> 2021-01-07 | H178: =WEEKDAY(Tabulation[[#This Row],[Date]]) -> 5 | I178: =IF(OR(Tabulation[[#This Row],[DayNo]]=1,Tabulation[[#This Row],[DayNo]]=7),1,0) -> 0 | J178: =COUNTIF(Holidays,Tabulation[[#This Row],[Date]]) -> 0 | K178: =CONCATENATE(Tabulation[[#This Row],[Holiday]],Tabulation[[#This Row],[Season]],Tabulation[[#This Row],[Weekend]],"-",IF(Tabulation[[#This Row],[Hour]]<10,0,""),C178) -> 0Winter0-06 | L178: =VLOOKUP(Tabulation[[#This Row],[Concat]],Table3[],8) -> 0.28519 | M178: =(Tabulation[[#This Row],[AC System Output (kW)]]*Tabulation[[#This Row],[Rate]]) -> 0
A179: 1 | B179: 7 | C179: 7 | D179: 87.486 | E179: =Tabulation[[#This Row],[AC System Output (W)]]/1000 -> 0.087486 | F179: =VLOOKUP(Tabulation[[#This Row],[Month]],Season,2) -> Winter | G179: =(DATE(2021,Tabulation[[#This Row],[Month]],Tabulation[[#This Row],[Day]])) -> 2021-01-07 | H179: =WEEKDAY(Tabulation[[#This Row],[Date]]) -> 5 | I179: =IF(OR(Tabulation[[#This Row],[DayNo]]=1,Tabulation[[#This Row],[DayNo]]=7),1,0) -> 0 | J179: =COUNTIF(Holidays,Tabulation[[#This Row],[Date]]) -> 0 | K179: =CONCATENATE(Tabulation[[#This Row],[Holiday]],Tabulation[[#This Row],[Season]],Tabulation[[#This Row],[Weekend]],"-",IF(Tabulation[[#This Row],[Hour]]<10,0,""),C179) -> 0Winter0-07 | L179: =VLOOKUP(Tabulation[[#This Row],[Concat]],Table3[],8) -> 0.28519 | M179: =(Tabulation[[#This Row],[AC System Output (kW)]]*Tabulation[[#This Row],[Rate]]) -> 0.02495013234
A180: 1 | B180: 7 | C180: 8 | D180: 436.085 | E180: =Tabulation[[#This Row],[AC System Output (W)]]/1000 -> 0.436085 | F180: =VLOOKUP(Tabulation[[#This Row],[Month]],Season,2) -> Winter | G180: =(DATE(2021,Tabulation[[#This Row],[Month]],Tabulation[[#This Row],[Day]])) -> 2021-01-07 | H180: =WEEKDAY(Tabulation[[#This Row],[Date]]) -> 5 | I180: =IF(OR(Tabulation[[#This Row],[DayNo]]=1,Tabulation[[#This Row],[DayNo]]=7),1,0) -> 0 | J180: =COUNTIF(Holidays,Tabulation[[#This Row],[Date]]) -> 0 | K180: =CONCATENATE(Tabulation[[#This Row],[Holiday]],Tabulation[[#This Row],[Season]],Tabulation[[#This Row],[Weekend]],"-",IF(Tabulation[[#This Row],[Hour]]<10,0,""),C180) -> 0Winter0-08 | L180: =VLOOKUP(Tabulation[[#This Row],[Concat]],Table3[],8) -> 0.28519 | M180: =(Tabulation[[#This Row],[AC System Output (kW)]]*Tabulation[[#This Row],[Rate]]) -> 0.1243670812
A181: 1 | B181: 7 | C181: 9 | D181: 1832.892 | E181: =Tabulation[[#This Row],[AC System Output (W)]]/1000 -> 1.832892 | F181: =VLOOKUP(Tabulation[[#This Row],[Month]],Season,2) -> Winter | G181: =(DATE(2021,Tabulation[[#This Row],[Month]],Tabulation[[#This Row],[Day]])) -> 2021-01-07 | H181: =WEEKDAY(Tabulation[[#This Row],[Date]]) -> 5 | I181: =IF(OR(Tabulation[[#This Row],[DayNo]]=1,Tabulation[[#This Row],[DayNo]]=7),1,0) -> 0 | J181: =COUNTIF(Holidays,Tabulation[[#This Row],[Date]]) -> 0 | K181: =CONCATENATE(Tabulation[[#This Row],[Holiday]],Tabulation[[#This Row],[Season]],Tabulation[[#This Row],[Weekend]],"-",IF(Tabulation[[#This Row],[Hour]]<10,0,""),C181) -> 0Winter0-09 | L181: =VLOOKUP(Tabulation[[#This Row],[Concat]],Table3[],8) -> 0.28519 | M181: =(Tabulation[[#This Row],[AC System Output (kW)]]*Tabulation[[#This Row],[Rate]]) -> 0.5227224695
A182: 1 | B182: 7 | C182: 10 | D182: 2262.087 | E182: =Tabulation[[#This Row],[AC System Output (W)]]/1000 -> 2.262087 | F182: =VLOOKUP(Tabulation[[#This Row],[Month]],Season,2) -> Winter | G182: =(DATE(2021,Tabulation[[#This Row],[Month]],Tabulation[[#This Row],[Day]])) -> 2021-01-07 | H182: =WEEKDAY(Tabulation[[#This Row],[Date]]) -> 5 | I182: =IF(OR(Tabulation[[#This Row],[DayNo]]=1,Tabulation[[#This Row],[DayNo]]=7),1,0) -> 0 | J182: =COUNTIF(Holidays,Tabulation[[#This Row],[Date]]) -> 0 | K182: =CONCATENATE(Tabulation[[#This Row],[Holiday]],Tabulation[[#This Row],[Season]],Tabulation[[#This Row],[Weekend]],"-",IF(Tabulation[[#This Row],[Hour]]<10,0,""),C182) -> 0Winter0-10 | L182: =VLOOKUP(Tabulation[[#This Row],[Concat]],Table3[],8) -> 0.28519 | M182: =(Tabulation[[#This Row],[AC System Output (kW)]]*Tabulation[[#This Row],[Rate]]) -> 0.6451245915
A183: 1 | B183: 7 | C183: 11 | D183: 2544.315 | E183: =Tabulation[[#This Row],[AC System Output (W)]]/1000 -> 2.544315 | F183: =VLOOKUP(Tabulation[[#This Row],[Month]],Season,2) -> Winter | G183: =(DATE(2021,Tabulation[[#This Row],[Month]],Tabulation[[#This Row],[Day]])) -> 2021-01-07 | H183: =WEEKDAY(Tabulation[[#This Row],[Date]]) -> 5 | I183: =IF(OR(Tabulation[[#This Row],[DayNo]]=1,Tabulation[[#This Row],[DayNo]]=7),1,0) -> 0 | J183: =COUNTIF(Holidays,Tabulation[[#This Row],[Date]]) -> 0 | K183: =CONCATENATE(Tabulation[[#This Row],[Holiday]],Tabulation[[#This Row],[Season]],Tabulation[[#This Row],[Weekend]],"-",IF(Tabulation[[#This Row],[Hour]]<10,0,""),C183) -> 0Winter0-11 | L183: =VLOOKUP(Tabulation[[#This Row],[Concat]],Table3[],8) -> 0.28519 | M183: =(Tabulation[[#This Row],[AC System Output (kW)]]*Tabulation[[#This Row],[Rate]]) -> 0.7256131948
A184: 1 | B184: 7 | C184: 12 | D184: 2553.494 | E184: =Tabulation[[#This Row],[AC System Output (W)]]/1000 -> 2.553494 | F184: =VLOOKUP(Tabulation[[#This Row],[Month]],Season,2) -> Winter | G184: =(DATE(2021,Tabulation[[#This Row],[Month]],Tabulation[[#This Row],[Day]])) -> 2021-01-07 | H184: =WEEKDAY(Tabulation[[#This Row],[Date]]) -> 5 | I184: =IF(OR(Tabulation[[#This Row],[DayNo]]=1,Tabulation[[#This Row],[DayNo]]=7),1,0) -> 0 | J184: =COUNTIF(Holidays,Tabulation[[#This Row],[Date]]) -> 0 | K184: =CONCATENATE(Tabulation[[#This Row],[Holiday]],Tabulation[[#This Row],[Season]],Tabulation[[#This Row],[Weekend]],"-",IF(Tabulation[[#This Row],[Hour]]<10,0,""),C184) -> 0Winter0-12 | L184: =VLOOKUP(Tabulation[[#This Row],[Concat]],Table3[],8) -> 0.28519 | M184: =(Tabulation[[#This Row],[AC System Output (kW)]]*Tabulation[[#This Row],[Rate]]) -> 0.7282309539
A185: 1 | B185: 7 | C185: 13 | D185: 2340.529 | E185: =Tabulation[[#This Row],[AC System Output (W)]]/1000 -> 2.340529 | F185: =VLOOKUP(Tabulation[[#This Row],[Month]],Season,2) -> Winter | G185: =(DATE(2021,Tabulation[[#This Row],[Month]],Tabulation[[#This Row],[Day]])) -> 2021-01-07 | H185: =WEEKDAY(Tabulation[[#This Row],[Date]]) -> 5 | I185: =IF(OR(Tabulation[[#This Row],[DayNo]]=1,Tabulation[[#This Row],[DayNo]]=7),1,0) -> 0 | J185: =COUNTIF(Holidays,Tabulation[[#This Row],[Date]]) -> 0 | K185: =CONCATENATE(Tabulation[[#This Row],[Holiday]],Tabulation[[#This Row],[Season]],Tabulation[[#This Row],[Weekend]],"-",IF(Tabulation[[#This Row],[Hour]]<10,0,""),C185) -> 0Winter0-13 | L185: =VLOOKUP(Tabulation[[#This Row],[Concat]],Table3[],8) -> 0.28519 | M185: =(Tabulation[[#This Row],[AC System Output (kW)]]*Tabulation[[#This Row],[Rate]]) -> 0.6674954655
A186: 1 | B186: 7 | C186: 14 | D186: 1899.859 | E186: =Tabulation[[#This Row],[AC System Output (W)]]/1000 -> 1.899859 | F186: =VLOOKUP(Tabulation[[#This Row],[Month]],Season,2) -> Winter | G186: =(DATE(2021,Tabulation[[#This Row],[Month]],Tabulation[[#This Row],[Day]])) -> 2021-01-07 | H186: =WEEKDAY(Tabulation[[#This Row],[Date]]) -> 5 | I186: =IF(OR(Tabulation[[#This Row],[DayNo]]=1,Tabulation[[#This Row],[DayNo]]=7),1,0) -> 0 | J186: =COUNTIF(Holidays,Tabulation[[#This Row],[Date]]) -> 0 | K186: =CONCATENATE(Tabulation[[#This Row],[Holiday]],Tabulation[[#This Row],[Season]],Tabulation[[#This Row],[Weekend]],"-",IF(Tabulation[[#This Row],[Hour]]<10,0,""),C186) -> 0Winter0-14 | L186: =VLOOKUP(Tabulation[[#This Row],[Concat]],Table3[],8) -> 0.28519 | M186: =(Tabulation[[#This Row],[AC System Output (kW)]]*Tabulation[[#This Row],[Rate]]) -> 0.5418207882
A187: 1 | B187: 7 | C187: 15 | D187: 1272.466 | E187: =Tabulation[[#This Row],[AC System Output (W)]]/1000 -> 1.272466 | F187: =VLOOKUP(Tabulation[[#This Row],[Month]],Season,2) -> Winter | G187: =(DATE(2021,Tabulation[[#This Row],[Month]],Tabulation[[#This Row],[Day]])) -> 2021-01-07 | H187: =WEEKDAY(Tabulation[[#This Row],[Date]]) -> 5 | I187: =IF(OR(Tabulation[[#This Row],[DayNo]]=1,Tabulation[[#This Row],[DayNo]]=7),1,0) -> 0 | J187: =COUNTIF(Holidays,Tabulation[[#This Row],[Date]]) -> 0 | K187: =CONCATENATE(Tabulation[[#This Row],[Holiday]],Tabulation[[#This Row],[Season]],Tabulation[[#This Row],[Weekend]],"-",IF(Tabulation[[#This Row],[Hour]]<10,0,""),C187) -> 0Winter0-15 | L187: =VLOOKUP(Tabulation[[#This Row],[Concat]],Table3[],8) -> 0.28519 | M187: =(Tabulation[[#This Row],[AC System Output (kW)]]*Tabulation[[#This Row],[Rate]]) -> 0.3628945785
A188: 1 | B188: 7 | C188: 16 | D188: 161.519 | E188: =Tabulation[[#This Row],[AC System Output (W)]]/1000 -> 0.161519 | F188: =VLOOKUP(Tabulation[[#This Row],[Month]],Season,2) -> Winter | G188: =(DATE(2021,Tabulation[[#This Row],[Month]],Tabulation[[#This Row],[Day]])) -> 2021-01-07 | H188: =WEEKDAY(Tabulation[[#This Row],[Date]]) -> 5 | I188: =IF(OR(Tabulation[[#This Row],[DayNo]]=1,Tabulation[[#This Row],[DayNo]]=7),1,0) -> 0 | J188: =COUNTIF(Holidays,Tabulation[[#This Row],[Date]]) -> 0 | K188: =CONCATENATE(Tabulation[[#This Row],[Holiday]],Tabulation[[#This Row],[Season]],Tabulation[[#This Row],[Weekend]],"-",IF(Tabulation[[#This Row],[Hour]]<10,0,""),C188) -> 0Winter0-16 | L188: =VLOOKUP(Tabulation[[#This Row],[Concat]],Table3[],8) -> 0.28519 | M188: =(Tabulation[[#This Row],[AC System Output (kW)]]*Tabulation[[#This Row],[Rate]]) -> 0.04606360361
A189: 1 | B189: 7 | C189: 17 | D189: 0 | E189: =Tabulation[[#This Row],[AC System Output (W)]]/1000 -> 0 | F189: =VLOOKUP(Tabulation[[#This Row],[Month]],Season,2) -> Winter | G189: =(DATE(2021,Tabulation[[#This Row],[Month]],Tabulation[[#This Row],[Day]])) -> 2021-01-07 | H189: =WEEKDAY(Tabulation[[#This Row],[Date]]) -> 5 | I189: =IF(OR(Tabulation[[#This Row],[DayNo]]=1,Tabulation[[#This Row],[DayNo]]=7),1,0) -> 0 | J189: =COUNTIF(Holidays,Tabulation[[#This Row],[Date]]) -> 0 | K189: =CONCATENATE(Tabulation[[#This Row],[Holiday]],Tabulation[[#This Row],[Season]],Tabulation[[#This Row],[Weekend]],"-",IF(Tabulation[[#This Row],[Hour]]<10,0,""),C189) -> 0Winter0-17 | L189: =VLOOKUP(Tabulation[[#This Row],[Concat]],Table3[],8) -> 0.30257 | M189: =(Tabulation[[#This Row],[AC System Output (kW)]]*Tabulation[[#This Row],[Rate]]) -> 0
A190: 1 | B190: 7 | C190: 18 | D190: 0 | E190: =Tabulation[[#This Row],[AC System Output (W)]]/1000 -> 0 | F190: =VLOOKUP(Tabulation[[#This Row],[Month]],Season,2) -> Winter | G190: =(DATE(2021,Tabulation[[#This Row],[Month]],Tabulation[[#This Row],[Day]])) -> 2021-01-07 | H190: =WEEKDAY(Tabulation[[#This Row],[Date]]) -> 5 | I190: =IF(OR(Tabulation[[#This Row],[DayNo]]=1,Tabulation[[#This Row],[DayNo]]=7),1,0) -> 0 | J190: =COUNTIF(Holidays,Tabulation[[#This Row],[Date]]) -> 0 | K190: =CONCATENATE(Tabulation[[#This Row],[Holiday]],Tabulation[[#This Row],[Season]],Tabulation[[#This Row],[Weekend]],"-",IF(Tabulation[[#This Row],[Hour]]<10,0,""),C190) -> 0Winter0-18 | L190: =VLOOKUP(Tabulation[[#This Row],[Concat]],Table3[],8) -> 0.30257 | M190: =(Tabulation[[#This Row],[AC System Output (kW)]]*Tabulation[[#This Row],[Rate]]) -> 0
A191: 1 | B191: 7 | C191: 19 | D191: 0 | E191: =Tabulation[[#This Row],[AC System Output (W)]]/1000 -> 0 | F191: =VLOOKUP(Tabulation[[#This Row],[Month]],Season,2) -> Winter | G191: =(DATE(2021,Tabulation[[#This Row],[Month]],Tabulation[[#This Row],[Day]])) -> 2021-01-07 | H191: =WEEKDAY(Tabulation[[#This Row],[Date]]) -> 5 | I191: =IF(OR(Tabulation[[#This Row],[DayNo]]=1,Tabulation[[#This Row],[DayNo]]=7),1,0) -> 0 | J191: =COUNTIF(Holidays,Tabulation[[#This Row],[Date]]) -> 0 | K191: =CONCATENATE(Tabulation[[#This Row],[Holiday]],Tabulation[[#This Row],[Season]],Tabulation[[#This Row],[Weekend]],"-",IF(Tabulation[[#This Row],[Hour]]<10,0,""),C191) -> 0Winter0-19 | L191: =VLOOKUP(Tabulation[[#This Row],[Concat]],Table3[],8) -> 0.30257 | M191: =(Tabulation[[#This Row],[AC System Output (kW)]]*Tabulation[[#This Row],[Rate]]) -> 0
A192: 1 | B192: 7 | C192: 20 | D192: 0 | E192: =Tabulation[[#This Row],[AC System Output (W)]]/1000 -> 0 | F192: =VLOOKUP(Tabulation[[#This Row],[Month]],Season,2) -> Winter | G192: =(DATE(2021,Tabulation[[#This Row],[Month]],Tabulation[[#This Row],[Day]])) -> 2021-01-07 | H192: =WEEKDAY(Tabulation[[#This Row],[Date]]) -> 5 | I192: =IF(OR(Tabulation[[#This Row],[DayNo]]=1,Tabulation[[#This Row],[DayNo]]=7),1,0) -> 0 | J192: =COUNTIF(Holidays,Tabulation[[#This Row],[Date]]) -> 0 | K192: =CONCATENATE(Tabulation[[#This Row],[Holiday]],Tabulation[[#This Row],[Season]],Tabulation[[#This Row],[Weekend]],"-",IF(Tabulation[[#This Row],[Hour]]<10,0,""),C192) -> 0Winter0-20 | L192: =VLOOKUP(Tabulation[[#This Row],[Concat]],Table3[],8) -> 0.28519 | M192: =(Tabulation[[#This Row],[AC System Output (kW)]]*Tabulation[[#This Row],[Rate]]) -> 0
A193: 1 | B193: 7 | C193: 21 | D193: 0 | E193: =Tabulation[[#This Row],[AC System Output (W)]]/1000 -> 0 | F193: =VLOOKUP(Tabulation[[#This Row],[Month]],Season,2) -> Winter | G193: =(DATE(2021,Tabulation[[#This Row],[Month]],Tabulation[[#This Row],[Day]])) -> 2021-01-07 | H193: =WEEKDAY(Tabulation[[#This Row],[Date]]) -> 5 | I193: =IF(OR(Tabulation[[#This Row],[DayNo]]=1,Tabulation[[#This Row],[DayNo]]=7),1,0) -> 0 | J193: =COUNTIF(Holidays,Tabulation[[#This Row],[Date]]) -> 0 | K193: =CONCATENATE(Tabulation[[#This Row],[Holiday]],Tabulation[[#This Row],[Season]],Tabulation[[#This Row],[Weekend]],"-",IF(Tabulation[[#This Row],[Hour]]<10,0,""),C193) -> 0Winter0-21 | L193: =VLOOKUP(Tabulation[[#This Row],[Concat]],Table3[],8) -> 0.28519 | M193: =(Tabulation[[#This Row],[AC System Output (kW)]]*Tabulation[[#This Row],[Rate]]) -> 0
A194: 1 | B194: 7 | C194: 22 | D194: 0 | E194: =Tabulation[[#This Row],[AC System Output (W)]]/1000 -> 0 | F194: =VLOOKUP(Tabulation[[#This Row],[Month]],Season,2) -> Winter | G194: =(DATE(2021,Tabulation[[#This Row],[Month]],Tabulation[[#This Row],[Day]])) -> 2021-01-07 | H194: =WEEKDAY(Tabulation[[#This Row],[Date]]) -> 5 | I194: =IF(OR(Tabulation[[#This Row],[DayNo]]=1,Tabulation[[#This Row],[DayNo]]=7),1,0) -> 0 | J194: =COUNTIF(Holidays,Tabulation[[#This Row],[Date]]) -> 0 | K194: =CONCATENATE(Tabulation[[#This Row],[Holiday]],Tabulation[[#This Row],[Season]],Tabulation[[#This Row],[Weekend]],"-",IF(Tabulation[[#This Row],[Hour]]<10,0,""),C194) -> 0Winter0-22 | L194: =VLOOKUP(Tabulation[[#This Row],[Concat]],Table3[],8) -> 0.28519 | M194: =(Tabulation[[#This Row],[AC System Output (kW)]]*Tabulation[[#This Row],[Rate]]) -> 0
A195: 1 | B195: 7 | C195: 23 | D195: 0 | E195: =Tabulation[[#This Row],[AC System Output (W)]]/1000 -> 0 | F195: =VLOOKUP(Tabulation[[#This Row],[Month]],Season,2) -> Winter | G195: =(DATE(2021,Tabulation[[#This Row],[Month]],Tabulation[[#This Row],[Day]])) -> 2021-01-07 | H195: =WEEKDAY(Tabulation[[#This Row],[Date]]) -> 5 | I195: =IF(OR(Tabulation[[#This Row],[DayNo]]=1,Tabulation[[#This Row],[DayNo]]=7),1,0) -> 0 | J195: =COUNTIF(Holidays,Tabulation[[#This Row],[Date]]) -> 0 | K195: =CONCATENATE(Tabulation[[#This Row],[Holiday]],Tabulation[[#This Row],[Season]],Tabulation[[#This Row],[Weekend]],"-",IF(Tabulation[[#This Row],[Hour]]<10,0,""),C195) -> 0Winter0-23 | L195: =VLOOKUP(Tabulation[[#This Row],[Concat]],Table3[],8) -> 0.28519 | M195: =(Tabulation[[#This Row],[AC System Output (kW)]]*Tabulation[[#This Row],[Rate]]) -> 0
A196: 1 | B196: 8 | C196: 0 | D196: 0 | E196: =Tabulation[[#This Row],[AC System Output (W)]]/1000 -> 0 | F196: =VLOOKUP(Tabulation[[#This Row],[Month]],Season,2) -> Winter | G196: =(DATE(2021,Tabulation[[#This Row],[Month]],Tabulation[[#This Row],[Day]])) -> 2021-01-08 | H196: =WEEKDAY(Tabulation[[#This Row],[Date]]) -> 6 | I196: =IF(OR(Tabulation[[#This Row],[DayNo]]=1,Tabulation[[#This Row],[DayNo]]=7),1,0) -> 0 | J196: =COUNTIF(Holidays,Tabulation[[#This Row],[Date]]) -> 0 | K196: =CONCATENATE(Tabulation[[#This Row],[Holiday]],Tabulation[[#This Row],[Season]],Tabulation[[#This Row],[Weekend]],"-",IF(Tabulation[[#This Row],[Hour]]<10,0,""),C196) -> 0Winter0-00 | L196: =VLOOKUP(Tabulation[[#This Row],[Concat]],Table3[],8) -> 0.28519 | M196: =(Tabulation[[#This Row],[AC System Output (kW)]]*Tabulation[[#This Row],[Rate]]) -> 0
A197: 1 | B197: 8 | C197: 1 | D197: 0 | E197: =Tabulation[[#This Row],[AC System Output (W)]]/1000 -> 0 | F197: =VLOOKUP(Tabulation[[#This Row],[Month]],Season,2) -> Winter | G197: =(DATE(2021,Tabulation[[#This Row],[Month]],Tabulation[[#This Row],[Day]])) -> 2021-01-08 | H197: =WEEKDAY(Tabulation[[#This Row],[Date]]) -> 6 | I197: =IF(OR(Tabulation[[#This Row],[DayNo]]=1,Tabulation[[#This Row],[DayNo]]=7),1,0) -> 0 | J197: =COUNTIF(Holidays,Tabulation[[#This Row],[Date]]) -> 0 | K197: =CONCATENATE(Tabulation[[#This Row],[Holiday]],Tabulation[[#This Row],[Season]],Tabulation[[#This Row],[Weekend]],"-",IF(Tabulation[[#This Row],[Hour]]<10,0,""),C197) -> 0Winter0-01 | L197: =VLOOKUP(Tabulation[[#This Row],[Concat]],Table3[],8) -> 0.28519 | M197: =(Tabulation[[#This Row],[AC System Output (kW)]]*Tabulation[[#This Row],[Rate]]) -> 0
A198: 1 | B198: 8 | C198: 2 | D198: 0 | E198: =Tabulation[[#This Row],[AC System Output (W)]]/1000 -> 0 | F198: =VLOOKUP(Tabulation[[#This Row],[Month]],Season,2) -> Winter | G198: =(DATE(2021,Tabulation[[#This Row],[Month]],Tabulation[[#This Row],[Day]])) -> 2021-01-08 | H198: =WEEKDAY(Tabulation[[#This Row],[Date]]) -> 6 | I198: =IF(OR(Tabulation[[#This Row],[DayNo]]=1,Tabulation[[#This Row],[DayNo]]=7),1,0) -> 0 | J198: =COUNTIF(Holidays,Tabulation[[#This Row],[Date]]) -> 0 | K198: =CONCATENATE(Tabulation[[#This Row],[Holiday]],Tabulation[[#This Row],[Season]],Tabulation[[#This Row],[Weekend]],"-",IF(Tabulation[[#This Row],[Hour]]<10,0,""),C198) -> 0Winter0-02 | L198: =VLOOKUP(Tabulation[[#This Row],[Concat]],Table3[],8) -> 0.28519 | M198: =(Tabulation[[#This Row],[AC System Output (kW)]]*Tabulation[[#This Row],[Rate]]) -> 0
A199: 1 | B199: 8 | C199: 3 | D199: 0 | E199: =Tabulation[[#This Row],[AC System Output (W)]]/1000 -> 0 | F199: =VLOOKUP(Tabulation[[#This Row],[Month]],Season,2) -> Winter | G199: =(DATE(2021,Tabulation[[#This Row],[Month]],Tabulation[[#This Row],[Day]])) -> 2021-01-08 | H199: =WEEKDAY(Tabulation[[#This Row],[Date]]) -> 6 | I199: =IF(OR(Tabulation[[#This Row],[DayNo]]=1,Tabulation[[#This Row],[DayNo]]=7),1,0) -> 0 | J199: =COUNTIF(Holidays,Tabulation[[#This Row],[Date]]) -> 0 | K199: =CONCATENATE(Tabulation[[#This Row],[Holiday]],Tabulation[[#This Row],[Season]],Tabulation[[#This Row],[Weekend]],"-",IF(Tabulation[[#This Row],[Hour]]<10,0,""),C199) -> 0Winter0-03 | L199: =VLOOKUP(Tabulation[[#This Row],[Concat]],Table3[],8) -> 0.28519 | M199: =(Tabulation[[#This Row],[AC System Output (kW)]]*Tabulation[[#This Row],[Rate]]) -> 0
A200: 1 | B200: 8 | C200: 4 | D200: 0 | E200: =Tabulation[[#This Row],[AC System Output (W)]]/1000 -> 0 | F200: =VLOOKUP(Tabulation[[#This Row],[Month]],Season,2) -> Winter | G200: =(DATE(2021,Tabulation[[#This Row],[Month]],Tabulation[[#This Row],[Day]])) -> 2021-01-08 | H200: =WEEKDAY(Tabulation[[#This Row],[Date]]) -> 6 | I200: =IF(OR(Tabulation[[#This Row],[DayNo]]=1,Tabulation[[#This Row],[DayNo]]=7),1,0) -> 0 | J200: =COUNTIF(Holidays,Tabulation[[#This Row],[Date]]) -> 0 | K200: =CONCATENATE(Tabulation[[#This Row],[Holiday]],Tabulation[[#This Row],[Season]],Tabulation[[#This Row],[Weekend]],"-",IF(Tabulation[[#This Row],[Hour]]<10,0,""),C200) -> 0Winter0-04 | L200: =VLOOKUP(Tabulation[[#This Row],[Concat]],Table3[],8) -> 0.28519 | M200: =(Tabulation[[#This Row],[AC System Output (kW)]]*Tabulation[[#This Row],[Rate]]) -> 0
A201: 1 | B201: 8 | C201: 5 | D201: 0 | E201: =Tabulation[[#This Row],[AC System Output (W)]]/1000 -> 0 | F201: =VLOOKUP(Tabulation[[#This Row],[Month]],Season,2) -> Winter | G201: =(DATE(2021,Tabulation[[#This Row],[Month]],Tabulation[[#This Row],[Day]])) -> 2021-01-08 | H201: =WEEKDAY(Tabulation[[#This Row],[Date]]) -> 6 | I201: =IF(OR(Tabulation[[#This Row],[DayNo]]=1,Tabulation[[#This Row],[DayNo]]=7),1,0) -> 0 | J201: =COUNTIF(Holidays,Tabulation[[#This Row],[Date]]) -> 0 | K201: =CONCATENATE(Tabulation[[#This Row],[Holiday]],Tabulation[[#This Row],[Season]],Tabulation[[#This Row],[Weekend]],"-",IF(Tabulation[[#This Row],[Hour]]<10,0,""),C201) -> 0Winter0-05 | L201: =VLOOKUP(Tabulation[[#This Row],[Concat]],Table3[],8) -> 0.28519 | M201: =(Tabulation[[#This Row],[AC System Output (kW)]]*Tabulation[[#This Row],[Rate]]) -> 0
A202: 1 | B202: 8 | C202: 6 | D202: 0 | E202: =Tabulation[[#This Row],[AC System Output (W)]]/1000 -> 0 | F202: =VLOOKUP(Tabulation[[#This Row],[Month]],Season,2) -> Winter | G202: =(DATE(2021,Tabulation[[#This Row],[Month]],Tabulation[[#This Row],[Day]])) -> 2021-01-08 | H202: =WEEKDAY(Tabulation[[#This Row],[Date]]) -> 6 | I202: =IF(OR(Tabulation[[#This Row],[DayNo]]=1,Tabulation[[#This Row],[DayNo]]=7),1,0) -> 0 | J202: =COUNTIF(Holidays,Tabulation[[#This Row],[Date]]) -> 0 | K202: =CONCATENATE(Tabulation[[#This Row],[Holiday]],Tabulation[[#This Row],[Season]],Tabulation[[#This Row],[Weekend]],"-",IF(Tabulation[[#This Row],[Hour]]<10,0,""),C202) -> 0Winter0-06 | L202: =VLOOKUP(Tabulation[[#This Row],[Concat]],Table3[],8) -> 0.28519 | M202: =(Tabulation[[#This Row],[AC System Output (kW)]]*Tabulation[[#This Row],[Rate]]) -> 0
A203: 1 | B203: 8 | C203: 7 | D203: 88.388 | E203: =Tabulation[[#This Row],[AC System Output (W)]]/1000 -> 0.088388 | F203: =VLOOKUP(Tabulation[[#This Row],[Month]],Season,2) -> Winter | G203: =(DATE(2021,Tabulation[[#This Row],[Month]],Tabulation[[#This Row],[Day]])) -> 2021-01-08 | H203: =WEEKDAY(Tabulation[[#This Row],[Date]]) -> 6 | I203: =IF(OR(Tabulation[[#This Row],[DayNo]]=1,Tabulation[[#This Row],[DayNo]]=7),1,0) -> 0 | J203: =COUNTIF(Holidays,Tabulation[[#This Row],[Date]]) -> 0 | K203: =CONCATENATE(Tabulation[[#This Row],[Holiday]],Tabulation[[#This Row],[Season]],Tabulation[[#This Row],[Weekend]],"-",IF(Tabulation[[#This Row],[Hour]]<10,0,""),C203) -> 0Winter0-07 | L203: =VLOOKUP(Tabulation[[#This Row],[Concat]],Table3[],8) -> 0.28519 | M203: =(Tabulation[[#This Row],[AC System Output (kW)]]*Tabulation[[#This Row],[Rate]]) -> 0.02520737372
... 4297 more rows

Sheet Suplemental
A1: Miller Solar
A2: 17395 Oak Rd. Atascadero, CA 93422
A3: WORKSHEET
A5: Client:
A6: Project: | B6: TOU-D Supporting Data
A7: Date: | D7: Revision:
A9: Seasons
A10: Summer | B10: 2021-06-01 | C10: 2021-09-30
A11: Winter | B11: 2021-10-01 | C11: 2021-05-31
A13: TOU-D Rates | B13: Rate
A14: SummerOff | B14: 0.28148
A15: SummerPeak | B15: 0.37644
A16: WinterOff | B16: 0.28519
A17: WinterPeak | B17: 0.30257
A19: TOU-D Rates per kWh based on all criteria
A20: Concat | B20: Holiday | C20: Season | D20: Weekend | E20: Hour | F20: Daypart | G20: Concat2 | H20: Rate
A21: =CONCATENATE(B21,Table3[Season],Table3[[#This Row],[Weekend]],"-",Table3[[#This Row],[Hour]]) -> - | G21: =CONCATENATE(Table3[[#This Row],[Season]],Table3[[#This Row],[Daypart]]) ->  | H21: =VLOOKUP(Table3[[#This Row],[Concat2]],Table1[],2) -> 
A22: =CONCATENATE(B22,Table3[Season],Table3[[#This Row],[Weekend]],"-",Table3[[#This Row],[Hour]]) -> 0Summer0-0 | B22: 0 | C22: Summer | D22: 0 | E22: 0 | F22: Off | G22: =CONCATENATE(Table3[[#This Row],[Season]],Table3[[#This Row],[Daypart]]) -> SummerOff | H22: =VLOOKUP(Table3[[#This Row],[Concat2]],Table1[],2) -> 0.28148
A23: =CONCATENATE(B23,Table3[Season],Table3[[#This Row],[Weekend]],"-",Table3[[#This Row],[Hour]]) -> 0Summer0-17 | B23: 0 | C23: Summer | D23: 0 | E23: 17 | F23: Peak | G23: =CONCATENATE(Table3[[#This Row],[Season]],Table3[[#This Row],[Daypart]]) -> SummerPeak | H23: =VLOOKUP(Table3[[#This Row],[Concat2]],Table1[],2) -> 0.37644
A24: =CONCATENATE(B24,Table3[Season],Table3[[#This Row],[Weekend]],"-",Table3[[#This Row],[Hour]]) -> 0Summer0-20 | B24: 0 | C24: Summer | D24: 0 | E24: 20 | F24: Off | G24: =CONCATENATE(Table3[[#This Row],[Season]],Table3[[#This Row],[Daypart]]) -> SummerOff | H24: =VLOOKUP(Table3[[#This Row],[Concat2]],Table1[],2) -> 0.28148
A25: =CONCATENATE(B25,Table3[Season],Table3[[#This Row],[Weekend]],"-",Table3[[#This Row],[Hour]]) -> 0Summer1-0 | B25: 0 | C25: Summer | D25: 1 | E25: 0 | F25: Off | G25: =CONCATENATE(Table3[[#This Row],[Season]],Table3[[#This Row],[Daypart]]) -> SummerOff | H25: =VLOOKUP(Table3[[#This Row],[Concat2]],Table1[],2) -> 0.28148
A26: =CONCATENATE(B26,Table3[Season],Table3[[#This Row],[Weekend]],"-",Table3[[#This Row],[Hour]]) -> 0Winter0-0 | B26: 0 | C26: Winter | D26: 0 | E26: 0 | F26: Off | G26: =CONCATENATE(Table3[[#This Row],[Season]],Table3[[#This Row],[Daypart]]) -> WinterOff | H26: =VLOOKUP(Table3[[#This Row],[Concat2]],Table1[],2) -> 0.28519
A27: =CONCATENATE(B27,Table3[Season],Table3[[#This Row],[Weekend]],"-",Table3[[#This Row],[Hour]]) -> 0Winter0-17 | B27: 0 | C27: Winter | D27: 0 | E27: 17 | F27: Peak | G27: =CONCATENATE(Table3[[#This Row],[Season]],Table3[[#This Row],[Daypart]]) -> WinterPeak | H27: =VLOOKUP(Table3[[#This Row],[Concat2]],Table1[],2) -> 0.30257
A28: =CONCATENATE(B28,Table3[Season],Table3[[#This Row],[Weekend]],"-",Table3[[#This Row],[Hour]]) -> 0Winter0-20 | B28: 0 | C28: Winter | D28: 0 | E28: 20 | F28: Off | G28: =CONCATENATE(Table3[[#This Row],[Season]],Table3[[#This Row],[Daypart]]) -> WinterOff | H28: =VLOOKUP(Table3[[#This Row],[Concat2]],Table1[],2) -> 0.28519
A29: =CONCATENATE(B29,Table3[Season],Table3[[#This Row],[Weekend]],"-",Table3[[#This Row],[Hour]]) -> 0Winter1-0 | B29: 0 | C29: Winter | D29: 1 | E29: 0 | F29: Off | G29: =CONCATENATE(Table3[[#This Row],[Season]],Table3[[#This Row],[Daypart]]) -> WinterOff | H29: =VLOOKUP(Table3[[#This Row],[Concat2]],Table1[],2) -> 0.28519
A30: =CONCATENATE(B30,Table3[Season],Table3[[#This Row],[Weekend]],"-",Table3[[#This Row],[Hour]]) -> 1Summer0-0 | B30: 1 | C30: Summer | D30: 0 | E30: 0 | F30: Off | G30: =CONCATENATE(Table3[[#This Row],[Season]],Table3[[#This Row],[Daypart]]) -> SummerOff | H30: =VLOOKUP(Table3[[#This Row],[Concat2]],Table1[],2) -> 0.28148
A31: =CONCATENATE(B31,Table3[Season],Table3[[#This Row],[Weekend]],"-",Table3[[#This Row],[Hour]]) -> 1Summer1-0 | B31: 1 | C31: Summer | D31: 1 | E31: 0 | F31: Off | G31: =CONCATENATE(Table3[[#This Row],[Season]],Table3[[#This Row],[Daypart]]) -> SummerOff | H31: =VLOOKUP(Table3[[#This Row],[Concat2]],Table1[],2) -> 0.28148
A32: =CONCATENATE(B32,Table3[Season],Table3[[#This Row],[Weekend]],"-",Table3[[#This Row],[Hour]]) -> 1Winter0-0 | B32: 1 | C32: Winter | D32: 0 | E32: 0 | F32: Off | G32: =CONCATENATE(Table3[[#This Row],[Season]],Table3[[#This Row],[Daypart]]) -> WinterOff | H32: =VLOOKUP(Table3[[#This Row],[Concat2]],Table1[],2) -> 0.28519
A33: =CONCATENATE(B33,Table3[Season],Table3[[#This Row],[Weekend]],"-",Table3[[#This Row],[Hour]]) -> 1Winter1-0 | B33: 1 | C33: Winter | D33: 1 | E33: 0 | F33: Off | G33: =CONCATENATE(Table3[[#This Row],[Season]],Table3[[#This Row],[Daypart]]) -> WinterOff | H33: =VLOOKUP(Table3[[#This Row],[Concat2]],Table1[],2) -> 0.28519
A36: Month | B36: Season
A37: 1 | B37: Winter
A38: 2 | B38: Winter
A39: 3 | B39: Winter
A40: 4 | B40: Winter
A41: 5 | B41: Winter
A42: 6 | B42: Summer
A43: 7 | B43: Summer
A44: 8 | B44: Summer
A45: 9 | B45: Summer
A46: 10 | B46: Winter
A47: 11 | B47: Winter
A48: 12 | B48: Winter
A50: E-6 Hour-hour matrix | B50: Summer Weekdays | C50: Summer Weekends | D50: Summer Holidays | E50: Winter Weekdays | F50: Winter Weekends | G50: Winter Holidays
A51: Concat | B51: 0Summer0 | C51: 0Summer1 | D51: 1Summerx | E51: 0Winter0 | F51: 0Winter1 | G51: 1Winterx
A52: 0 | B52: Off | C52: Off | D52: Off | E52: Off | F52: Off | G52: Off
A53: 1 | B53: Off | C53: Off | D53: Off | E53: Off | F53: Off | G53: Off
A54: 2 | B54: Off | C54: Off | D54: Off | E54: Off | F54: Off | G54: Off
A55: 3 | B55: Off | C55: Off | D55: Off | E55: Off | F55: Off | G55: Off
A56: 4 | B56: Off | C56: Off | D56: Off | E56: Off | F56: Off | G56: Off
A57: 5 | B57: Off | C57: Off | D57: Off | E57: Off | F57: Off | G57: Off
A58: 6 | B58: Off | C58: Off | D58: Off | E58: Off | F58: Off | G58: Off
A59: 7 | B59: Off | C59: Off | D59: Off | E59: Off | F59: Off | G59: Off
A60: 8 | B60: Off | C60: Off | D60: Off | E60: Off | F60: Off | G60: Off
A61: 9 | B61: Off | C61: Off | D61: Off | E61: Off | F61: Off | G61: Off
A62: 10 | B62: Off | C62: Off | D62: Off | E62: Off | F62: Off | G62: Off
A63: 11 | B63: Off | C63: Off | D63: Off | E63: Off | F63: Off | G63: Off
A64: 12 | B64: Off | C64: Off | D64: Off | E64: Off | F64: Off | G64: Off
A65: 13 | B65: Off | C65: Off | D65: Off | E65: Off | F65: Off | G65: Off
A66: 14 | B66: Off | C66: Off | D66: Off | E66: Off | F66: Off | G66: Off
A67: 15 | B67: Off | C67: Off | D67: Off | E67: Off | F67: Off | G67: Off
A68: 16 | B68: Off | C68: Off | D68: Off | E68: Off | F68: Off | G68: Off
A69: 17 | B69: Peak | C69: Off | D69: Off | E69: Peak | F69: Off | G69: Off
A70: 18 | B70: Peak | C70: Off | D70: Off | E70: Peak | F70: Off | G70: Off
A71: 19 | B71: Peak | C71: Off | D71: Off | E71: Peak | F71: Off | G71: Off
A72: 20 | B72: Off | C72: Off | D72: Off | E72: Off | F72: Off | G72: Off
A73: 21 | B73: Off | C73: Off | D73: Off | E73: Off | F73: Off | G73: Off
A74: 22 | B74: Off | C74: Off | D74: Off | E74: Off | F74: Off | G74: Off
A75: 23 | B75: Off | C75: Off | D75: Off | E75: Off | F75: Off | G75: Off
A76: 24 | B76: Off | C76: Off | D76: Off | E76: Off | F76: Off | G76: Off
A78: Weekdays
A79: 1 | B79: Sunday
A80: 2 | B80: Monday
A81: 3 | B81: Tuesday
A82: 4 | B82: Wednesday
A83: 5 | B83: Thursday
A84: 6 | B84: Friday
A85: 7 | B85: Saturday
A88: Holidays | D88: Holiday Test
A89: New Years | B89: 2021-01-01 | D89: 2021-01-01
A90: President's | B90: 2021-02-15 | D90: 2021-01-02 | E90: =COUNTIF(Holidays,D89) -> 1
A91: Memorial Day | B91: 2021-05-31 | E91: =COUNTIF(Holidays,D90) -> 0
A92: Independence | B92: 2021-07-04
A93: Labor | B93: 2021-09-19
A94: Veterans | B94: 2021-11-01
A95: Thanksgiving | B95: 2021-11-25
A96: Chritsmas | B96: 2021-12-25
A99: Baseline
A100: Region | B100: X
B101: Summer | C101: Winter
A102: kWh | B102: 10.3 | C102: 10.5 | D102: Per Day
A103: Start | B103: 2021-06-01
A104: End | B104: 2021-09-30
A105: Days | B105: =B104-B103 -> 121 | C105: =365-B105 -> 244
A106: Totals | B106: =B102*B105 -> 1246.3 | C106: =C102*C105 -> 2562
